{"text_format":"1","workbook":"xlsx","n_sheets":13,"sheets":["Inicio","Docentes","Instrucciones","Costos, gastos, inversiones","Precio de venta","Punto de equilibrio","Pronóstico presupuesto","Pronóstico presupuesto-Auto","Pronóstico presupuesto-Manual","Flujo de tesorería","Estados Financieros","Razones Financieras","Dásicos y desplegables"],"not_rendered":{"charts":1,"images":5,"macros":1,"external_links":0,"defined_names":67,"comments":8,"pivot_tables":0},"unopened":[],"bounds":{"document_bytes":16777216,"sheet_cells":100000,"rows_first":2000,"rows_last":500,"rows_between":2000,"halvings":0,"cell_chars":16384,"cell_head_chars":4096},"cells_cut":0,"cells_raw":0,"read":"whole","date_system":"1900"}

{"sheet":"Inicio","index":0,"n_rows":61,"n_cols":2,"rows_kept":61,"cut":false,"hidden":false,"merged":[[0,1,1,1],[3,1,4,1]]}
[null,"De emprendedor a empresario: haga que su negocio ¡sea negocio! - Simulador Financiero v2aE"]
[]
[null,"Dar clic sobre el botón de la actividad que se desee activar"]
[null,{"$f":"Proyecto","v":0}]
[]
[]
[]
[]
[]
[]
[]
[]
[]
[]
[]
[]
[]
[]
[]
[]
[]
[]
[]
[]
[]
[null,"Idea y desarrollo del simulador Renato Pasquel Robles"]
[null,"© Derechos Reservados2020 Renato Pasquel Robles   © Derechos Reservados2020 Grupo Editorial Patria"]
[null,"Queda prohibida la reproducción con fines comerciales directos e indirectos, la trasmisión total o parcial de los contenidos"]
[null," de este documento en cualesquiera formas, sean electrónicas o mecánicas, sin la autorización por escrito del autor o editor."]
[]
[]
[]
[]
[]
[]
[]
[]
[]
[]
[]
[]
[]
[]
[]
[]
[]
[]
[]
[]
[]
[]
[]
[]
[]
[]
[]
[]
[]
[]
[]
[null,"..\\OneDrive\\Documentos\\De emprendedor a empresario - segunda edición\\Audios cap´7.docx"]

{"sheet":"Docentes","index":1,"n_rows":8,"n_cols":2,"rows_kept":8,"cut":false,"hidden":false,"merged":[[0,1,1,1]]}
[null,"De emprendedor a empresario: haga que su negocio ¡sea negocio! - Simulador Financiero v2aE"]
[]
[null,"Información importante para docentes"]
[null,"Este simulador fue creado con el propósito de facilitar la integración del reporte financiero, que deberá acompañar a todo plan de negocios. En su diseño se contemplan dos opciones: utilizar las cifras incorporadas anteriormente o crear nuevos escenarios. Algunas hojas tienen una arroba @ en la posición superior izquierda que permite seleccionar si desea utilizar los datos de las hojas anteriores, como una forma de revisar las cifras rápidamente; sin embargo, si se responde negativamente, se activarán celdas en color amarillo que estarán disponibles a edición. Estos resultados, aunque introducidos manualmente, se tomarán en cuenta para las opciones que se presentan más adelante. Todas las casillas que se muestran en color amarillo claro corresponden a información que deberá introducirse para completar los datos en cada apartado."]
[null,"Después de introducir los datos requeridos en la pestaña de Instrucciones, se ingresarán los correspondientes a la pestaña de Costos, gastos, inversiones, siendo estos necesarios para la ejecución del simulador. Aquí se podrán resumir los datos que el emprendedor ya debió recabar en el transcurso de las actividades del libro, como son: los costos de materiales (materia prima), salarios a trabajadores (mano de obra) y los gastos directos de fabricación e indirectos de operación, incluyendo los correspondientes a la inversión es equipamiento (activo fijo) que se imputarán al resultado por medio de la depreciación y amortización."]
[null,"Las demás pestañas solicitarán algunos pocos datos, en el modo de utilizar datos de hojas anteriores, para completar un juego de reportes completo. Es recomendable hacer una primera corrida utilizando los datos de hojas anteriores, con el propósito de conocer qué información sería necesario modificar, de acuerdo con las circunstancias de cada caso en particular."]
[null,"Las pestañas de Estados Financieros y Razones Financieras están cerradas ya que no requieren agregar datos para obtener su resultado; sin embargo, es posible que haya modificaciones que realizar por condiciones especiales, como el otorgamiento de crédito a clientes o recepción de crédito de proveedores, inversiones adicionales de activo fijo y otros más. En tal caso, la información se deberá capturar en la pestaña de Flujo de Tesorería, para considerar la modificación en Estados y Razones Financieras."]
[null,"Disfrute su aventura en el mundo de las finanzas y haga que su negocio ¡sea negocio!.    "]

{"sheet":"Instrucciones","index":2,"n_rows":21,"n_cols":12,"rows_kept":21,"cut":false,"hidden":false,"merged":[[0,1,1,10],[2,1,2,10],[3,1,3,10],[4,1,4,10],[5,1,5,10],[6,1,6,10],[7,1,7,10],[8,1,8,10],[9,1,9,10],[18,1,18,2],[18,3,18,5],[10,1,10,10],[20,1,20,2],[20,3,20,5],[18,9,18,10],[20,8,20,9],[12,1,12,10],[14,3,14,10],[14,1,14,2],[16,3,16,10],[16,1,16,2]]}
[null,"De emprendedor a empresario: haga que su negocio ¡sea negocio! - Simulador Financiero",null,null,null,null,null,null,null,null,null,"169"]
[]
[null,"Funcionamiento de este simulador"]
[null,"Este simulador está diseñado para apoyar la generación del plan de negocios, en su parte financiera."]
[null,"Para su llenado, se deberán ingresar datos en las casillas con fondo amarillo claro, como las mostradas en la parte inferior para los datos básicos."]
[null,"Utilice importes antes de IVA en todos los datos que se solicitan, excepto cuando la instrucción particular especifique que se incluya tal impuesto."]
[null,"Cuando se requieran datos mensuales, pondere los importes para ajustarlos a tal periodicidad; cuando se requieran datos por producto, tenga especial cuidado en determinar los materiales y mano de obra; para los gastos indirectos y generales, podrá apoyarse en algunos de los ejercicios. "]
["@","En algunas cédulas, encontrará una arroba azul al margen izquierdo donde podrá elegir entre usar los datos de hojas anteriores o ingresar nuevos datos. Cuando haya optado por usar los datos de hojas previas, la celda correspondiente mostrará un contorno punteado en color verde obscuro. "]
[null,"En la esquina superior derecha de algunas celdas, encontrará un pequeño triangulo rojo  conteniendo ayuda o información contextual.                            ↗"]
[null,"En la esquina supérior izquierda de cada hoja, encontrará un pequeño logotipo que le devolverá a la página inicial del navegador. En la esquina superior derecha, aparece un cuadro naranja con el número de página donde se ubica el tema en el libro."]
[null,"Cada apartado tendrá su facilidad de impresión, utilizando los recursos disponibles en la computadora donde se ejecuten; incluso, se podrá obtener en PDF. Para acceder al menu de impresión, oprima simultaneamente las teclas [Ctrl]+P. Cada hoja tiene el área de impresión definida; si desea imprimir todo el cuaderno, primero seleccione las pestañas desde INSTRUCCIONES hasta RAZONES FINANCIERAS y luego [Ctrl]+P."]
[]
[null,"Datos básicos del proyecto"]
[]
[null,"Nombre del emprendedor:"]
[]
[null,"Nombre del Proyecto:"]
[]
[null,"Fecha de inicio estimado:",null,{"$f":"TODAY()","v":"2020-07-06"},null,null,"Sector:",null,"Figura fiscal:","Persona moral"]
[]
[null,"Tipo de sociedad mercantil:",null,"Sociedad por acciones simplificada",null,null,"Capital:","Variable","Impuesto sobre la Renta:",null,{"$f":"IF(Figura_fiscal=\"Persona moral\",30%, 35%)","v":0.3}]

{"sheet":"Costos, gastos, inversiones","index":3,"n_rows":116,"n_cols":9,"rows_kept":116,"cut":false,"hidden":false,"merged":[[114,6,115,7],[0,1,1,7],[2,1,2,7],[4,1,4,7],[6,1,6,7],[3,1,3,7],[5,1,5,7],[7,1,7,7],[15,1,16,1],[15,5,16,5],[15,2,15,4],[15,6,15,7],[10,2,12,2],[10,1,13,1]]}
[null,"De emprendedor a empresario: haga que su negocio ¡sea negocio! - Simulador Financiero",null,null,null,null,null,null,174]
[]
[null,"Objetivo de este ejercicio"]
[null,"Parte inicial de un proyecto es conocer la cantidad de recursos financieros requerida para ponerlo en marcha. En este punto, se debe poner especial atención a identificar y cotizar los elementos que son necesarios para realizar las actividades, los cuales incluyen: los materiales para producir o los productos a vender, los insumos para concretar su producción, el capital humano necesario y, de manera indispensable, la maquinaria y el equipo tanto para su producción como para la realización de ventas y actividades administrativas; o sea, cuantificar los costos, gastos e inversiones necesarias. "]
[null,"Información requerida"]
[null,"Será necesario haber hecho la investigación relativa a tres elementos indispensables: los costos, integrados por materia prima, mano de obra y gastos indirectos para la producción, su disposición o la prestación del servicio, según corresponda; los gastos generales de operación, que comprenden todas aquellas erogaciones para lograr la venta los productos motivo del negocio; y, las inversiones que deberán aplicarse al resultado mediante la depreciación, basada en la vida útil estimada para cada tipo de activo. Si se requiere agregar nuevos tipos de inversión, identifique la cuenta de aplicación de la depreciación anotando el prefijo CI cuando se trate de cargos indirectos y GG cuando se trate de gastos generales."]
[null,"Cédula de trabajo"]
[null,{"$f":"Proyecto","v":0}]
[null,"7.S1 - Costos, gastos e inversiones"]
[]
[null,"Dado que los datos aquí utilizados están referidos a un mes, ¿cuál sería el volumen de producción o de ventas o de servicios posible con tales erogaciones?","Número de unidades a producir ↓"]
[]
[]
[]
[]
[null,"Concepto","Costo de ventas",null,null,"Gastos generales de operación","Inversión (Activo fijo)"]
[null,null,"Materiales","Mano de obra","Costos indirectos",null,"Importe ","Años de vida útil"]
[]
[]
[]
[]
[]
[]
[]
[]
[]
[]
[]
[null,"Materiales (Materia prima)",{"$f":"SUM(C18:C28)","v":0}]
[]
[]
[]
[]
[]
[]
[]
[]
[]
[]
[]
[null,"Mano de Obra Directa",null,{"$f":"SUM(D30:D40)","v":0}]
[null,"Terrenos"]
[null,"Edificios y construcciones",null,null,null,{"$f":"IFERROR(G43/H43/12,0)","v":0}]
[null,"Maquinaria equipo fabrica",null,null,{"$f":"IFERROR(G44/H44/12,0)","v":0}]
[null,"Mobiliario  equipo oficina",null,null,null,{"$f":"IFERROR(G45/H45/12,0)","v":0}]
[null,"Equipo de transporte",null,null,null,{"$f":"IFERROR(G46/H46/12,0)","v":0}]
[null,"Equipo de computación",null,null,null,{"$f":"IFERROR(G47/H47/12,0)","v":0}]
[null,"Habilitación de locales",null,null,null,{"$f":"IFERROR(G48/H48/12,0)","v":0}]
[null,null,null,null,{"$f":"IF(LEFT(B49,2)=\"ci\",G49*H49/12,0)","v":0},{"$f":"IF(E49=0,IFERROR(G49/H49/12,0),0)","v":0}]
[null,null,null,null,{"$f":"IF(LEFT(B50,2)=\"ci\",G50*H50/12,0)","v":0},{"$f":"IF(E50=0,IFERROR(G50/H50/12,0),0)","v":0}]
[null,null,null,null,{"$f":"IF(LEFT(B51,2)=\"ci\",G51*H51/12,0)","v":0},{"$f":"IF(E51=0,IFERROR(G51/H51/12,0),0)","v":0}]
[null,null,null,null,{"$f":"IF(LEFT(B52,2)=\"ci\",G52*H52/12,0)","v":0},{"$f":"IF(E52=0,IFERROR(G52/H52/12,0),0)","v":0}]
[null,"Patentes y marcas",null,null,{"$f":"IFERROR(G53*H53/12,0)","v":0}]
[null,"Activos intangibles",null,null,null,{"$f":"IF(E54=0,IFERROR(G54/H54/12,0),0)","v":0}]
[null,"Inversiones y gastos diferidos",null,null,{"$f":"SUM(E43:E54)","v":0},{"$f":"SUM(F43:F54)","v":0},{"$f":"SUM(G42:G54)","v":0}]
[null,"Agua"]
[null,"Alarmas de seguridad"]
[null,"Alimentos"]
[null,"Artículos de limpieza"]
[null,"Boletos de avión"]
[null,"Casetas"]
[null,"Combustible y lubricantes"]
[null,"Comisiones bancarias"]
[null,"Copias fotostáticas"]
[null,"Cuotas y membresías"]
[null,"Despensa en general"]
[null,"Dominio de internet"]
[null,"Energía eléctrica"]
[null,"Equipo menor cómputo"]
[null,"Equipo menor de oficina"]
[null,"Estacionamiento"]
[null,"Gastos financieros"]
[null,"Honorarios profesionales"]
[null,"Hospedaje"]
[null,"Impuestos y derechos"]
[null,"Libros y revistas"]
[null,"Mante. edificio"]
[null,"Mante. Fábrica"]
[null,"Mante. oficina"]
[null,"Mante. vehículos"]
[null,"Mante. Eq.Cómputo"]
[null,"Mensajería"]
[null,"Otros"]
[null,"Papelería y Art. de oficina"]
[null,"Paquetería y envíos"]
[null,"Pasajes y transporte"]
[null,"Provisión gratificaciones"]
[null,"Publicidad"]
[null,"Renta de copiadora"]
[null,"Renta de locales"]
[null,"Renta de maquinaria"]
[null,"Renta de vehículos"]
[null,"Seguros y fianzas"]
[null,"Servicio de seguridad"]
[null,"Servicio impresión"]
[null,"Servicios administrativos"]
[null,"Servicios de consultoría"]
[null,"Servicios de nomina"]
[null,"Sueldo del Emprendedor"]
[null,"Sueldos de trabajadores "]
[null,"Suscripciones"]
[null,"Teléfono e internet"]
[null,"Viáticos"]
[]
[]
[]
[]
[]
[]
[]
[null,"Gastos indirectos y generales",null,null,{"$f":"SUM(E56:E110)","v":0},{"$f":"SUM(F56:F110)","v":0}]
[null,"Total de costos y gastos del mes",{"$f":"C29","v":0},{"$f":"D41","v":0},{"$f":"E111+E55","v":0},{"$f":"F111+F55","v":0}]
[]
[null,"Valor unitario a prorrata",{"$f":"IFERROR((C112/UniXProd),0)","v":0},{"$f":"IFERROR((D112/UniXProd),0)","v":0},{"$f":"IFERROR((E112/UniXProd),0)","v":0},{"$f":"IFERROR((F112/UniXProd),0)","v":0},{"$f":"G55","v":0},"Inversión total"]
[null,"Este valor se obtiene al dividir el total de costos y gastos del mes, ",{"$f":"C112","v":0},{"$f":"D112","v":0},0,0,"Este importe debe considerarse en la determinación de la inversión inicial requerida para el proyecto. Ver Adquisición de inversiones en el Flujo de Tesorería"]
[null,"entre el número de unidades a producir.",{"$f":"UniXProd","v":0},{"$f":"UniXProd","v":0},{"$f":"UniXProd","v":0},{"$f":"UniXProd","v":0}]

{"sheet":"Precio de venta","index":4,"n_rows":25,"n_cols":12,"rows_kept":25,"cut":false,"hidden":false,"merged":[[0,1,1,10],[6,1,6,10],[12,5,12,7],[10,1,10,2],[11,1,11,2],[12,1,12,2],[7,1,7,10],[10,5,10,7],[11,5,11,7],[9,5,9,7],[9,1,9,3],[3,1,3,10],[24,1,27,10],[21,1,21,2],[21,6,21,8],[2,1,2,10],[23,1,23,2],[23,6,23,8],[20,5,21,5],[20,1,20,2],[5,1,5,10],[15,6,15,7],[14,6,14,10],[19,6,19,8],[15,1,15,2],[14,1,14,4]]}
[null,"De emprendedor a empresario: haga que su negocio ¡sea negocio! - Simulador Financiero",null,null,null,null,null,null,null,null,null,"179"]
[]
[null,"Objetivo de este ejercicio"]
[null,"El siguiente paso es identificar el precio estimado en que el producto se puede ofrecer al mercado. Existen dos formas prácticas y directas de asignar un precio a un producto nuevo con los métodos de costing y pricing.  Para realizar este paso es necesario identificar los elementos que generan un costo o gasto por unidad, como se mostró en el apartado anterior. Este análisis busca establecer el porcentaje de ganancia que se puede obtener e identificar cuáles son los competidores directos por precio."]
[null,"Información requerida"]
["@","Para este ejercicio, se debe contar con la siguiente información (puede usar la generada en la hoja anterior): Costos directos (o variables) tales como materiales y mano de obra, costos indirectos (o fijos) tales como mano de obra indirecta y gastos indirectos; y, gastos generales de operación. Deberá contar con el precio de productos competidores disponibles en el mercado y un porcentaje que represente la utilidad estimada. En cuanto a esta última, será un prociento que se espere corresponda a la utilidad a realizar. El Impuesto sobre la Renta aplicable se definió en la hoja de Instrucciones. "]
[null,"Cédula de trabajo"]
[null,{"$f":"Proyecto","v":0}]
[null,"7.S2 - Precio de venta"]
[null,"Datos obligatorios a introducir",null,null,null,"Datos",null,null,"Calculados","Introducidos"]
[null,"Precio de productos competidores",null,null,null,"Costos directos (o variables)",null,null,{"$f":"IF($A$6=\"Si\",Mat_Unitario+MO_Unitario,0)","v":0}]
[null,"Utilidad esperada (%)",null,null,null,"Costos indirectos (o fijos)",null,null,{"$f":"IF($A$6=\"Si\",CI_Unitario,0)","v":0}]
[null,"Impuesto Sobre la Renta (%)",null,{"$f":"Impuesto_Sobre_la_Renta","v":0.3},null,"Gastos generales de operación",null,null,{"$f":"IF($A$6=\"Si\",GG_Unitario,0)","v":0}]
[]
[null,"Pricing (datos unitarios)",null,null,null,null,"Costing (datos unitarios)"]
[null,"Elementos",null,"Importe","Porcentaje",null,"Elementos",null,null,"Importe","Porcentaje"]
[null,"Precio de venta en mercado",null,{"$f":"+$D$11","v":0},{"$f":"IF($D$11=\"\",0,D17/$D$17)","v":0},null,"Costos directos",null,null,{"$f":"IF($A$6=\"@\",0,IF($A$6=\"Si\",$I$11,$J$11))","v":0},{"$f":"IF($J$24=0,0,$J$17/$J$24)","v":0}]
[null,"Costos directos",null,{"$f":"IF($A$6=\"@\",0,IF($A$6=\"Si\",$I$11,$J$11))","v":0},{"$f":"IF($D$11=\"\",0,D18/$D$17)","v":0},null,"Costos indirectos",null,null,{"$f":"IF($A$6=\"@\",0,IF($A$6=\"Si\",$I$12,$J$12))","v":0},{"$f":"IF($J$24=0,0,J18/$J$24)","v":0}]
[null,"Costos indirectos",null,{"$f":"IF($A$6=\"@\",0,IF($A$6=\"Si\",$I$12,$J$12))","v":0},0,null,"Gastos generales de operación",null,null,{"$f":"IF($A$6=\"@\",0,IF($A$6=\"Si\",$I$13,$J$13))","v":0},0]
[null,"Gastos generales de operación",null,{"$f":"IF($A$6=\"@\",0,IF($A$6=\"Si\",$I$13,$J$13))","v":0},0,null,"Suman costos y gastos",null,null,{"$f":"SUM(J17:J19)","v":0},0]
[null,"Suman costos y gastos",null,{"$f":"SUM(D18:D20)","v":0},0,"PRECIO DE VENTA","Impuesto Sobre la Renta",null,{"$f":"Impuesto_Sobre_la_Renta","v":0.3},{"$f":"IF(I21<>\"nodefinido\",Importe_ISR,0)","v":0},0]
[null,"Resultado antes de impuestos",null,{"$f":"D17-D21","v":0},0,null,"Cargos totales",null,null,{"$f":"IF(J20=0,0,J20+J21)","v":0},0]
[null,"Impuesto sobre la renta",{"$f":"Impuesto_Sobre_la_Renta","v":0.3},{"$f":"+IF(D22=0,0,IF(D22>0,D22*C23,0))","v":0},0,"↓","Utilidad esperada",null,{"$f":"IF($D$12=\"\",0,$D$12)","v":0},{"$f":"IFERROR(Importe_Utilidad,0)","v":0},0]
[null,"Resultado neto unitario",null,{"$f":"D22-D23","v":0},0,{"$f":"IF(A6=\"@\",\"\",(INT(ROUND($J$24,-1)-1)))","v":""},"Precio de venta estimado",null,null,{"$f":"IF(J20=0,0,J22+J23)","v":0},0]
[null,"Si el resultado del análisis de pricing implica pérdidas, deberá bajar los costos; de no ser posible, considere no llevar a cabo el proyecto. Si resultado de pricing es positivo, identifique el resultado de costing para saber si es posible alcanzar el porcentaje de utilidad que se busca con base en lo que ofrece el mercado. De no existir un resultado competitivo, considere disminuir el porcentaje de utilidad, siempre y cuando la ganancia sea lo suficientemente atractiva para llevar a cabo el proyecto."]

{"sheet":"Punto de equilibrio","index":5,"n_rows":40,"n_cols":20,"rows_kept":40,"cut":false,"hidden":false,"merged":[[8,1,8,10],[0,1,1,10],[4,1,4,10],[7,1,7,10],[2,1,2,10],[3,1,3,10],[5,1,5,10]]}
[null,"De emprendedor a empresario: haga que su negocio ¡sea negocio! - Simulador Financiero",null,null,null,null,null,null,null,null,null,"181"]
[]
[null,"Objetivo de este ejercicio"]
[null,"Punto de equilibrio es un concepto que hace referencia al nivel de ventas donde los costos fijos y variables se encuentran cubiertos; supone que la empresa, en su punto de equilibrio, tiene un resultado igual a cero. Una empresa en el punto de equilibrio logra cubrir sus costos; al incrementar sus ventas se ubicará por encima del punto de equilibrio y obtiene beneficios; tendrá pérdidas si sus ventas caen por debajo del punto de equilibrio. Estimar el punto de equilibrio permite conocer el nivel de ventas necesario para recuperar la inversión aún antes de iniciar operaciones.  "]
[null,"Información requerida"]
["@","Para hallar su punto de equilibrio, la empresa debe conocer cuáles son sus costos. Este cálculo debe considerar todos los desembolsos, es decir, toda la salida de dinero de la empresa. Además, es necesario clasificar los costos en directos (que varían de acuerdo al nivel de actividad) e indirectos. El siguiente paso es encontrar el costo directo unitario, que resulta de la división entre el número de unidades fabricadas y las unidades vendidas. Si desea introducir nuevos datos, seleccione si serán unitarios o para un grupo de productos y/o servicios en la siguiente línea."]
[null,"Los datos a introducir serán","Grupales"]
[null,"Cédula de trabajo"]
[null,{"$f":"Proyecto","v":0}]
[null,"7.S3 - Punto de equilibrio"]
[null,"Datos","Calculados","Unitarios","Gpo./Serv."]
[null,"Precio de venta por unidad",{"$f":"IF($A$6=\"Si\",PVP,\"\")","v":""},null,null,"Fórmula del Punto de Equilibrio:"]
[null,"Costo directo por unidad",{"$f":"IF($A$6=\"Si\",CVD,\"\")","v":""},null,null,"Para un producto"]
[null,"Promedio margen ganancia"]
[null,"Indirectos y generales del mes",{"$f":"IF($A$6=\"Si\",ROUNDUP(CI_Mes+GG_Mes,0),\"\")","v":""}]
[null,"Impuesto sobre la Renta %",0,null,null,"Para un grupo de productos"]
[null,"Suma de gastos fijos del mes",{"$f":"IF($A$6=\"Si\",$C$15+$C$16,\"\")","v":""},{"$f":"IF(AND($A$6=\"No\", $D$12<>\"\"),$D$15+$D$16,\"\")","v":""},{"$f":"IF(AND($A$6=\"No\", $E$14<>\"\"),$E$15+$E$16,\"\")","v":""},"Para prestación de servicios"]
[]
[null,"Punto de equilibrio en unidades",{"$f":"IF($A$6=\"Si\",ROUNDUP(($C$15)/($C$12-$C$13),0),\"\")","v":""},{"$f":"IF(AND($A$6=\"no\",$D$12<>\"\"),ROUNDUP(($D$17/($D$12-$D$13)),0),\"\")","v":""},{"$f":"IF(AND($A$6=\"no\",$E$14<>\"\"),ROUNDUP((($E$17/$E$14)),0),\"\")","v":""}]
[null,"Punto de equilibrio en importe",{"$f":"IF($A$6=\"Si\",ROUND($C$19*$C$12,0),\"\")","v":""},{"$f":"IF(AND($A$6=\"No\",$D$12<>\"\"),ROUND($D$19*$D$12,0),\"\")","v":""},{"$f":"IF(AND($A$6=\"No\",$E$12<>\"\"),ROUND($E$19*$E$12,0),\"\")","v":""},null,null,"Unidades","Ventas","Costos","Utilidad",null,null,null,null,"Unidades","Ventas","Costos","Utilidad","ISR"]
[null,null,null,null,null,null,null,{"$f":"P21","v":""},{"$f":"Q21","v":""},{"$f":"IFERROR(R21+T21,\"\")","v":""},{"$f":"IF(H21=\"\",\"\",ROUND(I21-J21,0))","v":""},null,null,null,null,{"$f":"IF($A$6=\"@\",\"\",IF($A$6=\"Si\",ROUNDUP($C$19*0.1,0),IF($D$12<>\"\",ROUNDUP($D$19*0.1,0),ROUNDUP($E$19*0.1,0))))","v":""},{"$f":"IF($A$6=\"@\",\"\",IF($A$6=\"Si\",ROUNDUP($C$12*$P$21,0),IF($D$12<>\"\",ROUNDUP($D$12*$P$21,0),$E$14*$P$21)))","v":""},{"$f":"IF($A$6=\"@\",\"\",IF($A$6=\"Si\",ROUNDUP(($C$15+($C$13*$P$21)),0),IF($D$12<>\"\",ROUNDUP(($D$15+($D$13*$P$21)),0),ROUNDUP(($E$17+($E$13*$P$21)),0))))","v":""},{"$f":"ROUNDUP(Q21-R21,0)","v":{"$error":"#VALUE!"}},{"$f":"ROUNDUP(S21*Impuesto_Sobre_la_Renta,0)","v":{"$error":"#VALUE!"}}]
[null,null,null,null,null,null,null,{"$f":"P22","v":""},"",{"$f":"IFERROR(R22+T22,\"\")","v":""},{"$f":"IF(H22=\"\",\"\",ROUND(I22-J22,0))","v":""},null,null,null,null,{"$f":"IF($A$6=\"@\",\"\",IF($A$6=\"Si\",ROUNDUP($C$19*0.2,0),IF($D$12<>\"\",ROUNDUP($D$19*0.2,0),ROUNDUP($E$19*0.2,0))))","v":""},{"$f":"IF($A$6=\"@\",\"\",IF($A$6=\"Si\",ROUNDUP($C$12*$P$22,0),IF($D$12<>\"\",ROUNDUP($D$12*$P$22,0),$E$14*$P$22)))","v":""},{"$f":"IF($A$6=\"@\",\"\",IF($A$6=\"Si\",ROUNDUP(($C$15+($C$13*$P$22)),0),IF($D$12<>\"\",ROUNDUP(($D$15+($D$13*$P$22)),0),ROUNDUP(($E$17+($E$13*$P$22)),0))))","v":""},{"$f":"ROUNDUP(Q22-R22,0)","v":{"$error":"#VALUE!"}},{"$error":"#VALUE!"}]
[null,null,null,null,null,null,null,"","","","",null,null,null,null,{"$f":"IF($A$6=\"@\",\"\",IF($A$6=\"Si\",ROUNDUP($C$19*0.3,0),IF($D$12<>\"\",ROUNDUP($D$19*0.3,0),ROUNDUP($E$19*0.3,0))))","v":""},{"$f":"IF($A$6=\"@\",\"\",IF($A$6=\"Si\",ROUNDUP($C$12*$P$23,0),IF($D$12<>\"\",ROUNDUP($D$12*$P$23,0),$E$14*$P$23)))","v":""},{"$f":"IF($A$6=\"@\",\"\",IF($A$6=\"Si\",ROUNDUP(($C$15+($C$13*$P$23)),0),IF($D$12<>\"\",ROUNDUP(($D$15+($D$13*$P$23)),0),ROUNDUP(($E$17+($E$13*$P$23)),0))))","v":""},{"$error":"#VALUE!"},{"$error":"#VALUE!"}]
[null,null,null,null,null,null,null,"","","","",null,null,null,null,{"$f":"IF($A$6=\"@\",\"\",IF($A$6=\"Si\",ROUNDUP($C$19*0.4,0),IF($D$12<>\"\",ROUNDUP($D$19*0.4,0),ROUNDUP($E$19*0.4,0))))","v":""},{"$f":"IF($A$6=\"@\",\"\",IF($A$6=\"Si\",ROUNDUP($C$12*$P$24,0),IF($D$12<>\"\",ROUNDUP($D$12*$P$24,0),$E$14*$P$24)))","v":""},{"$f":"IF($A$6=\"@\",\"\",IF($A$6=\"Si\",ROUNDUP(($C$15+($C$13*$P$24)),0),IF($D$12<>\"\",ROUNDUP(($D$15+($D$13*$P$24)),0),ROUNDUP(($E$17+($E$13*$P$24)),0))))","v":""},{"$error":"#VALUE!"},{"$error":"#VALUE!"}]
[null,null,null,null,null,null,null,"","","","",null,null,null,null,{"$f":"IF($A$6=\"@\",\"\",IF($A$6=\"Si\",ROUNDUP($C$19*0.5,0),IF($D$12<>\"\",ROUNDUP($D$19*0.5,0),ROUNDUP($E$19*0.5,0))))","v":""},{"$f":"IF($A$6=\"@\",\"\",IF($A$6=\"Si\",ROUNDUP($C$12*$P$25,0),IF($D$12<>\"\",ROUNDUP($D$12*$P$25,0),$E$14*$P$25)))","v":""},{"$f":"IF($A$6=\"@\",\"\",IF($A$6=\"Si\",ROUNDUP(($C$15+($C$13*$P$25)),0),IF($D$12<>\"\",ROUNDUP(($D$15+($D$13*$P$25)),0),ROUNDUP(($E$17+($E$13*$P$25)),0))))","v":""},{"$error":"#VALUE!"},{"$error":"#VALUE!"}]
[null,null,null,null,null,null,null,"","","","",null,null,null,null,{"$f":"IF($A$6=\"@\",\"\",IF($A$6=\"Si\",ROUNDUP($C$19*0.6,0),IF($D$12<>\"\",ROUNDUP($D$19*0.6,0),ROUNDUP($E$19*0.6,0))))","v":""},{"$f":"IF($A$6=\"@\",\"\",IF($A$6=\"Si\",ROUNDUP($C$12*$P$26,0),IF($D$12<>\"\",ROUNDUP($D$12*$P$26,0),$E$14*$P$26)))","v":""},{"$f":"IF($A$6=\"@\",\"\",IF($A$6=\"Si\",ROUNDUP(($C$15+($C$13*$P$26)),0),IF($D$12<>\"\",ROUNDUP(($D$15+($D$13*$P$26)),0),ROUNDUP(($E$17+($E$13*$P$26)),0))))","v":""},{"$error":"#VALUE!"},{"$error":"#VALUE!"}]
[null,null,null,null,null,null,null,"","","","",null,null,null,null,{"$f":"IF($A$6=\"@\",\"\",IF($A$6=\"Si\",ROUNDUP($C$19*0.7,0),IF($D$12<>\"\",ROUNDUP($D$19*0.7,0),ROUNDUP($E$19*0.7,0))))","v":""},{"$f":"IF($A$6=\"@\",\"\",IF($A$6=\"Si\",ROUNDUP($C$12*$P$27,0),IF($D$12<>\"\",ROUNDUP($D$12*$P$27,0),$E$14*$P$27)))","v":""},{"$f":"IF($A$6=\"@\",\"\",IF($A$6=\"Si\",ROUNDUP(($C$15+($C$13*$P$27)),0),IF($D$12<>\"\",ROUNDUP(($D$15+($D$13*$P$27)),0),ROUNDUP(($E$17+($E$13*$P$27)),0))))","v":""},{"$error":"#VALUE!"},{"$error":"#VALUE!"}]
[null,null,null,null,null,null,null,"","","","",null,null,null,null,{"$f":"IF($A$6=\"@\",\"\",IF($A$6=\"Si\",ROUNDUP($C$19*0.8,0),IF($D$12<>\"\",ROUNDUP($D$19*0.8,0),ROUNDUP($E$19*0.8,0))))","v":""},{"$f":"IF($A$6=\"@\",\"\",IF($A$6=\"Si\",ROUNDUP($C$12*$P$28,0),IF($D$12<>\"\",ROUNDUP($D$12*$P$28,0),$E$14*$P$28)))","v":""},{"$f":"IF($A$6=\"@\",\"\",IF($A$6=\"Si\",ROUNDUP(($C$15+($C$13*$P$28)),0),IF($D$12<>\"\",ROUNDUP(($D$15+($D$13*$P$28)),0),ROUNDUP(($E$17+($E$13*$P$28)),0))))","v":""},{"$error":"#VALUE!"},{"$error":"#VALUE!"}]
[null,null,null,null,null,null,null,"","","","",null,null,null,null,{"$f":"IF($A$6=\"@\",\"\",IF($A$6=\"Si\",ROUNDUP($C$19*0.9,0),IF($D$12<>\"\",ROUNDUP($D$19*0.9,0),ROUNDUP($E$19*0.9,0))))","v":""},{"$f":"IF($A$6=\"@\",\"\",IF($A$6=\"Si\",ROUNDUP($C$12*$P$29,0),IF($D$12<>\"\",ROUNDUP($D$12*$P$29,0),$E$14*$P$29)))","v":""},{"$f":"IF($A$6=\"@\",\"\",IF($A$6=\"Si\",ROUNDUP(($C$15+($C$13*$P$29)),0),IF($D$12<>\"\",ROUNDUP(($D$15+($D$13*$P$29)),0),ROUNDUP(($E$17+($E$13*$P$29)),0))))","v":""},{"$error":"#VALUE!"},{"$error":"#VALUE!"}]
[null,null,null,null,null,null,null,"","","","",null,null,null,null,{"$f":"IF($A$6=\"@\",\"\",IF($A$6=\"Si\",ROUNDUP($C$19*1,0),IF($D$12<>\"\",ROUNDUP($D$19*1,0),ROUNDUP($E$19*1,0))))","v":""},{"$f":"IF($A$6=\"@\",\"\",IF($A$6=\"Si\",ROUNDUP($C$12*$P$30,0),IF($D$12<>\"\",ROUNDUP($D$12*$P$30,0),$E$14*$P$30)))","v":""},{"$f":"IF($A$6=\"@\",\"\",IF($A$6=\"Si\",ROUNDUP(($C$15+($C$13*$P$30)),0),IF($D$12<>\"\",ROUNDUP(($D$15+($D$13*$P$30)),0),ROUNDUP(($E$17+($E$13*$P$30)),0))))","v":""},{"$error":"#VALUE!"},{"$error":"#VALUE!"}]
[null,null,null,null,null,null,null,"","","","",null,null,null,null,{"$f":"IF($A$6=\"@\",\"\",IF($A$6=\"Si\",ROUNDUP($C$19*1.1,0),IF($D$12<>\"\",ROUNDUP($D$19*1.1,0),ROUNDUP($E$19*1.1,0))))","v":""},{"$f":"IF($A$6=\"@\",\"\",IF($A$6=\"Si\",ROUNDUP($C$12*$P$31,0),IF($D$12<>\"\",ROUNDUP($D$12*$P$31,0),$E$14*$P$31)))","v":""},{"$f":"IF($A$6=\"@\",\"\",IF($A$6=\"Si\",ROUNDUP(($C$15+($C$13*$P$31)),0),IF($D$12<>\"\",ROUNDUP(($D$15+($D$13*$P$31)),0),ROUNDUP(($E$17+($E$13*$P$31)),0))))","v":""},{"$error":"#VALUE!"},{"$error":"#VALUE!"}]
[null,null,null,null,null,null,null,"","","","",null,null,null,null,{"$f":"IF($A$6=\"@\",\"\",IF($A$6=\"Si\",ROUNDUP($C$19*1.2,0),IF($D$12<>\"\",ROUNDUP($D$19*1.2,0),ROUNDUP($E$19*1.2,0))))","v":""},{"$f":"IF($A$6=\"@\",\"\",IF($A$6=\"Si\",ROUNDUP($C$12*$P$32,0),IF($D$12<>\"\",ROUNDUP($D$12*$P$32,0),$E$14*$P$32)))","v":""},{"$f":"IF($A$6=\"@\",\"\",IF($A$6=\"Si\",ROUNDUP(($C$15+($C$13*$P$32)),0),IF($D$12<>\"\",ROUNDUP(($D$15+($D$13*$P$32)),0),ROUNDUP(($E$17+($E$13*$P$32)),0))))","v":""},{"$error":"#VALUE!"},{"$error":"#VALUE!"}]
[null,null,null,null,null,null,null,"","","","",null,null,null,null,{"$f":"IF($A$6=\"@\",\"\",IF($A$6=\"Si\",ROUNDUP($C$19*1.3,0),IF($D$12<>\"\",ROUNDUP($D$19*1.3,0),ROUNDUP($E$19*1.3,0))))","v":""},{"$f":"IF($A$6=\"@\",\"\",IF($A$6=\"Si\",ROUNDUP($C$12*$P$33,0),IF($D$12<>\"\",ROUNDUP($D$12*$P$33,0),$E$14*$P$33)))","v":""},{"$f":"IF($A$6=\"@\",\"\",IF($A$6=\"Si\",ROUNDUP(($C$15+($C$13*$P$33)),0),IF($D$12<>\"\",ROUNDUP(($D$15+($D$13*$P$33)),0),ROUNDUP(($E$17+($E$13*$P$33)),0))))","v":""},{"$error":"#VALUE!"},{"$error":"#VALUE!"}]
[null,null,null,null,null,null,null,"","","","",null,null,null,null,{"$f":"IF($A$6=\"@\",\"\",IF($A$6=\"Si\",ROUNDUP($C$19*1.4,0),IF($D$12<>\"\",ROUNDUP($D$19*1.4,0),ROUNDUP($E$19*1.4,0))))","v":""},{"$f":"IF($A$6=\"@\",\"\",IF($A$6=\"Si\",ROUNDUP($C$12*$P$34,0),IF($D$12<>\"\",ROUNDUP($D$12*$P$34,0),$E$14*$P$34)))","v":""},{"$f":"IF($A$6=\"@\",\"\",IF($A$6=\"Si\",ROUNDUP(($C$15+($C$13*$P$34)),0),IF($D$12<>\"\",ROUNDUP(($D$15+($D$13*$P$34)),0),ROUNDUP(($E$17+($E$13*$P$34)),0))))","v":""},{"$error":"#VALUE!"},{"$error":"#VALUE!"}]
[null,null,null,null,null,null,null,"","","","",null,null,null,null,{"$f":"IF($A$6=\"@\",\"\",IF($A$6=\"Si\",ROUNDUP($C$19*1.5,0),IF($D$12<>\"\",ROUNDUP($D$19*1.5,0),ROUNDUP($E$19*1.5,0))))","v":""},{"$f":"IF($A$6=\"@\",\"\",IF($A$6=\"Si\",ROUNDUP($C$12*$P$35,0),IF($D$12<>\"\",ROUNDUP($D$12*$P$35,0),$E$14*$P$35)))","v":""},{"$f":"IF($A$6=\"@\",\"\",IF($A$6=\"Si\",ROUNDUP(($C$15+($C$13*$P$35)),0),IF($D$12<>\"\",ROUNDUP(($D$15+($D$13*$P$35)),0),ROUNDUP(($E$17+($E$13*$P$35)),0))))","v":""},{"$error":"#VALUE!"},{"$error":"#VALUE!"}]
[null,null,null,null,null,null,null,"","","","",null,null,null,null,{"$f":"IF($A$6=\"@\",\"\",IF($A$6=\"Si\",ROUNDUP($C$19*1.6,0),IF($D$12<>\"\",ROUNDUP($D$19*1.6,0),ROUNDUP($E$19*1.6,0))))","v":""},{"$f":"IF($A$6=\"@\",\"\",IF($A$6=\"Si\",ROUNDUP($C$12*$P$36,0),IF($D$12<>\"\",ROUNDUP($D$12*$P$36,0),$E$14*$P$36)))","v":""},{"$f":"IF($A$6=\"@\",\"\",IF($A$6=\"Si\",ROUNDUP(($C$15+($C$13*$P$36)),0),IF($D$12<>\"\",ROUNDUP(($D$15+($D$13*$P$36)),0),ROUNDUP(($E$17+($E$13*$P$36)),0))))","v":""},{"$error":"#VALUE!"},{"$error":"#VALUE!"}]
[null,null,null,null,null,null,null,"","","","",null,null,null,null,{"$f":"IF($A$6=\"@\",\"\",IF($A$6=\"Si\",ROUNDUP($C$19*1.7,0),IF($D$12<>\"\",ROUNDUP($D$19*1.7,0),ROUNDUP($E$19*1.7,0))))","v":""},{"$f":"IF($A$6=\"@\",\"\",IF($A$6=\"Si\",ROUNDUP($C$12*$P$37,0),IF($D$12<>\"\",ROUNDUP($D$12*$P$37,0),$E$14*$P$37)))","v":""},{"$f":"IF($A$6=\"@\",\"\",IF($A$6=\"Si\",ROUNDUP(($C$15+($C$13*$P$37)),0),IF($D$12<>\"\",ROUNDUP(($D$15+($D$13*$P$37)),0),ROUNDUP(($E$17+($E$13*$P$37)),0))))","v":""},{"$error":"#VALUE!"},{"$error":"#VALUE!"}]
[null,null,null,null,null,null,null,"","","","",null,null,null,null,{"$f":"IF($A$6=\"@\",\"\",IF($A$6=\"Si\",ROUNDUP($C$19*1.8,0),IF($D$12<>\"\",ROUNDUP($D$19*1.8,0),ROUNDUP($E$19*1.8,0))))","v":""},{"$f":"IF($A$6=\"@\",\"\",IF($A$6=\"Si\",ROUNDUP($C$12*$P$38,0),IF($D$12<>\"\",ROUNDUP($D$12*$P$38,0),$E$14*$P$38)))","v":""},{"$f":"IF($A$6=\"@\",\"\",IF($A$6=\"Si\",ROUNDUP(($C$15+($C$13*$P$38)),0),IF($D$12<>\"\",ROUNDUP(($D$15+($D$13*$P$38)),0),ROUNDUP(($E$17+($E$13*$P$38)),0))))","v":""},{"$error":"#VALUE!"},{"$error":"#VALUE!"}]
[null,null,null,null,null,null,null,"","","","",null,null,null,null,{"$f":"IF($A$6=\"@\",\"\",IF($A$6=\"Si\",ROUNDUP($C$19*1.9,0),IF($D$12<>\"\",ROUNDUP($D$19*1.9,0),ROUNDUP($E$19*1.9,0))))","v":""},{"$f":"IF($A$6=\"@\",\"\",IF($A$6=\"Si\",ROUNDUP($C$12*$P$39,0),IF($D$12<>\"\",ROUNDUP($D$12*$P$39,0),$E$14*$P$39)))","v":""},{"$f":"IF($A$6=\"@\",\"\",IF($A$6=\"Si\",ROUNDUP(($C$15+($C$13*$P$39)),0),IF($D$12<>\"\",ROUNDUP(($D$15+($D$13*$P$39)),0),ROUNDUP(($E$17+($E$13*$P$39)),0))))","v":""},{"$error":"#VALUE!"},{"$error":"#VALUE!"}]
[null,null,null,null,null,null,null,"","","","",null,null,null,null,{"$f":"IF($A$6=\"@\",\"\",IF($A$6=\"Si\",ROUNDUP($C$19*2,0),IF($D$12<>\"\",ROUNDUP($D$19*2,0),ROUNDUP($E$19*2,0))))","v":""},{"$f":"IF($A$6=\"@\",\"\",IF($A$6=\"Si\",ROUNDUP($C$12*$P$40,0),IF($D$12<>\"\",ROUNDUP($D$12*$P$40,0),$E$14*$P$40)))","v":""},{"$f":"IF($A$6=\"@\",\"\",IF($A$6=\"Si\",ROUNDUP(($C$15+($C$13*$P$40)),0),IF($D$12<>\"\",ROUNDUP(($D$15+($D$13*$P$40)),0),ROUNDUP(($E$17+($E$13*$P$40)),0))))","v":""},{"$error":"#VALUE!"},{"$error":"#VALUE!"}]

{"sheet":"Pronóstico presupuesto","index":6,"n_rows":8,"n_cols":12,"rows_kept":8,"cut":false,"hidden":false,"merged":[[12,1,12,10],[5,1,5,10],[6,1,6,10],[7,1,7,10],[0,1,1,10],[2,1,2,10],[4,1,4,10],[3,1,3,10]]}
[null,"De emprendedor a empresario: haga que su negocio ¡sea negocio! - Simulador Financiero",null,null,null,null,null,null,null,null,null,"184"]
[]
[null,"Objetivo de este ejercicio"]
[null,"El presupuesto es un plan de acción dirigido a cumplir una meta prevista, expresada en valores y términos financieros, en un determinado tiempo y bajo ciertas condiciones. Los presupuestos son importantes porque ayudan a minimizar el riesgo en las operaciones de la organización; por medio de estos  se mantiene el plan de operaciones de la empresa en límites razonables. Los presupuestos también sirven como mecanismo para revisar políticas y estrategias de la empresa, permitiendo direccionarlas hacia lo que en realidad se busca. \n\n"]
[null,"Información requerida"]
[null,"La base del presupuesto es el pronóstico de ventas. Todos los ingresos pronosticados para el ejercicio, producto de las ventas y las operaciones de la empresa. Todos los gastos, sin impuestos trasladados, pronosticados en el ejercicio y relacionados en forma directa con la actividad operativa de la empresa. Las depreciaciones o amortizaciones de los activos propiedad de la empresa."]
[null,"El presupuesto tiene una finalidad operativa y es una herramienta básica para la gestión cotidiana; por tanto, su estructura y datos deben reflejar lo que resulta esencial para la empresa. Para realizar el mejor ejercicio posible, tome en cuenta las recomendaciones contenidas en el libro. "]
[null,"Para facilitar el desarrollo del pronóstico-presupuesto, se cuenta con dos modalidades, como en otros casos: utilizar los datos de hojas anteriores o introducir datos propios. Sin embargo, para facilitar comparaciones y revisión de datos con sus efectos, se diseñaron dos hojas por separado para contener cada una de las modalidades. En los vínculos que se muestran abajo, seleccione la opción deseada:"]

{"sheet":"Pronóstico presupuesto-Auto","index":7,"n_rows":268,"n_cols":16,"rows_kept":268,"cut":false,"hidden":true,"merged":[[2,0,3,0],[4,1,4,13],[5,1,5,14],[6,3,6,5],[6,7,6,9],[0,1,1,14],[182,3,182,5],[182,7,182,9],[93,1,93,14],[94,3,94,5],[94,7,94,9],[2,1,2,14],[181,1,181,14]]}
[null,"De emprendedor a empresario: haga que su negocio ¡sea negocio! - Simulador Financiero",null,null,null,null,null,null,null,null,null,null,null,null,null,"184"]
[]
["Si"]
[]
[null,"Cédula de trabajo"]
[null,{"$f":"Proyecto","v":0}]
[null,"7.S4 - Pronóstico y presupuesto",null,"Fecha de inicio del proyecto:",null,null,{"$f":"EDATE(FechaInicio,0)","v":"2020-07-06"},"Factor de inflación esperado:",null,null,"Año 2:",null,"Año 3:"]
[null,"Año 1",{"$f":"EDATE(FechaInicio,0)","v":"2020-07-06"},{"$f":"EDATE(FechaInicio,1)","v":"2020-08-06"},{"$f":"EDATE(FechaInicio,2)","v":"2020-09-06"},{"$f":"EDATE(FechaInicio,3)","v":"2020-10-06"},{"$f":"EDATE(FechaInicio,4)","v":"2020-11-06"},{"$f":"EDATE(FechaInicio,5)","v":"2020-12-06"},{"$f":"EDATE(FechaInicio,6)","v":"2021-01-06"},{"$f":"EDATE(FechaInicio,7)","v":"2021-02-06"},{"$f":"EDATE(FechaInicio,8)","v":"2021-03-06"},{"$f":"EDATE(FechaInicio,9)","v":"2021-04-06"},{"$f":"EDATE(FechaInicio,10)","v":"2021-05-06"},{"$f":"EDATE(FechaInicio,11)","v":"2021-06-06"},"TOTAL"]
[null,"Pronóstico de ventas"]
[null,"Unidades ",null,{"$f":"'Costos, gastos, inversiones'!$C$14","v":0},{"$f":"D10","v":0},{"$f":"E10","v":0},0,0,0,0,0,0,0,0,{"$f":"SUM(C10:N10)","v":0}]
[null,"Precio unitario",null,{"$f":"IF($A$3=\"Si\",PVP,0)","v":""},{"$f":"D11","v":""},{"$f":"E11","v":""},"","","","","","","",""]
[null,"Pronóstico de costos directos"]
[null,"Materiales y Mano de obra",null,{"$f":"IF($A$3=\"Si\",CVD,0)","v":0},{"$f":"D13","v":0},{"$f":"E13","v":0},0,0,0,0,0,0,0,0]
[]
[null,"Presupuesto de operación"]
[null,"Ventas netas",null,{"$f":"IF(D10>0, D10*D11,0)","v":0},{"$f":"IF(E10>0, E10*E11,0)","v":0},0,0,0,0,0,0,0,0,0,{"$f":"SUM(C16:N16)","v":0}]
[null,"Costo de ventas directo",null,{"$f":"IF(D10>0, D10*D13,0)","v":0},{"$f":"IF(E10>0, E10*E13,0)","v":0},0,0,0,0,0,0,0,0,0,{"$f":"SUM(C17:N17)","v":0}]
[null,"Utilidad marginal directa",null,{"$f":"D16-D17","v":0},0,0,0,0,0,0,0,0,0,0,0]
[null,"Gastos indirectos fijos"]
[null,{"$f":"IF('Costos, gastos, inversiones'!B43=\"\",\"\",'Costos, gastos, inversiones'!B43)","v":"Edificios y construcciones"},null,{"$f":"'Costos, gastos, inversiones'!$F$43+'Costos, gastos, inversiones'!$E$43","v":0},{"$f":"D20","v":0},{"$f":"E20","v":0},{"$f":"F20","v":0},0,0,0,0,0,0,0,{"$f":"SUM(C20:N20)","v":0}]
[null,{"$f":"IF('Costos, gastos, inversiones'!B44=\"\",\"\",'Costos, gastos, inversiones'!B44)","v":"Maquinaria equipo fabrica"},null,{"$f":"'Costos, gastos, inversiones'!$F$44+'Costos, gastos, inversiones'!$E$44","v":0},{"$f":"D21","v":0},{"$f":"E21","v":0},{"$f":"F21","v":0},{"$f":"G21","v":0},{"$f":"H21","v":0},{"$f":"I21","v":0},{"$f":"J21","v":0},{"$f":"K21","v":0},{"$f":"L21","v":0},{"$f":"M21","v":0},{"$f":"SUM(C21:N21)","v":0}]
[null,{"$f":"IF('Costos, gastos, inversiones'!B45=\"\",\"\",'Costos, gastos, inversiones'!B45)","v":"Mobiliario  equipo oficina"},null,{"$f":"'Costos, gastos, inversiones'!$F$45+'Costos, gastos, inversiones'!$E$45","v":0},0,0,0,0,0,0,0,0,0,0,0]
[null,{"$f":"IF('Costos, gastos, inversiones'!B46=\"\",\"\",'Costos, gastos, inversiones'!B46)","v":"Equipo de transporte"},null,{"$f":"'Costos, gastos, inversiones'!$F$46+'Costos, gastos, inversiones'!$E$46","v":0},0,0,0,0,0,0,0,0,0,0,0]
[null,{"$f":"IF('Costos, gastos, inversiones'!B47=\"\",\"\",'Costos, gastos, inversiones'!B47)","v":"Equipo de computación"},null,{"$f":"'Costos, gastos, inversiones'!$F$47+'Costos, gastos, inversiones'!$E$47","v":0},{"$f":"D24","v":0},0,0,0,0,0,0,0,0,0,0]
[null,{"$f":"IF('Costos, gastos, inversiones'!B48=\"\",\"\",'Costos, gastos, inversiones'!B48)","v":"Habilitación de locales"},null,{"$f":"'Costos, gastos, inversiones'!$F$48+'Costos, gastos, inversiones'!$E$48","v":0},0,0,0,0,0,0,0,0,0,0,0]
[null,{"$f":"IF('Costos, gastos, inversiones'!B49=\"\",\"\",'Costos, gastos, inversiones'!B49)","v":""},null,{"$f":"'Costos, gastos, inversiones'!$F$49+'Costos, gastos, inversiones'!$E$49","v":0},0,0,0,0,0,0,0,0,0,0,0]
[null,{"$f":"IF('Costos, gastos, inversiones'!B50=\"\",\"\",'Costos, gastos, inversiones'!B50)","v":""},null,{"$f":"'Costos, gastos, inversiones'!$F$50+'Costos, gastos, inversiones'!$E$50","v":0},0,0,0,0,0,0,0,0,0,0,0]
[null,{"$f":"IF('Costos, gastos, inversiones'!B51=\"\",\"\",'Costos, gastos, inversiones'!B51)","v":""},null,{"$f":"'Costos, gastos, inversiones'!$F$51+'Costos, gastos, inversiones'!$E$51","v":0},0,0,0,0,0,0,0,0,0,0,0]
[null,{"$f":"IF('Costos, gastos, inversiones'!B52=\"\",\"\",'Costos, gastos, inversiones'!B52)","v":""},null,{"$f":"'Costos, gastos, inversiones'!$F$52+'Costos, gastos, inversiones'!$E$52","v":0},0,0,0,0,0,0,0,0,0,0,0]
[null,{"$f":"IF('Costos, gastos, inversiones'!B53=\"\",\"\",'Costos, gastos, inversiones'!B53)","v":"Patentes y marcas"},null,{"$f":"'Costos, gastos, inversiones'!$F$53+'Costos, gastos, inversiones'!$E$53","v":0},0,0,0,0,0,0,0,0,0,0,0]
[null,{"$f":"IF('Costos, gastos, inversiones'!B54=\"\",\"\",'Costos, gastos, inversiones'!B54)","v":"Activos intangibles"},null,{"$f":"'Costos, gastos, inversiones'!$F$54+'Costos, gastos, inversiones'!$E$54","v":0},0,0,0,0,0,0,0,0,0,0,0]
[null,"Depreciaciones",null,{"$f":"SUM(D20:D31)","v":0},0,0,0,0,0,0,0,0,0,0,0]
[null,{"$f":"IF('Costos, gastos, inversiones'!$B$56=\"\",\"\",'Costos, gastos, inversiones'!$B$56)","v":"Agua"},null,{"$f":"'Costos, gastos, inversiones'!$E$56+'Costos, gastos, inversiones'!$F$56","v":0},{"$f":"D33","v":0},{"$f":"E33","v":0},0,{"$f":"G33","v":0},{"$f":"H33","v":0},{"$f":"I33","v":0},{"$f":"J33","v":0},{"$f":"K33","v":0},{"$f":"L33","v":0},{"$f":"M33","v":0},{"$f":"SUM(C33:N33)","v":0}]
[null,{"$f":"IF('Costos, gastos, inversiones'!$B$57=\"\",\"\",'Costos, gastos, inversiones'!$B$57)","v":"Alarmas de seguridad"},null,{"$f":"'Costos, gastos, inversiones'!$E$57+'Costos, gastos, inversiones'!$F$57","v":0},0,0,0,0,0,0,0,0,0,0,0]
[null,{"$f":"IF('Costos, gastos, inversiones'!$B$58=\"\",\"\",'Costos, gastos, inversiones'!$B$58)","v":"Alimentos"},null,{"$f":"'Costos, gastos, inversiones'!$E$58+'Costos, gastos, inversiones'!$F$58","v":0},0,0,0,0,0,0,0,0,0,0,0]
[null,{"$f":"IF('Costos, gastos, inversiones'!$B$59=\"\",\"\",'Costos, gastos, inversiones'!$B$59)","v":"Artículos de limpieza"},null,{"$f":"'Costos, gastos, inversiones'!$E$59+'Costos, gastos, inversiones'!$F$59","v":0},0,0,0,0,0,0,0,0,0,0,0]
[null,{"$f":"IF('Costos, gastos, inversiones'!$B$60=\"\",\"\",'Costos, gastos, inversiones'!$B$60)","v":"Boletos de avión"},null,{"$f":"'Costos, gastos, inversiones'!$E$60+'Costos, gastos, inversiones'!$F$60","v":0},0,0,0,0,0,0,0,0,0,0,0]
[null,{"$f":"IF('Costos, gastos, inversiones'!$B$61=\"\",\"\",'Costos, gastos, inversiones'!$B$61)","v":"Casetas"},null,{"$f":"'Costos, gastos, inversiones'!$E$61+'Costos, gastos, inversiones'!$F$61","v":0},0,0,0,0,0,0,0,0,0,0,0]
[null,{"$f":"IF('Costos, gastos, inversiones'!$B$62=\"\",\"\",'Costos, gastos, inversiones'!$B$62)","v":"Combustible y lubricantes"},null,{"$f":"'Costos, gastos, inversiones'!$E$62+'Costos, gastos, inversiones'!$F$62","v":0},0,0,0,0,0,0,0,0,0,0,0]
[null,{"$f":"IF('Costos, gastos, inversiones'!$B$63=\"\",\"\",'Costos, gastos, inversiones'!$B$63)","v":"Comisiones bancarias"},null,{"$f":"'Costos, gastos, inversiones'!$E$63+'Costos, gastos, inversiones'!$F$63","v":0},0,0,0,0,0,0,0,0,0,0,0]
[null,{"$f":"IF('Costos, gastos, inversiones'!$B$64=\"\",\"\",'Costos, gastos, inversiones'!$B$64)","v":"Copias fotostáticas"},null,{"$f":"'Costos, gastos, inversiones'!$E$64+'Costos, gastos, inversiones'!$F$64","v":0},0,0,0,0,0,0,0,0,0,0,0]
[null,{"$f":"IF('Costos, gastos, inversiones'!$B$65=\"\",\"\",'Costos, gastos, inversiones'!$B$65)","v":"Cuotas y membresías"},null,{"$f":"'Costos, gastos, inversiones'!$E$65+'Costos, gastos, inversiones'!$F$65","v":0},0,0,0,0,0,0,0,0,0,0,0]
[null,{"$f":"IF('Costos, gastos, inversiones'!$B$66=\"\",\"\",'Costos, gastos, inversiones'!$B$66)","v":"Despensa en general"},null,{"$f":"'Costos, gastos, inversiones'!$E$66+'Costos, gastos, inversiones'!$F$66","v":0},0,0,0,0,0,0,0,0,0,0,0]
[null,{"$f":"IF('Costos, gastos, inversiones'!$B$67=\"\",\"\",'Costos, gastos, inversiones'!$B$67)","v":"Dominio de internet"},null,{"$f":"'Costos, gastos, inversiones'!$E$67+'Costos, gastos, inversiones'!$F$67","v":0},0,0,0,0,0,0,0,0,0,0,0]
[null,{"$f":"IF('Costos, gastos, inversiones'!$B$68=\"\",\"\",'Costos, gastos, inversiones'!$B$68)","v":"Energía eléctrica"},null,{"$f":"'Costos, gastos, inversiones'!$E$68+'Costos, gastos, inversiones'!$F$68","v":0},0,0,0,0,0,0,0,0,0,0,0]
[null,{"$f":"IF('Costos, gastos, inversiones'!$B$69=\"\",\"\",'Costos, gastos, inversiones'!$B$69)","v":"Equipo menor cómputo"},null,{"$f":"'Costos, gastos, inversiones'!$E$69+'Costos, gastos, inversiones'!$F$69","v":0},0,0,0,0,0,0,0,0,0,0,0]
[null,{"$f":"IF('Costos, gastos, inversiones'!$B$70=\"\",\"\",'Costos, gastos, inversiones'!$B$70)","v":"Equipo menor de oficina"},null,{"$f":"'Costos, gastos, inversiones'!$E$70+'Costos, gastos, inversiones'!$F$70","v":0},0,0,0,0,0,0,0,0,0,0,0]
[null,{"$f":"IF('Costos, gastos, inversiones'!$B$71=\"\",\"\",'Costos, gastos, inversiones'!$B$71)","v":"Estacionamiento"},null,{"$f":"'Costos, gastos, inversiones'!$E$71+'Costos, gastos, inversiones'!$F$71","v":0},0,0,0,0,0,0,0,0,0,0,0]
[null,{"$f":"IF('Costos, gastos, inversiones'!$B$72=\"\",\"\",'Costos, gastos, inversiones'!$B$72)","v":"Gastos financieros"},null,{"$f":"'Costos, gastos, inversiones'!$E$72+'Costos, gastos, inversiones'!$F$72","v":0},0,0,0,0,0,0,0,0,0,0,0]
[null,{"$f":"IF('Costos, gastos, inversiones'!$B$73=\"\",\"\",'Costos, gastos, inversiones'!$B$73)","v":"Honorarios profesionales"},null,{"$f":"'Costos, gastos, inversiones'!$E$73+'Costos, gastos, inversiones'!$F$73","v":0},0,0,0,0,0,0,0,0,0,0,0]
[null,{"$f":"IF('Costos, gastos, inversiones'!$B$74=\"\",\"\",'Costos, gastos, inversiones'!$B$74)","v":"Hospedaje"},null,{"$f":"'Costos, gastos, inversiones'!$E$74+'Costos, gastos, inversiones'!$F$74","v":0},0,0,0,0,0,0,0,0,0,0,0]
[null,{"$f":"IF('Costos, gastos, inversiones'!$B$75=\"\",\"\",'Costos, gastos, inversiones'!$B$75)","v":"Impuestos y derechos"},null,{"$f":"'Costos, gastos, inversiones'!$E$75+'Costos, gastos, inversiones'!$F$75","v":0},0,0,0,0,0,0,0,0,0,0,0]
[null,{"$f":"IF('Costos, gastos, inversiones'!$B$76=\"\",\"\",'Costos, gastos, inversiones'!$B$76)","v":"Libros y revistas"},null,{"$f":"'Costos, gastos, inversiones'!$E$76+'Costos, gastos, inversiones'!$F$76","v":0},0,0,0,0,0,0,0,0,0,0,0]
[null,{"$f":"IF('Costos, gastos, inversiones'!$B$77=\"\",\"\",'Costos, gastos, inversiones'!$B$77)","v":"Mante. edificio"},null,{"$f":"'Costos, gastos, inversiones'!$E$77+'Costos, gastos, inversiones'!$F$77","v":0},0,0,0,0,0,0,0,0,0,0,0]
[null,{"$f":"IF('Costos, gastos, inversiones'!$B$78=\"\",\"\",'Costos, gastos, inversiones'!$B$78)","v":"Mante. Fábrica"},null,{"$f":"'Costos, gastos, inversiones'!$E$79+'Costos, gastos, inversiones'!$F$79","v":0},{"$f":"D55","v":0},{"$f":"E55","v":0},{"$f":"F55","v":0},{"$f":"G55","v":0},{"$f":"H55","v":0},{"$f":"I55","v":0},{"$f":"J55","v":0},{"$f":"K55","v":0},{"$f":"L55","v":0},{"$f":"M55","v":0},{"$f":"SUM(C55:N55)","v":0}]
[null,{"$f":"IF('Costos, gastos, inversiones'!$B$79=\"\",\"\",'Costos, gastos, inversiones'!$B$79)","v":"Mante. oficina"},null,{"$f":"'Costos, gastos, inversiones'!$E$79+'Costos, gastos, inversiones'!$F$79","v":0},0,0,0,0,0,0,0,0,0,0,0]
[null,{"$f":"IF('Costos, gastos, inversiones'!$B$80=\"\",\"\",'Costos, gastos, inversiones'!$B$80)","v":"Mante. vehículos"},null,{"$f":"'Costos, gastos, inversiones'!$E$80+'Costos, gastos, inversiones'!$F$80","v":0},0,0,0,0,0,0,0,0,0,0,0]
[null,{"$f":"IF('Costos, gastos, inversiones'!$B$81=\"\",\"\",'Costos, gastos, inversiones'!$B$81)","v":"Mante. Eq.Cómputo"},null,{"$f":"'Costos, gastos, inversiones'!$E$81+'Costos, gastos, inversiones'!$F$81","v":0},0,0,0,0,0,0,0,0,0,0,0]
[null,{"$f":"IF('Costos, gastos, inversiones'!$B$82=\"\",\"\",'Costos, gastos, inversiones'!$B$82)","v":"Mensajería"},null,{"$f":"'Costos, gastos, inversiones'!$E$82+'Costos, gastos, inversiones'!$F$82","v":0},0,0,0,0,0,0,0,0,0,0,0]
[null,{"$f":"IF('Costos, gastos, inversiones'!$B$83=\"\",\"\",'Costos, gastos, inversiones'!$B$83)","v":"Otros"},null,{"$f":"'Costos, gastos, inversiones'!$E$83+'Costos, gastos, inversiones'!$F$83","v":0},0,0,0,0,0,0,0,0,0,0,0]
[null,{"$f":"IF('Costos, gastos, inversiones'!$B$84=\"\",\"\",'Costos, gastos, inversiones'!$B$84)","v":"Papelería y Art. de oficina"},null,{"$f":"'Costos, gastos, inversiones'!$E$84+'Costos, gastos, inversiones'!$F$84","v":0},0,0,0,0,0,0,0,0,0,0,0]
[null,{"$f":"IF('Costos, gastos, inversiones'!$B$85=\"\",\"\",'Costos, gastos, inversiones'!$B$85)","v":"Paquetería y envíos"},null,{"$f":"'Costos, gastos, inversiones'!$E$85+'Costos, gastos, inversiones'!$F$85","v":0},0,0,0,0,0,0,0,0,0,0,0]
[null,{"$f":"IF('Costos, gastos, inversiones'!$B$86=\"\",\"\",'Costos, gastos, inversiones'!$B$86)","v":"Pasajes y transporte"},null,{"$f":"'Costos, gastos, inversiones'!$E$86+'Costos, gastos, inversiones'!$F$86","v":0},0,0,0,0,0,0,0,0,0,0,0]
[null,{"$f":"IF('Costos, gastos, inversiones'!$B$87=\"\",\"\",'Costos, gastos, inversiones'!$B$87)","v":"Provisión gratificaciones"},null,{"$f":"'Costos, gastos, inversiones'!$E$87+'Costos, gastos, inversiones'!$F$87","v":0},0,0,0,0,0,0,0,0,0,0,0]
[null,{"$f":"IF('Costos, gastos, inversiones'!$B$88=\"\",\"\",'Costos, gastos, inversiones'!$B$88)","v":"Publicidad"},null,{"$f":"'Costos, gastos, inversiones'!$E$88+'Costos, gastos, inversiones'!$F$88","v":0},0,0,0,0,0,0,0,0,0,0,0]
[null,{"$f":"IF('Costos, gastos, inversiones'!$B$89=\"\",\"\",'Costos, gastos, inversiones'!$B$89)","v":"Renta de copiadora"},null,{"$f":"'Costos, gastos, inversiones'!$E$89+'Costos, gastos, inversiones'!$F$89","v":0},0,0,0,0,0,0,0,0,0,0,0]
[null,{"$f":"IF('Costos, gastos, inversiones'!$B$90=\"\",\"\",'Costos, gastos, inversiones'!$B$90)","v":"Renta de locales"},null,{"$f":"'Costos, gastos, inversiones'!$E$90+'Costos, gastos, inversiones'!$F$90","v":0},0,0,0,0,0,0,0,0,0,0,0]
[null,{"$f":"IF('Costos, gastos, inversiones'!$B$91=\"\",\"\",'Costos, gastos, inversiones'!$B$91)","v":"Renta de maquinaria"},null,{"$f":"'Costos, gastos, inversiones'!$E$91+'Costos, gastos, inversiones'!$F$91","v":0},0,0,0,0,0,0,0,0,0,0,0]
[null,{"$f":"IF('Costos, gastos, inversiones'!$B$92=\"\",\"\",'Costos, gastos, inversiones'!$B$92)","v":"Renta de vehículos"},null,{"$f":"'Costos, gastos, inversiones'!$E$92+'Costos, gastos, inversiones'!$F$92","v":0},0,0,0,0,0,0,0,0,0,0,0]
[null,{"$f":"IF('Costos, gastos, inversiones'!$B$93=\"\",\"\",'Costos, gastos, inversiones'!$B$93)","v":"Seguros y fianzas"},null,{"$f":"'Costos, gastos, inversiones'!$E$93+'Costos, gastos, inversiones'!$F$93","v":0},0,0,0,0,0,0,0,0,0,0,0]
[null,{"$f":"IF('Costos, gastos, inversiones'!$B$94=\"\",\"\",'Costos, gastos, inversiones'!$B$94)","v":"Servicio de seguridad"},null,{"$f":"'Costos, gastos, inversiones'!$E$94+'Costos, gastos, inversiones'!$F$94","v":0},0,0,0,0,0,0,0,0,0,0,0]
[null,{"$f":"IF('Costos, gastos, inversiones'!$B$95=\"\",\"\",'Costos, gastos, inversiones'!$B$95)","v":"Servicio impresión"},null,{"$f":"'Costos, gastos, inversiones'!$E$95+'Costos, gastos, inversiones'!$F$95","v":0},0,0,0,0,0,0,0,0,0,0,0]
[null,{"$f":"IF('Costos, gastos, inversiones'!$B$96=\"\",\"\",'Costos, gastos, inversiones'!$B$96)","v":"Servicios administrativos"},null,{"$f":"'Costos, gastos, inversiones'!$E$96+'Costos, gastos, inversiones'!$F$96","v":0},0,0,0,0,0,0,0,0,0,0,0]
[null,{"$f":"IF('Costos, gastos, inversiones'!$B$97=\"\",\"\",'Costos, gastos, inversiones'!$B$97)","v":"Servicios de consultoría"},null,{"$f":"'Costos, gastos, inversiones'!$E$97+'Costos, gastos, inversiones'!$F$97","v":0},0,0,0,0,0,0,0,0,0,0,0]
[null,{"$f":"IF('Costos, gastos, inversiones'!$B$98=\"\",\"\",'Costos, gastos, inversiones'!$B$98)","v":"Servicios de nomina"},null,{"$f":"'Costos, gastos, inversiones'!$E$98+'Costos, gastos, inversiones'!$F$98","v":0},0,0,0,0,0,0,0,0,0,0,0]
[null,{"$f":"IF('Costos, gastos, inversiones'!$B$99=\"\",\"\",'Costos, gastos, inversiones'!$B$99)","v":"Sueldo del Emprendedor"},null,{"$f":"'Costos, gastos, inversiones'!$E$99+'Costos, gastos, inversiones'!$F$99","v":0},0,0,0,0,0,0,0,0,0,0,0]
[null,{"$f":"IF('Costos, gastos, inversiones'!$B$100=\"\",\"\",'Costos, gastos, inversiones'!$B$100)","v":"Sueldos de trabajadores "},null,{"$f":"'Costos, gastos, inversiones'!$E$100+'Costos, gastos, inversiones'!$F$100","v":0},0,0,0,0,0,0,0,0,0,0,0]
[null,{"$f":"IF('Costos, gastos, inversiones'!$B$101=\"\",\"\",'Costos, gastos, inversiones'!$B$101)","v":"Suscripciones"},null,{"$f":"'Costos, gastos, inversiones'!$E$101+'Costos, gastos, inversiones'!$F$101","v":0},0,0,0,0,0,0,0,0,0,0,0]
[null,{"$f":"IF('Costos, gastos, inversiones'!$B$102=\"\",\"\",'Costos, gastos, inversiones'!$B$102)","v":"Teléfono e internet"},null,{"$f":"'Costos, gastos, inversiones'!$E$102+'Costos, gastos, inversiones'!$F$102","v":0},0,0,0,0,0,0,0,0,0,0,0]
[null,{"$f":"IF('Costos, gastos, inversiones'!$B$103=\"\",\"\",'Costos, gastos, inversiones'!$B$103)","v":"Viáticos"},null,{"$f":"'Costos, gastos, inversiones'!$E$103+'Costos, gastos, inversiones'!$F$103","v":0},0,0,0,0,0,0,0,0,0,0,0]
[null,{"$f":"IF('Costos, gastos, inversiones'!$B$104=\"\",\"\",'Costos, gastos, inversiones'!$B$104)","v":""},null,{"$f":"'Costos, gastos, inversiones'!$E$104+'Costos, gastos, inversiones'!$F$104","v":0},0,0,0,0,0,0,0,0,0,0,0]
[null,{"$f":"IF('Costos, gastos, inversiones'!$B$105=\"\",\"\",'Costos, gastos, inversiones'!$B$105)","v":""},null,{"$f":"'Costos, gastos, inversiones'!$E$105+'Costos, gastos, inversiones'!$F$105","v":0},0,0,0,0,0,0,0,0,0,0,0]
[null,{"$f":"IF('Costos, gastos, inversiones'!$B$106=\"\",\"\",'Costos, gastos, inversiones'!$B$106)","v":""},null,{"$f":"'Costos, gastos, inversiones'!$E$106+'Costos, gastos, inversiones'!$F$106","v":0},0,0,0,0,0,0,0,0,0,0,0]
[null,{"$f":"IF('Costos, gastos, inversiones'!$B$107=\"\",\"\",'Costos, gastos, inversiones'!$B$107)","v":""},null,{"$f":"'Costos, gastos, inversiones'!$E$107+'Costos, gastos, inversiones'!$F$107","v":0},0,0,0,0,0,0,0,0,0,0,0]
[null,{"$f":"IF('Costos, gastos, inversiones'!$B$108=\"\",\"\",'Costos, gastos, inversiones'!$B$108)","v":""},null,{"$f":"'Costos, gastos, inversiones'!$E$108+'Costos, gastos, inversiones'!$F$108","v":0},0,0,0,0,0,0,0,0,0,0,0]
[null,{"$f":"IF('Costos, gastos, inversiones'!$B$109=\"\",\"\",'Costos, gastos, inversiones'!$B$109)","v":""},null,{"$f":"'Costos, gastos, inversiones'!$E$109+'Costos, gastos, inversiones'!$F$109","v":0},0,0,0,0,0,0,0,0,0,0,0]
[null,{"$f":"IF('Costos, gastos, inversiones'!$B$110=\"\",\"\",'Costos, gastos, inversiones'!$B$110)","v":""},null,{"$f":"'Costos, gastos, inversiones'!$E$110+'Costos, gastos, inversiones'!$F$110","v":0},0,0,0,0,0,0,0,0,0,0,{"$f":"SUM(C87:N87)","v":0}]
[null,"Indirectos y generales",null,{"$f":"SUM(D33:D87)","v":0},0,0,0,0,0,0,0,0,0,0,0]
[null,"Total costos y gastos",null,{"$f":"+D32+D88","v":0},0,0,0,0,0,0,0,0,0,0,0]
[null,"Resultado para Impuestos",null,{"$f":"D18-D89","v":0},0,0,0,0,0,0,0,0,0,0,{"$f":"SUM(C90:N90)","v":0}]
[null,"Impuesto sobre la Renta",null,{"$f":"D90*30%","v":0},{"$f":"E90*30%","v":0},0,0,0,0,0,0,0,0,0,{"$f":"SUM(C91:N91)","v":0}]
[null,"RESULTADO NETO",null,{"$f":"D90-D91","v":0},{"$f":"E90-E91","v":0},0,0,0,0,0,0,0,0,0,{"$f":"SUM(C92:N92)","v":0}]
[]
[null,{"$f":"Proyecto","v":0}]
[null,"7.S4 - Pronóstico y presupuesto",null,"Fecha de inicio del proyecto:",null,null,{"$f":"EDATE(FechaInicio,0)","v":"2020-07-06"},"Factor de inflación esperado:",null,null,"Año 2:",{"$f":"InflaciónAño_2","v":0},"Año 3:",{"$f":"InflaciónAño_3","v":0}]
[null,"Año 2",{"$f":"EDATE(FechaInicio,13)","v":"2021-08-06"},{"$f":"EDATE(FechaInicio,14)","v":"2021-09-06"},{"$f":"EDATE(FechaInicio,15)","v":"2021-10-06"},{"$f":"EDATE(FechaInicio,16)","v":"2021-11-06"},{"$f":"EDATE(FechaInicio,17)","v":"2021-12-06"},{"$f":"EDATE(FechaInicio,18)","v":"2022-01-06"},{"$f":"EDATE(FechaInicio,19)","v":"2022-02-06"},{"$f":"EDATE(FechaInicio,20)","v":"2022-03-06"},{"$f":"EDATE(FechaInicio,21)","v":"2022-04-06"},{"$f":"EDATE(FechaInicio,22)","v":"2022-05-06"},{"$f":"EDATE(FechaInicio,23)","v":"2022-06-06"},{"$f":"EDATE(FechaInicio,24)","v":"2022-07-06"},"TOTAL"]
[null,"Pronóstico de ventas"]
[null,"Unidades ",{"$f":"'Costos, gastos, inversiones'!$C$14","v":0},{"$f":"C98","v":0},{"$f":"D98","v":0},0,0,0,0,0,0,0,0,0,{"$f":"SUM(C98:N98)","v":0}]
[null,"Precio unitario",{"$f":"IF(InflaciónAño_2<>0,PVP*(1+InflaciónAño_2),0)","v":0},{"$f":"C99","v":0},{"$f":"D99","v":0},0,0,0,0,0,0,0,0,0]
[null,"Pronóstico de costos directos"]
[null,"Materiales y Mano de obra",{"$f":"IF($A$3=\"Si\",CVD*(1+InflaciónAño_2),0)","v":0},{"$f":"C101","v":0},{"$f":"D101","v":0},0,0,0,0,0,0,0,0,0]
[]
[null,"Presupuesto de operación"]
[null,"Ventas netas",{"$f":"IF(C98>0, C98*C99,0)","v":0},{"$f":"C104","v":0},{"$f":"D104","v":0},{"$f":"E104","v":0},{"$f":"F104","v":0},{"$f":"G104","v":0},{"$f":"H104","v":0},{"$f":"I104","v":0},{"$f":"J104","v":0},{"$f":"K104","v":0},{"$f":"L104","v":0},{"$f":"M104","v":0},{"$f":"SUM(C104:N104)","v":0}]
[null,"Costo de ventas directo",{"$f":"IF(C98>0, C98*C101,0)","v":0},{"$f":"C105","v":0},{"$f":"D105","v":0},0,{"$f":"F105","v":0},0,0,0,0,0,0,0,{"$f":"SUM(C105:N105)","v":0}]
[null,"Utilidad marginal directa",{"$f":"C104-C105","v":0},{"$f":"D104-D105","v":0},0,0,0,0,0,0,0,0,0,0,0]
[null,"Gastos indirectos fijos"]
[null,{"$f":"B20","v":"Edificios y construcciones"},{"$f":"'Costos, gastos, inversiones'!$F$43+'Costos, gastos, inversiones'!$E$43","v":0},{"$f":"C108","v":0},{"$f":"D108","v":0},{"$f":"E108","v":0},{"$f":"F108","v":0},{"$f":"G108","v":0},{"$f":"H108","v":0},{"$f":"I108","v":0},{"$f":"J108","v":0},{"$f":"K108","v":0},{"$f":"L108","v":0},{"$f":"M108","v":0},{"$f":"SUM(C108:N108)","v":0}]
[null,"Maquinaria equipo fabrica",{"$f":"'Costos, gastos, inversiones'!$F$44+'Costos, gastos, inversiones'!$E$44","v":0},{"$f":"C109","v":0},0,0,0,0,0,0,0,0,0,0,{"$f":"SUM(C109:N109)","v":0}]
[null,"Mobiliario  equipo oficina",{"$f":"'Costos, gastos, inversiones'!$F$45+'Costos, gastos, inversiones'!$E$45","v":0},0,0,0,0,0,0,0,0,0,0,0,0]
[null,"Equipo de transporte",{"$f":"'Costos, gastos, inversiones'!$F$46+'Costos, gastos, inversiones'!$E$46","v":0},0,0,0,0,0,0,0,0,0,0,0,0]
[null,"Equipo de computación",{"$f":"'Costos, gastos, inversiones'!$F$47+'Costos, gastos, inversiones'!$E$47","v":0},{"$f":"C112","v":0},{"$f":"D112","v":0},0,0,0,0,0,0,0,0,0,0]
[null,"Habilitación de locales",{"$f":"'Costos, gastos, inversiones'!$F$48+'Costos, gastos, inversiones'!$E$48","v":0},{"$f":"C113","v":0},0,0,0,0,0,0,0,0,0,0,0]
[null,"",{"$f":"'Costos, gastos, inversiones'!$F$49+'Costos, gastos, inversiones'!$E$49","v":0},0,0,0,0,0,0,0,0,0,0,0,0]
[null,"",{"$f":"'Costos, gastos, inversiones'!$F$50+'Costos, gastos, inversiones'!$E$50","v":0},0,0,0,0,0,0,0,0,0,0,0,0]
[null,"",{"$f":"'Costos, gastos, inversiones'!$F$51+'Costos, gastos, inversiones'!$E$51","v":0},0,0,0,0,0,0,0,0,0,0,0,0]
[null,"",{"$f":"'Costos, gastos, inversiones'!$F$52+'Costos, gastos, inversiones'!$E$52","v":0},0,0,0,0,0,0,0,0,0,0,0,0]
[null,"Patentes y marcas",{"$f":"'Costos, gastos, inversiones'!$F$53+'Costos, gastos, inversiones'!$E$53","v":0},0,0,0,0,0,0,0,0,0,0,0,0]
[null,"Activos intangibles",{"$f":"'Costos, gastos, inversiones'!$F$54+'Costos, gastos, inversiones'!$E$54","v":0},0,0,0,0,0,0,0,0,0,0,0,0]
[null,"Depreciaciones",{"$f":"SUM(C108:C119)","v":0},0,0,0,0,0,0,0,0,0,0,0,0]
[null,{"$f":"B33","v":"Agua"},{"$f":"('Costos, gastos, inversiones'!$E$56+'Costos, gastos, inversiones'!$F$56)*(1+InflaciónAño_2)","v":0},{"$f":"C121","v":0},0,{"$f":"E121","v":0},0,{"$f":"G121","v":0},{"$f":"H121","v":0},{"$f":"I121","v":0},{"$f":"J121","v":0},{"$f":"K121","v":0},{"$f":"L121","v":0},{"$f":"M121","v":0},{"$f":"SUM(C121:N121)","v":0}]
[null,"Alarmas de seguridad",{"$f":"('Costos, gastos, inversiones'!$E$57+'Costos, gastos, inversiones'!$F$57)*(1+InflaciónAño_2)","v":0},0,0,0,0,0,0,0,0,0,0,0,{"$f":"SUM(C122:N122)","v":0}]
[null,"Alimentos",{"$f":"('Costos, gastos, inversiones'!$E$58+'Costos, gastos, inversiones'!$F$58)*(1+InflaciónAño_2)","v":0},0,0,0,0,0,0,0,0,0,0,0,0]
[null,"Artículos de limpieza",{"$f":"('Costos, gastos, inversiones'!$E$59+'Costos, gastos, inversiones'!$F$59)*(1+InflaciónAño_2)","v":0},0,0,0,0,0,0,0,0,0,0,0,0]
[null,"Boletos de avión",{"$f":"('Costos, gastos, inversiones'!$E$60+'Costos, gastos, inversiones'!$F$60)*(1+InflaciónAño_2)","v":0},0,0,0,0,0,0,0,0,0,0,0,0]
[null,"Casetas",{"$f":"('Costos, gastos, inversiones'!$E$61+'Costos, gastos, inversiones'!$F$61)*(1+InflaciónAño_2)","v":0},0,0,0,0,0,0,0,0,0,0,0,0]
[null,"Combustible y lubricantes",{"$f":"('Costos, gastos, inversiones'!$E$62+'Costos, gastos, inversiones'!$F$62)*(1+InflaciónAño_2)","v":0},0,0,0,0,0,0,0,0,0,0,0,0]
[null,"Comisiones bancarias",{"$f":"('Costos, gastos, inversiones'!$E$63+'Costos, gastos, inversiones'!$F$63)*(1+InflaciónAño_2)","v":0},0,0,0,0,0,0,0,0,0,0,0,0]
[null,"Copias fotostáticas",{"$f":"('Costos, gastos, inversiones'!$E$64+'Costos, gastos, inversiones'!$F$64)*(1+InflaciónAño_2)","v":0},0,0,0,0,0,0,0,0,0,0,0,0]
[null,"Cuotas y membresías",{"$f":"('Costos, gastos, inversiones'!$E$65+'Costos, gastos, inversiones'!$F$65)*(1+InflaciónAño_2)","v":0},0,0,0,0,0,0,0,0,0,0,0,0]
[null,"Despensa en general",{"$f":"('Costos, gastos, inversiones'!$E$66+'Costos, gastos, inversiones'!$F$66)*(1+InflaciónAño_2)","v":0},0,0,0,0,0,0,0,0,0,0,0,0]
[null,"Dominio de internet",{"$f":"('Costos, gastos, inversiones'!$E$67+'Costos, gastos, inversiones'!$F$67)*(1+InflaciónAño_2)","v":0},0,0,0,0,0,0,0,0,0,0,0,0]
[null,"Energía eléctrica",{"$f":"('Costos, gastos, inversiones'!$E$68+'Costos, gastos, inversiones'!$F$68)*(1+InflaciónAño_2)","v":0},0,0,0,0,0,0,0,0,0,0,0,0]
[null,"Equipo menor cómputo",{"$f":"('Costos, gastos, inversiones'!$E$69+'Costos, gastos, inversiones'!$F$69)*(1+InflaciónAño_2)","v":0},0,0,0,0,0,0,0,0,0,0,0,0]
[null,"Equipo menor de oficina",{"$f":"('Costos, gastos, inversiones'!$E$70+'Costos, gastos, inversiones'!$F$70)*(1+InflaciónAño_2)","v":0},0,0,0,0,0,0,0,0,0,0,0,0]
[null,"Estacionamiento",{"$f":"('Costos, gastos, inversiones'!$E$71+'Costos, gastos, inversiones'!$F$71)*(1+InflaciónAño_2)","v":0},0,0,0,0,0,0,0,0,0,0,0,0]
[null,"Gastos financieros",{"$f":"('Costos, gastos, inversiones'!$E$72+'Costos, gastos, inversiones'!$F$72)*(1+InflaciónAño_2)","v":0},0,0,0,0,0,0,0,0,0,0,0,0]
[null,"Honorarios profesionales",{"$f":"('Costos, gastos, inversiones'!$E$73+'Costos, gastos, inversiones'!$F$73)*(1+InflaciónAño_2)","v":0},0,0,0,0,0,0,0,0,0,0,0,0]
[null,"Hospedaje",{"$f":"('Costos, gastos, inversiones'!$E$74+'Costos, gastos, inversiones'!$F$74)*(1+InflaciónAño_2)","v":0},0,0,0,0,0,0,0,0,0,0,0,0]
[null,"Impuestos y derechos",{"$f":"('Costos, gastos, inversiones'!$E$75+'Costos, gastos, inversiones'!$F$75)*(1+InflaciónAño_2)","v":0},0,0,0,0,0,0,0,0,0,0,0,0]
[null,"Libros y revistas",{"$f":"('Costos, gastos, inversiones'!$E$76+'Costos, gastos, inversiones'!$F$76)*(1+InflaciónAño_2)","v":0},0,0,0,0,0,0,0,0,0,0,0,0]
[null,"Mante. edificio",{"$f":"('Costos, gastos, inversiones'!$E$77+'Costos, gastos, inversiones'!$F$77)*(1+InflaciónAño_2)","v":0},0,0,0,0,0,0,0,0,0,0,0,0]
[null,"Mante. Fábrica",{"$f":"('Costos, gastos, inversiones'!$E$79+'Costos, gastos, inversiones'!$F$79)*(1+InflaciónAño_2)","v":0},{"$f":"C143","v":0},{"$f":"D143","v":0},{"$f":"E143","v":0},{"$f":"F143","v":0},{"$f":"G143","v":0},{"$f":"H143","v":0},{"$f":"I143","v":0},{"$f":"J143","v":0},{"$f":"K143","v":0},{"$f":"L143","v":0},{"$f":"M143","v":0},{"$f":"SUM(C143:N143)","v":0}]
[null,"Mante. oficina",{"$f":"('Costos, gastos, inversiones'!$E$79+'Costos, gastos, inversiones'!$F$79)*(1+InflaciónAño_2)","v":0},0,0,0,0,0,0,0,0,0,0,0,0]
[null,"Mante. vehículos",{"$f":"('Costos, gastos, inversiones'!$E$80+'Costos, gastos, inversiones'!$F$80)*(1+InflaciónAño_2)","v":0},0,0,0,0,0,0,0,0,0,0,0,0]
[null,"Mante. Eq.Cómputo",{"$f":"('Costos, gastos, inversiones'!$E$81+'Costos, gastos, inversiones'!$F$81)*(1+InflaciónAño_2)","v":0},0,0,0,0,0,0,0,0,0,0,0,0]
[null,"Mensajería",{"$f":"('Costos, gastos, inversiones'!$E$82+'Costos, gastos, inversiones'!$F$82)*(1+InflaciónAño_2)","v":0},0,0,0,0,0,0,0,0,0,0,0,0]
[null,"Otros",{"$f":"('Costos, gastos, inversiones'!$E$83+'Costos, gastos, inversiones'!$F$83)*(1+InflaciónAño_2)","v":0},0,0,0,0,0,0,0,0,0,0,0,0]
[null,"Papelería y Art. de oficina",{"$f":"('Costos, gastos, inversiones'!$E$84+'Costos, gastos, inversiones'!$F$84)*(1+InflaciónAño_2)","v":0},0,0,0,0,0,0,0,0,0,0,0,0]
[null,"Paquetería y envíos",{"$f":"('Costos, gastos, inversiones'!$E$85+'Costos, gastos, inversiones'!$F$85)*(1+InflaciónAño_2)","v":0},0,0,0,0,0,0,0,0,0,0,0,0]
[null,"Pasajes y transporte",{"$f":"('Costos, gastos, inversiones'!$E$86+'Costos, gastos, inversiones'!$F$86)*(1+InflaciónAño_2)","v":0},0,0,0,0,0,0,0,0,0,0,0,0]
[null,"Provisión gratificaciones",{"$f":"('Costos, gastos, inversiones'!$E$87+'Costos, gastos, inversiones'!$F$87)*(1+InflaciónAño_2)","v":0},0,0,0,0,0,0,0,0,0,0,0,0]
[null,{"$f":"B65","v":"Publicidad"},{"$f":"('Costos, gastos, inversiones'!$E$88+'Costos, gastos, inversiones'!$F$88)*(1+InflaciónAño_2)","v":0},0,0,0,0,0,0,0,0,0,0,0,0]
[null,"Renta de copiadora",{"$f":"('Costos, gastos, inversiones'!$E$89+'Costos, gastos, inversiones'!$F$89)*(1+InflaciónAño_2)","v":0},0,0,0,0,0,0,0,0,0,0,0,0]
[null,"Renta de locales",{"$f":"('Costos, gastos, inversiones'!$E$90+'Costos, gastos, inversiones'!$F$90)*(1+InflaciónAño_2)","v":0},0,0,0,0,0,0,0,0,0,0,0,0]
[null,"Renta de maquinaria",{"$f":"('Costos, gastos, inversiones'!$E$91+'Costos, gastos, inversiones'!$F$91)*(1+InflaciónAño_2)","v":0},0,0,0,0,0,0,0,0,0,0,0,0]
[null,"Renta de vehículos",{"$f":"('Costos, gastos, inversiones'!$E$92+'Costos, gastos, inversiones'!$F$92)*(1+InflaciónAño_2)","v":0},0,0,0,0,0,0,0,0,0,0,0,0]
[null,"Seguros y fianzas",{"$f":"('Costos, gastos, inversiones'!$E$93+'Costos, gastos, inversiones'!$F$93)*(1+InflaciónAño_2)","v":0},0,0,0,0,0,0,0,0,0,0,0,0]
[null,"Servicio de seguridad",{"$f":"('Costos, gastos, inversiones'!$E$94+'Costos, gastos, inversiones'!$F$94)*(1+InflaciónAño_2)","v":0},0,0,0,0,0,0,0,0,0,0,0,0]
[null,"Servicio impresión",{"$f":"('Costos, gastos, inversiones'!$E$95+'Costos, gastos, inversiones'!$F$95)*(1+InflaciónAño_2)","v":0},0,0,0,0,0,0,0,0,0,0,0,0]
[null,"Servicios administrativos",{"$f":"('Costos, gastos, inversiones'!$E$96+'Costos, gastos, inversiones'!$F$96)*(1+InflaciónAño_2)","v":0},0,0,0,0,0,0,0,0,0,0,0,0]
[null,"Servicios de consultoría",{"$f":"('Costos, gastos, inversiones'!$E$97+'Costos, gastos, inversiones'!$F$97)*(1+InflaciónAño_2)","v":0},0,0,0,0,0,0,0,0,0,0,0,0]
[null,"Servicios de nomina",{"$f":"('Costos, gastos, inversiones'!$E$98+'Costos, gastos, inversiones'!$F$98)*(1+InflaciónAño_2)","v":0},0,0,0,0,0,0,0,0,0,0,0,0]
[null,"Sueldo del Emprendedor",{"$f":"('Costos, gastos, inversiones'!$E$99+'Costos, gastos, inversiones'!$F$99)*(1+InflaciónAño_2)","v":0},0,0,0,0,0,0,0,0,0,0,0,0]
[null,"Sueldos de trabajadores ",{"$f":"('Costos, gastos, inversiones'!$E$100+'Costos, gastos, inversiones'!$F$100)*(1+InflaciónAño_2)","v":0},0,0,0,0,0,0,0,0,0,0,0,0]
[null,"Suscripciones",{"$f":"('Costos, gastos, inversiones'!$E$101+'Costos, gastos, inversiones'!$F$101)*(1+InflaciónAño_2)","v":0},0,0,0,0,0,0,0,0,0,0,0,0]
[null,"Teléfono e internet",{"$f":"('Costos, gastos, inversiones'!$E$102+'Costos, gastos, inversiones'!$F$102)*(1+InflaciónAño_2)","v":0},0,0,0,0,0,0,0,0,0,0,0,0]
[null,"Viáticos",{"$f":"('Costos, gastos, inversiones'!$E$103+'Costos, gastos, inversiones'!$F$103)*(1+InflaciónAño_2)","v":0},0,0,0,0,0,0,0,0,0,0,0,0]
[null,"",{"$f":"('Costos, gastos, inversiones'!$E$104+'Costos, gastos, inversiones'!$F$104)*(1+InflaciónAño_2)","v":0},0,0,0,0,0,0,0,0,0,0,0,0]
[null,"",{"$f":"('Costos, gastos, inversiones'!$E$105+'Costos, gastos, inversiones'!$F$105)*(1+InflaciónAño_2)","v":0},0,0,0,0,0,0,0,0,0,0,0,0]
[null,"",{"$f":"('Costos, gastos, inversiones'!$E$106+'Costos, gastos, inversiones'!$F$106)*(1+InflaciónAño_2)","v":0},0,0,0,0,0,0,0,0,0,0,0,0]
[null,"",{"$f":"('Costos, gastos, inversiones'!$E$107+'Costos, gastos, inversiones'!$F$107)*(1+InflaciónAño_2)","v":0},0,0,0,0,0,0,0,0,0,0,0,0]
[null,"",{"$f":"('Costos, gastos, inversiones'!$E$108+'Costos, gastos, inversiones'!$F$108)*(1+InflaciónAño_2)","v":0},0,0,0,0,0,0,0,0,0,0,0,0]
[null,"",{"$f":"('Costos, gastos, inversiones'!$E$109+'Costos, gastos, inversiones'!$F$109)*(1+InflaciónAño_2)","v":0},0,0,0,0,0,0,0,0,0,0,0,0]
[null,"",{"$f":"('Costos, gastos, inversiones'!$E$110+'Costos, gastos, inversiones'!$F$110)*(1+InflaciónAño_2)","v":0},0,0,0,0,0,0,0,0,0,0,0,0]
[null,"Indirectos y generales",{"$f":"SUM(C121:C175)","v":0},0,0,0,0,0,0,0,0,0,0,0,0]
[null,"Total costos y gastos",{"$f":"+C120+C176","v":0},0,0,0,0,0,0,0,0,0,0,0,0]
[null,"Resultado para Impuestos",{"$f":"C106-C177","v":0},0,0,0,0,0,0,0,0,0,0,0,{"$f":"SUM(C178:N178)","v":0}]
[null,"Impuesto sobre la Renta",{"$f":"C178*30%","v":0},{"$f":"D178*30%","v":0},{"$f":"E178*30%","v":0},0,0,0,0,0,0,0,0,0,{"$f":"SUM(C179:N179)","v":0}]
[null,"RESULTADO NETO",{"$f":"C178-C179","v":0},{"$f":"D178-D179","v":0},{"$f":"E178-E179","v":0},0,0,0,0,0,0,0,0,0,{"$f":"SUM(C180:N180)","v":0}]
[]
[null,{"$f":"Proyecto","v":0}]
[null,"7.S4 - Pronóstico y presupuesto",null,"Fecha de inicio del proyecto:",null,null,{"$f":"EDATE(FechaInicio,0)","v":"2020-07-06"},"Factor de inflación esperado:",null,null,"Año 2:",{"$f":"InflaciónAño_2","v":0},"Año 3:",{"$f":"InflaciónAño_3","v":0}]
[null,"Año 3",{"$f":"EDATE(FechaInicio,25)","v":"2022-08-06"},{"$f":"EDATE(FechaInicio,26)","v":"2022-09-06"},{"$f":"EDATE(FechaInicio,27)","v":"2022-10-06"},{"$f":"EDATE(FechaInicio,28)","v":"2022-11-06"},{"$f":"EDATE(FechaInicio,29)","v":"2022-12-06"},{"$f":"EDATE(FechaInicio,30)","v":"2023-01-06"},{"$f":"EDATE(FechaInicio,31)","v":"2023-02-06"},{"$f":"EDATE(FechaInicio,32)","v":"2023-03-06"},{"$f":"EDATE(FechaInicio,33)","v":"2023-04-06"},{"$f":"EDATE(FechaInicio,34)","v":"2023-05-06"},{"$f":"EDATE(FechaInicio,35)","v":"2023-06-06"},{"$f":"EDATE(FechaInicio,36)","v":"2023-07-06"},"TOTAL"]
[null,"Pronóstico de ventas"]
[null,"Unidades ",{"$f":"'Costos, gastos, inversiones'!$C$14","v":0},{"$f":"C186","v":0},{"$f":"D186","v":0},0,0,0,0,0,0,0,0,0,{"$f":"SUM(C186:N186)","v":0}]
[null,"Precio unitario",{"$f":"IF(InflaciónAño_2<>0,(PVP*(1+InflaciónAño_2)*(1+InflaciónAño_3)),0)","v":0},{"$f":"C187","v":0},{"$f":"D187","v":0},0,0,0,0,0,0,0,0,0]
[null,"Pronóstico de costos directos"]
[null,"Materiales y Mano de obra",{"$f":"IF($A$3=\"Si\",(CVD*(1+InflaciónAño_2)*(1+InflaciónAño_3)),0)","v":0},{"$f":"C189","v":0},{"$f":"D189","v":0},0,0,0,0,0,0,0,0,0]
[]
[null,"Presupuesto de operación"]
[null,"Ventas netas",{"$f":"IF(C186>0, C186*C187,0)","v":0},{"$f":"C192","v":0},{"$f":"D192","v":0},{"$f":"E192","v":0},{"$f":"F192","v":0},{"$f":"G192","v":0},{"$f":"H192","v":0},{"$f":"I192","v":0},{"$f":"J192","v":0},{"$f":"K192","v":0},{"$f":"L192","v":0},{"$f":"M192","v":0},{"$f":"SUM(C192:N192)","v":0}]
[null,"Costo de ventas directo",{"$f":"IF(C186>0, C186*C189,0)","v":0},{"$f":"C193","v":0},{"$f":"D193","v":0},0,{"$f":"F193","v":0},0,0,0,0,0,0,0,{"$f":"SUM(C193:N193)","v":0}]
[null,"Utilidad marginal directa",{"$f":"C192-C193","v":0},{"$f":"D192-D193","v":0},0,0,0,0,0,0,0,0,0,0,{"$f":"O192-O193","v":0}]
[null,"Gastos indirectos fijos"]
[null,{"$f":"B108","v":"Edificios y construcciones"},{"$f":"'Costos, gastos, inversiones'!$F$43+'Costos, gastos, inversiones'!$E$43","v":0},{"$f":"C196","v":0},0,{"$f":"E196","v":0},{"$f":"F196","v":0},{"$f":"G196","v":0},{"$f":"H196","v":0},{"$f":"I196","v":0},{"$f":"J196","v":0},{"$f":"K196","v":0},{"$f":"L196","v":0},{"$f":"M196","v":0},{"$f":"SUM(C196:N196)","v":0}]
[null,"Maquinaria equipo fabrica",{"$f":"'Costos, gastos, inversiones'!$F$44+'Costos, gastos, inversiones'!$E$44","v":0},0,0,0,{"$f":"F197","v":0},0,0,0,0,0,0,0,{"$f":"SUM(C197:N197)","v":0}]
[null,"Mobiliario  equipo oficina",{"$f":"'Costos, gastos, inversiones'!$F$45+'Costos, gastos, inversiones'!$E$45","v":0},0,0,0,0,0,0,0,0,0,0,0,0]
[null,"Equipo de transporte",{"$f":"'Costos, gastos, inversiones'!$F$46+'Costos, gastos, inversiones'!$E$46","v":0},0,0,0,0,0,0,0,0,0,0,0,0]
[null,"Equipo de computación",{"$f":"'Costos, gastos, inversiones'!$F$47+'Costos, gastos, inversiones'!$E$47","v":0},0,0,0,0,0,0,0,0,0,0,0,0]
[null,"Habilitación de locales",{"$f":"'Costos, gastos, inversiones'!$F$48+'Costos, gastos, inversiones'!$E$48","v":0},{"$f":"C201","v":0},{"$f":"D201","v":0},0,0,0,0,0,0,0,0,0,0]
[null,"",{"$f":"'Costos, gastos, inversiones'!$F$49+'Costos, gastos, inversiones'!$E$49","v":0},0,0,0,0,0,0,0,0,0,0,0,0]
[null,"",{"$f":"'Costos, gastos, inversiones'!$F$50+'Costos, gastos, inversiones'!$E$50","v":0},0,0,0,0,0,0,0,0,0,0,0,0]
[null,"",{"$f":"'Costos, gastos, inversiones'!$F$51+'Costos, gastos, inversiones'!$E$51","v":0},0,0,0,0,0,0,0,0,0,0,0,0]
[null,"",{"$f":"'Costos, gastos, inversiones'!$F$52+'Costos, gastos, inversiones'!$E$52","v":0},0,0,0,0,0,0,0,0,0,0,0,0]
[null,"Patentes y marcas",{"$f":"'Costos, gastos, inversiones'!$F$53+'Costos, gastos, inversiones'!$E$53","v":0},0,0,0,0,0,0,0,0,0,0,0,0]
[null,"Activos intangibles",{"$f":"'Costos, gastos, inversiones'!$F$54+'Costos, gastos, inversiones'!$E$54","v":0},0,0,0,0,0,0,0,0,0,0,0,0]
[null,"Depreciaciones",{"$f":"SUM(C196:C207)","v":0},0,0,0,0,0,0,0,0,0,0,0,0]
[null,{"$f":"B121","v":"Agua"},{"$f":"(('Costos, gastos, inversiones'!$E$56+'Costos, gastos, inversiones'!$F$56)*(1+InflaciónAño_2))*(1+InflaciónAño_3)","v":0},{"$f":"C209","v":0},{"$f":"D209","v":0},{"$f":"E209","v":0},{"$f":"F209","v":0},{"$f":"G209","v":0},{"$f":"H209","v":0},{"$f":"I209","v":0},{"$f":"J209","v":0},{"$f":"K209","v":0},{"$f":"L209","v":0},{"$f":"M209","v":0},{"$f":"SUM(C209:N209)","v":0}]
[null,"Alarmas de seguridad",{"$f":"(('Costos, gastos, inversiones'!$E$57+'Costos, gastos, inversiones'!$F$57)*(1+InflaciónAño_2))*(1+InflaciónAño_3)","v":0},0,0,0,0,0,0,0,0,0,0,0,{"$f":"SUM(C210:N210)","v":0}]
[null,"Alimentos",{"$f":"(('Costos, gastos, inversiones'!$E$58+'Costos, gastos, inversiones'!$F$58)*(1+InflaciónAño_2))*(1+InflaciónAño_3)","v":0},0,0,0,0,0,0,0,0,0,0,0,0]
[null,"Artículos de limpieza",{"$f":"(('Costos, gastos, inversiones'!$E$59+'Costos, gastos, inversiones'!$F$59)*(1+InflaciónAño_2))*(1+InflaciónAño_3)","v":0},0,0,0,0,0,0,0,0,0,0,0,0]
[null,"Boletos de avión",{"$f":"(('Costos, gastos, inversiones'!$E$60+'Costos, gastos, inversiones'!$F$60)*(1+InflaciónAño_2))*(1+InflaciónAño_3)","v":0},0,0,0,0,0,0,0,0,0,0,0,0]
[null,"Casetas",{"$f":"(('Costos, gastos, inversiones'!$E$61+'Costos, gastos, inversiones'!$F$61)*(1+InflaciónAño_2))*(1+InflaciónAño_3)","v":0},0,0,0,0,0,0,0,0,0,0,0,0]
[null,"Combustible y lubricantes",{"$f":"(('Costos, gastos, inversiones'!$E$62+'Costos, gastos, inversiones'!$F$62)*(1+InflaciónAño_2))*(1+InflaciónAño_3)","v":0},0,0,0,0,0,0,0,0,0,0,0,0]
[null,"Comisiones bancarias",{"$f":"(('Costos, gastos, inversiones'!$E$63+'Costos, gastos, inversiones'!$F$63)*(1+InflaciónAño_2))*(1+InflaciónAño_3)","v":0},0,0,0,0,0,0,0,0,0,0,0,0]
[null,"Copias fotostáticas",{"$f":"(('Costos, gastos, inversiones'!$E$64+'Costos, gastos, inversiones'!$F$64)*(1+InflaciónAño_2))*(1+InflaciónAño_3)","v":0},0,0,0,0,0,0,0,0,0,0,0,0]
[null,"Cuotas y membresías",{"$f":"(('Costos, gastos, inversiones'!$E$65+'Costos, gastos, inversiones'!$F$65)*(1+InflaciónAño_2))*(1+InflaciónAño_3)","v":0},0,0,0,0,0,0,0,0,0,0,0,0]
[null,"Despensa en general",{"$f":"(('Costos, gastos, inversiones'!$E$66+'Costos, gastos, inversiones'!$F$66)*(1+InflaciónAño_2))*(1+InflaciónAño_3)","v":0},0,0,0,0,0,0,0,0,0,0,0,0]
[null,"Dominio de internet",{"$f":"(('Costos, gastos, inversiones'!$E$67+'Costos, gastos, inversiones'!$F$67)*(1+InflaciónAño_2))*(1+InflaciónAño_3)","v":0},0,0,0,0,0,0,0,0,0,0,0,0]
[null,"Energía eléctrica",{"$f":"(('Costos, gastos, inversiones'!$E$68+'Costos, gastos, inversiones'!$F$68)*(1+InflaciónAño_2))*(1+InflaciónAño_3)","v":0},0,0,0,0,0,0,0,0,0,0,0,0]
[null,"Equipo menor cómputo",{"$f":"(('Costos, gastos, inversiones'!$E$69+'Costos, gastos, inversiones'!$F$69)*(1+InflaciónAño_2))*(1+InflaciónAño_3)","v":0},0,0,0,0,0,0,0,0,0,0,0,0]
[null,"Equipo menor de oficina",{"$f":"(('Costos, gastos, inversiones'!$E$70+'Costos, gastos, inversiones'!$F$70)*(1+InflaciónAño_2))*(1+InflaciónAño_3)","v":0},0,0,0,0,0,0,0,0,0,0,0,0]
[null,"Estacionamiento",{"$f":"(('Costos, gastos, inversiones'!$E$71+'Costos, gastos, inversiones'!$F$71)*(1+InflaciónAño_2))*(1+InflaciónAño_3)","v":0},0,0,0,0,0,0,0,0,0,0,0,0]
[null,"Gastos financieros",{"$f":"(('Costos, gastos, inversiones'!$E$72+'Costos, gastos, inversiones'!$F$72)*(1+InflaciónAño_2))*(1+InflaciónAño_3)","v":0},0,0,0,0,0,0,0,0,0,0,0,0]
[null,"Honorarios profesionales",{"$f":"(('Costos, gastos, inversiones'!$E$73+'Costos, gastos, inversiones'!$F$73)*(1+InflaciónAño_2))*(1+InflaciónAño_3)","v":0},0,0,0,0,0,0,0,0,0,0,0,0]
[null,"Hospedaje",{"$f":"(('Costos, gastos, inversiones'!$E$74+'Costos, gastos, inversiones'!$F$74)*(1+InflaciónAño_2))*(1+InflaciónAño_3)","v":0},0,0,0,0,0,0,0,0,0,0,0,0]
[null,"Impuestos y derechos",{"$f":"(('Costos, gastos, inversiones'!$E$75+'Costos, gastos, inversiones'!$F$75)*(1+InflaciónAño_2))*(1+InflaciónAño_3)","v":0},0,0,0,0,0,0,0,0,0,0,0,0]
[null,"Libros y revistas",{"$f":"(('Costos, gastos, inversiones'!$E$76+'Costos, gastos, inversiones'!$F$76)*(1+InflaciónAño_2))*(1+InflaciónAño_3)","v":0},0,0,0,0,0,0,0,0,0,0,0,0]
[null,"Mante. edificio",{"$f":"(('Costos, gastos, inversiones'!$E$77+'Costos, gastos, inversiones'!$F$77)*(1+InflaciónAño_2))*(1+InflaciónAño_3)","v":0},0,0,0,0,0,0,0,0,0,0,0,0]
[null,"Mante. Fábrica",{"$f":"(('Costos, gastos, inversiones'!$E$79+'Costos, gastos, inversiones'!$F$79)*(1+InflaciónAño_2))*(1+InflaciónAño_3)","v":0},{"$f":"C231","v":0},{"$f":"D231","v":0},{"$f":"E231","v":0},{"$f":"F231","v":0},{"$f":"G231","v":0},{"$f":"H231","v":0},{"$f":"I231","v":0},{"$f":"J231","v":0},{"$f":"K231","v":0},{"$f":"L231","v":0},{"$f":"M231","v":0},{"$f":"SUM(C231:N231)","v":0}]
[null,"Mante. oficina",{"$f":"(('Costos, gastos, inversiones'!$E$79+'Costos, gastos, inversiones'!$F$79)*(1+InflaciónAño_2))*(1+InflaciónAño_3)","v":0},0,0,0,0,0,0,0,0,0,0,0,0]
[null,"Mante. vehículos",{"$f":"(('Costos, gastos, inversiones'!$E$80+'Costos, gastos, inversiones'!$F$80)*(1+InflaciónAño_2))*(1+InflaciónAño_3)","v":0},0,0,0,0,0,0,0,0,0,0,0,0]
[null,"Mante. Eq.Cómputo",{"$f":"(('Costos, gastos, inversiones'!$E$81+'Costos, gastos, inversiones'!$F$81)*(1+InflaciónAño_2))*(1+InflaciónAño_3)","v":0},0,0,0,0,0,0,0,0,0,0,0,0]
[null,"Mensajería",{"$f":"(('Costos, gastos, inversiones'!$E$82+'Costos, gastos, inversiones'!$F$82)*(1+InflaciónAño_2))*(1+InflaciónAño_3)","v":0},0,0,0,0,0,0,0,0,0,0,0,0]
[null,"Otros",{"$f":"(('Costos, gastos, inversiones'!$E$83+'Costos, gastos, inversiones'!$F$83)*(1+InflaciónAño_2))*(1+InflaciónAño_3)","v":0},0,0,0,0,0,0,0,0,0,0,0,0]
[null,"Papelería y Art. de oficina",{"$f":"(('Costos, gastos, inversiones'!$E$84+'Costos, gastos, inversiones'!$F$84)*(1+InflaciónAño_2))*(1+InflaciónAño_3)","v":0},0,0,0,0,0,0,0,0,0,0,0,0]
[null,"Paquetería y envíos",{"$f":"(('Costos, gastos, inversiones'!$E$85+'Costos, gastos, inversiones'!$F$85)*(1+InflaciónAño_2))*(1+InflaciónAño_3)","v":0},0,0,0,0,0,0,0,0,0,0,0,0]
[null,"Pasajes y transporte",{"$f":"(('Costos, gastos, inversiones'!$E$86+'Costos, gastos, inversiones'!$F$86)*(1+InflaciónAño_2))*(1+InflaciónAño_3)","v":0},0,0,0,0,0,0,0,0,0,0,0,0]
[null,"Provisión gratificaciones",{"$f":"(('Costos, gastos, inversiones'!$E$87+'Costos, gastos, inversiones'!$F$87)*(1+InflaciónAño_2))*(1+InflaciónAño_3)","v":0},0,0,0,0,0,0,0,0,0,0,0,0]
[null,{"$f":"B153","v":"Publicidad"},{"$f":"(('Costos, gastos, inversiones'!$E$88+'Costos, gastos, inversiones'!$F$88)*(1+InflaciónAño_2))*(1+InflaciónAño_3)","v":0},0,0,0,0,0,0,0,0,0,0,0,0]
[null,"Renta de copiadora",{"$f":"(('Costos, gastos, inversiones'!$E$89+'Costos, gastos, inversiones'!$F$89)*(1+InflaciónAño_2))*(1+InflaciónAño_3)","v":0},0,0,0,0,0,0,0,0,0,0,0,0]
[null,"Renta de locales",{"$f":"(('Costos, gastos, inversiones'!$E$90+'Costos, gastos, inversiones'!$F$90)*(1+InflaciónAño_2))*(1+InflaciónAño_3)","v":0},0,0,0,0,0,0,0,0,0,0,0,0]
[null,"Renta de maquinaria",{"$f":"(('Costos, gastos, inversiones'!$E$91+'Costos, gastos, inversiones'!$F$91)*(1+InflaciónAño_2))*(1+InflaciónAño_3)","v":0},0,0,0,0,0,0,0,0,0,0,0,0]
[null,"Renta de vehículos",{"$f":"(('Costos, gastos, inversiones'!$E$92+'Costos, gastos, inversiones'!$F$92)*(1+InflaciónAño_2))*(1+InflaciónAño_3)","v":0},0,0,0,0,0,0,0,0,0,0,0,0]
[null,"Seguros y fianzas",{"$f":"(('Costos, gastos, inversiones'!$E$93+'Costos, gastos, inversiones'!$F$93)*(1+InflaciónAño_2))*(1+InflaciónAño_3)","v":0},0,0,0,0,0,0,0,0,0,0,0,0]
[null,"Servicio de seguridad",{"$f":"(('Costos, gastos, inversiones'!$E$94+'Costos, gastos, inversiones'!$F$94)*(1+InflaciónAño_2))*(1+InflaciónAño_3)","v":0},0,0,0,0,0,0,0,0,0,0,0,0]
[null,"Servicio impresión",{"$f":"(('Costos, gastos, inversiones'!$E$95+'Costos, gastos, inversiones'!$F$95)*(1+InflaciónAño_2))*(1+InflaciónAño_3)","v":0},0,0,0,0,0,0,0,0,0,0,0,0]
[null,"Servicios administrativos",{"$f":"(('Costos, gastos, inversiones'!$E$96+'Costos, gastos, inversiones'!$F$96)*(1+InflaciónAño_2))*(1+InflaciónAño_3)","v":0},0,0,0,0,0,0,0,0,0,0,0,0]
[null,"Servicios de consultoría",{"$f":"(('Costos, gastos, inversiones'!$E$97+'Costos, gastos, inversiones'!$F$97)*(1+InflaciónAño_2))*(1+InflaciónAño_3)","v":0},0,0,0,0,0,0,0,0,0,0,0,0]
[null,"Servicios de nomina",{"$f":"(('Costos, gastos, inversiones'!$E$98+'Costos, gastos, inversiones'!$F$98)*(1+InflaciónAño_2))*(1+InflaciónAño_3)","v":0},0,0,0,0,0,0,0,0,0,0,0,0]
[null,"Sueldo del Emprendedor",{"$f":"(('Costos, gastos, inversiones'!$E$99+'Costos, gastos, inversiones'!$F$99)*(1+InflaciónAño_2))*(1+InflaciónAño_3)","v":0},0,0,0,0,0,0,0,0,0,0,0,0]
[null,"Sueldos de trabajadores ",{"$f":"(('Costos, gastos, inversiones'!$E$100+'Costos, gastos, inversiones'!$F$100)*(1+InflaciónAño_2))*(1+InflaciónAño_3)","v":0},0,0,0,0,0,0,0,0,0,0,0,0]
[null,"Suscripciones",{"$f":"(('Costos, gastos, inversiones'!$E$101+'Costos, gastos, inversiones'!$F$101)*(1+InflaciónAño_2))*(1+InflaciónAño_3)","v":0},0,0,0,0,0,0,0,0,0,0,0,0]
[null,"Teléfono e internet",{"$f":"(('Costos, gastos, inversiones'!$E$102+'Costos, gastos, inversiones'!$F$102)*(1+InflaciónAño_2))*(1+InflaciónAño_3)","v":0},0,0,0,0,0,0,0,0,0,0,0,0]
[null,"Viáticos",{"$f":"(('Costos, gastos, inversiones'!$E$103+'Costos, gastos, inversiones'!$F$103)*(1+InflaciónAño_2))*(1+InflaciónAño_3)","v":0},0,0,0,0,0,0,0,0,0,0,0,0]
[null,"",{"$f":"(('Costos, gastos, inversiones'!$E$104+'Costos, gastos, inversiones'!$F$104)*(1+InflaciónAño_2))*(1+InflaciónAño_3)","v":0},0,0,0,0,0,0,0,0,0,0,0,0]
[null,"",{"$f":"(('Costos, gastos, inversiones'!$E$105+'Costos, gastos, inversiones'!$F$105)*(1+InflaciónAño_2))*(1+InflaciónAño_3)","v":0},0,0,0,0,0,0,0,0,0,0,0,0]
[null,"",{"$f":"(('Costos, gastos, inversiones'!$E$106+'Costos, gastos, inversiones'!$F$106)*(1+InflaciónAño_2))*(1+InflaciónAño_3)","v":0},0,0,0,0,0,0,0,0,0,0,0,0]
[null,"",{"$f":"(('Costos, gastos, inversiones'!$E$107+'Costos, gastos, inversiones'!$F$107)*(1+InflaciónAño_2))*(1+InflaciónAño_3)","v":0},0,0,0,0,0,0,0,0,0,0,0,0]
[null,"",{"$f":"(('Costos, gastos, inversiones'!$E$108+'Costos, gastos, inversiones'!$F$108)*(1+InflaciónAño_2))*(1+InflaciónAño_3)","v":0},0,0,0,0,0,0,0,0,0,0,0,0]
[null,"",{"$f":"(('Costos, gastos, inversiones'!$E$109+'Costos, gastos, inversiones'!$F$109)*(1+InflaciónAño_2))*(1+InflaciónAño_3)","v":0},0,0,0,0,0,0,0,0,0,0,0,0]
[null,"",{"$f":"(('Costos, gastos, inversiones'!$E$110+'Costos, gastos, inversiones'!$F$110)*(1+InflaciónAño_2))*(1+InflaciónAño_3)","v":0},0,0,0,0,0,0,0,0,0,0,0,0]
[null,"Indirectos y generales",{"$f":"SUM(C209:C263)","v":0},0,0,0,0,0,0,0,0,0,0,0,0]
[null,"Total costos y gastos",{"$f":"+C208+C264","v":0},0,0,0,0,0,0,0,0,0,0,0,0]
[null,"Resultado para Impuestos",{"$f":"C194-C265","v":0},0,0,0,0,0,0,0,0,0,0,0,{"$f":"SUM(C266:N266)","v":0}]
[null,"Impuesto sobre la Renta",{"$f":"C266*30%","v":0},{"$f":"D266*30%","v":0},{"$f":"E266*30%","v":0},0,0,0,0,0,0,0,0,0,{"$f":"SUM(C267:N267)","v":0}]
[null,"RESULTADO NETO",{"$f":"C266-C267","v":0},{"$f":"D266-D267","v":0},{"$f":"E266-E267","v":0},0,0,0,0,0,0,0,0,0,{"$f":"SUM(C268:N268)","v":0}]

{"sheet":"Pronóstico presupuesto-Manual","index":8,"n_rows":289,"n_cols":16,"rows_kept":289,"cut":false,"hidden":true,"merged":[[0,1,1,14],[2,1,2,14],[3,1,6,14],[8,1,8,13],[9,0,11,0],[9,1,11,14],[201,3,201,5],[110,1,110,14],[111,3,111,5],[200,1,200,14],[12,1,13,14],[14,1,17,14],[19,1,19,13],[20,1,20,14],[21,3,21,5],[18,7,18,8],[21,7,21,9],[111,7,111,9],[201,7,201,9],[18,1,18,6]]}
[null,"De emprendedor a empresario: haga que su negocio ¡sea negocio! - Simulador Financiero",null,null,null,null,null,null,null,null,null,null,null,null,null,184]
[]
[null,"Objetivo de este ejercicio"]
[null,"El presupuesto es un plan de acción dirigido a cumplir una meta prevista, expresada en valores y términos financieros, en un determinado tiempo y bajo ciertas condiciones. Los presupuestos son importantes porque ayudan a minimizar el riesgo en las operaciones de la organización; por medio de estos  se mantiene el plan de operaciones de la empresa en límites razonables. Los presupuestos también sirven como mecanismo para revisar políticas y estrategias de la empresa, permitiendo direccionarlas hacia lo que en realidad se busca. \n\n"]
[]
[]
[]
[]
[null,"Información requerida"]
["No","La base del presupuesto es el pronóstico de ventas. Todos los ingresos pronosticados para el ejercicio, producto de las ventas y las operaciones de la empresa. Todos los gastos, sin impuestos trasladados, pronosticados en el ejercicio y relacionados en forma directa con la actividad operativa de la empresa. Las depreciaciones o amortizaciones de los activos propiedad de la empresa."]
[]
[]
[null,"El presupuesto tiene una finalidad operativa y es una herramienta básica para la gestión cotidiana; por tanto, su estructura y datos deben reflejar lo que resulta esencial para la empresa. Para realizar el mejor ejercicio posible, tome en cuenta las recomendaciones contenidas en el libro. "]
[]
[null,"Si opta por usar los datos de hojas anteriores, tome en cuenta que deberá introducir volumen de unidades a vender en cada mes, el resto será calculado; para los años subsiguientes, podrá indicar el factor de inflación esperado para calcular el incremento en precio de venta, costos y gastos. En caso de requerir hacer modificaciones particulares, entonces se debe optar por no usar datos calculados. Si desea introducir nuevos datos, seleccione en la siguiente línea si serán unitarios o para un grupo de productos y/o servicios. "]
[]
[]
[]
[null,"Seleccione si los datos a introducir serán unitarios o grupales:",null,null,null,null,null,"Unitarios"]
[null,"Cédula de trabajo"]
[null,{"$f":"Proyecto","v":0}]
[null,"7.S4 - Pronóstico y presupuesto",null,"Fecha de inicio del proyecto:",null,null,{"$f":"EDATE(FechaInicio,0)","v":"2020-07-06"},"Factor de inflación esperado:",null,null,"Año 2:",null,"Año 3:"]
[null,"Año 1",{"$f":"EDATE(FechaInicio,0)","v":"2020-07-06"},{"$f":"EDATE(FechaInicio,1)","v":"2020-08-06"},{"$f":"EDATE(FechaInicio,2)","v":"2020-09-06"},{"$f":"EDATE(FechaInicio,3)","v":"2020-10-06"},{"$f":"EDATE(FechaInicio,4)","v":"2020-11-06"},{"$f":"EDATE(FechaInicio,5)","v":"2020-12-06"},{"$f":"EDATE(FechaInicio,6)","v":"2021-01-06"},{"$f":"EDATE(FechaInicio,7)","v":"2021-02-06"},{"$f":"EDATE(FechaInicio,8)","v":"2021-03-06"},{"$f":"EDATE(FechaInicio,9)","v":"2021-04-06"},{"$f":"EDATE(FechaInicio,10)","v":"2021-05-06"},{"$f":"EDATE(FechaInicio,11)","v":"2021-06-06"},"TOTAL"]
[null,"Pronóstico de ventas"]
[null,"Unidades ",null,null,null,null,null,null,null,null,null,null,null,null,{"$f":"SUM(C25:N25)","v":0}]
[null,"Precio unitario",null,0,{"$f":"D26","v":0},{"$f":"E26","v":0},0,0,0,0,0,0,0,0]
[null,"Venta mensual",null,null,null,null,null,null,null,null,null,null,null,null,{"$f":"SUM(C27:N27)","v":0}]
[null,"Pronóstico de costos directos"]
[null,"Materiales y Mano de obra",null,0,{"$f":"D29","v":0},{"$f":"E29","v":0},0,0,0,0,0,0,0,0]
[null,"Costo directo mensual",null,null,null,null,null,null,null,null,null,null,null,null,{"$f":"SUM(C30:N30)","v":0}]
[]
[null,"Presupuesto de operación"]
[null,"Ventas netas",null,{"$f":"IF(D25>0, D25*D26,IF(D27>0,D27,0))","v":0},{"$f":"IF(E25>0, E25*E26,IF(E27>0,E27,0))","v":0},0,0,0,0,0,0,0,0,0,{"$f":"SUM(C33:N33)","v":0}]
[null,"Costo de ventas directo",null,{"$f":"IF(D25>0, D25*D29,IF(D27>0,D30,0))","v":0},{"$f":"IF(E25>0, E25*E29,IF(E27>0,E30,0))","v":0},0,0,0,0,0,0,0,0,0,{"$f":"SUM(C34:N34)","v":0}]
[null,"Utilidad marginal directa",null,{"$f":"D33-D34","v":0},0,0,0,0,0,0,0,0,0,0,0]
[null,"Gastos indirectos fijos"]
[null,{"$f":"IF('Costos, gastos, inversiones'!B43=\"\",\"\",'Costos, gastos, inversiones'!B43)","v":"Edificios y construcciones"},null,{"$f":"'Costos, gastos, inversiones'!$F$43+'Costos, gastos, inversiones'!$E$43","v":0},{"$f":"D37","v":0},{"$f":"E37","v":0},{"$f":"F37","v":0},0,0,0,0,0,0,0,{"$f":"SUM(C37:N37)","v":0}]
[null,{"$f":"IF('Costos, gastos, inversiones'!B44=\"\",\"\",'Costos, gastos, inversiones'!B44)","v":"Maquinaria equipo fabrica"},null,{"$f":"'Costos, gastos, inversiones'!$F$44+'Costos, gastos, inversiones'!$E$44","v":0},{"$f":"D38","v":0},0,0,0,0,0,0,0,0,0,{"$f":"SUM(C38:N38)","v":0}]
[null,{"$f":"IF('Costos, gastos, inversiones'!B45=\"\",\"\",'Costos, gastos, inversiones'!B45)","v":"Mobiliario  equipo oficina"},null,{"$f":"'Costos, gastos, inversiones'!$F$45+'Costos, gastos, inversiones'!$E$45","v":0},0,0,0,0,0,0,0,0,0,0,0]
[null,{"$f":"IF('Costos, gastos, inversiones'!B46=\"\",\"\",'Costos, gastos, inversiones'!B46)","v":"Equipo de transporte"},null,{"$f":"'Costos, gastos, inversiones'!$F$46+'Costos, gastos, inversiones'!$E$46","v":0},0,0,0,0,0,0,0,0,0,0,0]
[null,{"$f":"IF('Costos, gastos, inversiones'!B47=\"\",\"\",'Costos, gastos, inversiones'!B47)","v":"Equipo de computación"},null,{"$f":"'Costos, gastos, inversiones'!$F$47+'Costos, gastos, inversiones'!$E$47","v":0},{"$f":"D41","v":0},0,0,0,0,0,0,0,0,0,0]
[null,{"$f":"IF('Costos, gastos, inversiones'!B48=\"\",\"\",'Costos, gastos, inversiones'!B48)","v":"Habilitación de locales"},null,{"$f":"'Costos, gastos, inversiones'!$F$48+'Costos, gastos, inversiones'!$E$48","v":0},0,0,0,0,0,0,0,0,0,0,0]
[null,{"$f":"IF('Costos, gastos, inversiones'!B49=\"\",\"\",'Costos, gastos, inversiones'!B49)","v":""},null,{"$f":"'Costos, gastos, inversiones'!$F$49+'Costos, gastos, inversiones'!$E$49","v":0},0,0,0,0,0,0,0,0,0,0,0]
[null,{"$f":"IF('Costos, gastos, inversiones'!B50=\"\",\"\",'Costos, gastos, inversiones'!B50)","v":""},null,{"$f":"'Costos, gastos, inversiones'!$F$50+'Costos, gastos, inversiones'!$E$50","v":0},0,0,0,0,0,0,0,0,0,0,0]
[null,{"$f":"IF('Costos, gastos, inversiones'!B51=\"\",\"\",'Costos, gastos, inversiones'!B51)","v":""},null,{"$f":"'Costos, gastos, inversiones'!$F$51+'Costos, gastos, inversiones'!$E$51","v":0},0,0,0,0,0,0,0,0,0,0,0]
[null,{"$f":"IF('Costos, gastos, inversiones'!B52=\"\",\"\",'Costos, gastos, inversiones'!B52)","v":""},null,{"$f":"'Costos, gastos, inversiones'!$F$52+'Costos, gastos, inversiones'!$E$52","v":0},0,0,0,0,0,0,0,0,0,0,0]
[null,{"$f":"IF('Costos, gastos, inversiones'!B53=\"\",\"\",'Costos, gastos, inversiones'!B53)","v":"Patentes y marcas"},null,{"$f":"'Costos, gastos, inversiones'!$F$53+'Costos, gastos, inversiones'!$E$53","v":0},0,0,0,0,0,0,0,0,0,0,0]
[null,{"$f":"IF('Costos, gastos, inversiones'!B54=\"\",\"\",'Costos, gastos, inversiones'!B54)","v":"Activos intangibles"},null,{"$f":"'Costos, gastos, inversiones'!$F$54+'Costos, gastos, inversiones'!$E$54","v":0},0,0,0,0,0,0,0,0,0,0,0]
[null,"Depreciaciones",null,{"$f":"SUM(D37:D48)","v":0},0,0,0,0,0,0,0,0,0,0,0]
[null,{"$f":"IF('Costos, gastos, inversiones'!$B$56=\"\",\"\",'Costos, gastos, inversiones'!$B$56)","v":"Agua"},null,{"$f":"'Costos, gastos, inversiones'!$E$56+'Costos, gastos, inversiones'!$F$56","v":0},{"$f":"D50","v":0},0,{"$f":"F50","v":0},0,0,0,0,0,0,0,{"$f":"SUM(C50:N50)","v":0}]
[null,{"$f":"IF('Costos, gastos, inversiones'!$B$57=\"\",\"\",'Costos, gastos, inversiones'!$B$57)","v":"Alarmas de seguridad"},null,{"$f":"'Costos, gastos, inversiones'!$E$57+'Costos, gastos, inversiones'!$F$57","v":0},0,0,0,0,0,0,0,0,0,0,0]
[null,{"$f":"IF('Costos, gastos, inversiones'!$B$58=\"\",\"\",'Costos, gastos, inversiones'!$B$58)","v":"Alimentos"},null,{"$f":"'Costos, gastos, inversiones'!$E$58+'Costos, gastos, inversiones'!$F$58","v":0},0,0,0,0,0,0,0,0,0,0,0]
[null,{"$f":"IF('Costos, gastos, inversiones'!$B$59=\"\",\"\",'Costos, gastos, inversiones'!$B$59)","v":"Artículos de limpieza"},null,{"$f":"'Costos, gastos, inversiones'!$E$59+'Costos, gastos, inversiones'!$F$59","v":0},0,0,0,0,0,0,0,0,0,0,0]
[null,{"$f":"IF('Costos, gastos, inversiones'!$B$60=\"\",\"\",'Costos, gastos, inversiones'!$B$60)","v":"Boletos de avión"},null,{"$f":"'Costos, gastos, inversiones'!$E$60+'Costos, gastos, inversiones'!$F$60","v":0},0,0,0,0,0,0,0,0,0,0,0]
[null,{"$f":"IF('Costos, gastos, inversiones'!$B$61=\"\",\"\",'Costos, gastos, inversiones'!$B$61)","v":"Casetas"},null,{"$f":"'Costos, gastos, inversiones'!$E$61+'Costos, gastos, inversiones'!$F$61","v":0},0,0,0,0,0,0,0,0,0,0,0]
[null,{"$f":"IF('Costos, gastos, inversiones'!$B$62=\"\",\"\",'Costos, gastos, inversiones'!$B$62)","v":"Combustible y lubricantes"},null,{"$f":"'Costos, gastos, inversiones'!$E$62+'Costos, gastos, inversiones'!$F$62","v":0},0,0,0,0,0,0,0,0,0,0,0]
[null,{"$f":"IF('Costos, gastos, inversiones'!$B$63=\"\",\"\",'Costos, gastos, inversiones'!$B$63)","v":"Comisiones bancarias"},null,{"$f":"'Costos, gastos, inversiones'!$E$63+'Costos, gastos, inversiones'!$F$63","v":0},0,0,0,0,0,0,0,0,0,0,0]
[null,{"$f":"IF('Costos, gastos, inversiones'!$B$64=\"\",\"\",'Costos, gastos, inversiones'!$B$64)","v":"Copias fotostáticas"},null,{"$f":"'Costos, gastos, inversiones'!$E$64+'Costos, gastos, inversiones'!$F$64","v":0},0,0,0,0,0,0,0,0,0,0,0]
[null,{"$f":"IF('Costos, gastos, inversiones'!$B$65=\"\",\"\",'Costos, gastos, inversiones'!$B$65)","v":"Cuotas y membresías"},null,{"$f":"'Costos, gastos, inversiones'!$E$65+'Costos, gastos, inversiones'!$F$65","v":0},0,0,0,0,0,0,0,0,0,0,0]
[null,{"$f":"IF('Costos, gastos, inversiones'!$B$66=\"\",\"\",'Costos, gastos, inversiones'!$B$66)","v":"Despensa en general"},null,{"$f":"'Costos, gastos, inversiones'!$E$66+'Costos, gastos, inversiones'!$F$66","v":0},0,0,0,0,0,0,0,0,0,0,0]
[null,{"$f":"IF('Costos, gastos, inversiones'!$B$67=\"\",\"\",'Costos, gastos, inversiones'!$B$67)","v":"Dominio de internet"},null,{"$f":"'Costos, gastos, inversiones'!$E$67+'Costos, gastos, inversiones'!$F$67","v":0},0,0,0,0,0,0,0,0,0,0,0]
[null,{"$f":"IF('Costos, gastos, inversiones'!$B$68=\"\",\"\",'Costos, gastos, inversiones'!$B$68)","v":"Energía eléctrica"},null,{"$f":"'Costos, gastos, inversiones'!$E$68+'Costos, gastos, inversiones'!$F$68","v":0},0,0,0,0,0,0,0,0,0,0,0]
[null,{"$f":"IF('Costos, gastos, inversiones'!$B$69=\"\",\"\",'Costos, gastos, inversiones'!$B$69)","v":"Equipo menor cómputo"},null,{"$f":"'Costos, gastos, inversiones'!$E$69+'Costos, gastos, inversiones'!$F$69","v":0},0,0,0,0,0,0,0,0,0,0,0]
[null,{"$f":"IF('Costos, gastos, inversiones'!$B$70=\"\",\"\",'Costos, gastos, inversiones'!$B$70)","v":"Equipo menor de oficina"},null,{"$f":"'Costos, gastos, inversiones'!$E$70+'Costos, gastos, inversiones'!$F$70","v":0},0,0,0,0,0,0,0,0,0,0,0]
[null,{"$f":"IF('Costos, gastos, inversiones'!$B$71=\"\",\"\",'Costos, gastos, inversiones'!$B$71)","v":"Estacionamiento"},null,{"$f":"'Costos, gastos, inversiones'!$E$71+'Costos, gastos, inversiones'!$F$71","v":0},0,0,0,0,0,0,0,0,0,0,0]
[null,{"$f":"IF('Costos, gastos, inversiones'!$B$72=\"\",\"\",'Costos, gastos, inversiones'!$B$72)","v":"Gastos financieros"},null,{"$f":"'Costos, gastos, inversiones'!$E$72+'Costos, gastos, inversiones'!$F$72","v":0},0,0,0,0,0,0,0,0,0,0,0]
[null,{"$f":"IF('Costos, gastos, inversiones'!$B$73=\"\",\"\",'Costos, gastos, inversiones'!$B$73)","v":"Honorarios profesionales"},null,{"$f":"'Costos, gastos, inversiones'!$E$73+'Costos, gastos, inversiones'!$F$73","v":0},0,0,0,0,0,0,0,0,0,0,0]
[null,{"$f":"IF('Costos, gastos, inversiones'!$B$74=\"\",\"\",'Costos, gastos, inversiones'!$B$74)","v":"Hospedaje"},null,{"$f":"'Costos, gastos, inversiones'!$E$74+'Costos, gastos, inversiones'!$F$74","v":0},0,0,0,0,0,0,0,0,0,0,0]
[null,{"$f":"IF('Costos, gastos, inversiones'!$B$75=\"\",\"\",'Costos, gastos, inversiones'!$B$75)","v":"Impuestos y derechos"},null,{"$f":"'Costos, gastos, inversiones'!$E$75+'Costos, gastos, inversiones'!$F$75","v":0},0,0,0,0,0,0,0,0,0,0,0]
[null,{"$f":"IF('Costos, gastos, inversiones'!$B$76=\"\",\"\",'Costos, gastos, inversiones'!$B$76)","v":"Libros y revistas"},null,{"$f":"'Costos, gastos, inversiones'!$E$76+'Costos, gastos, inversiones'!$F$76","v":0},0,0,0,0,0,0,0,0,0,0,0]
[null,{"$f":"IF('Costos, gastos, inversiones'!$B$77=\"\",\"\",'Costos, gastos, inversiones'!$B$77)","v":"Mante. edificio"},null,{"$f":"'Costos, gastos, inversiones'!$E$77+'Costos, gastos, inversiones'!$F$77","v":0},0,0,0,0,0,0,0,0,0,0,0]
[null,{"$f":"IF('Costos, gastos, inversiones'!$B$78=\"\",\"\",'Costos, gastos, inversiones'!$B$78)","v":"Mante. Fábrica"},null,{"$f":"'Costos, gastos, inversiones'!$E$79+'Costos, gastos, inversiones'!$F$79","v":0},0,0,0,0,0,0,0,0,0,0,0]
[null,{"$f":"IF('Costos, gastos, inversiones'!$B$79=\"\",\"\",'Costos, gastos, inversiones'!$B$79)","v":"Mante. oficina"},null,{"$f":"'Costos, gastos, inversiones'!$E$79+'Costos, gastos, inversiones'!$F$79","v":0},0,0,0,0,0,0,0,0,0,0,0]
[null,{"$f":"IF('Costos, gastos, inversiones'!$B$80=\"\",\"\",'Costos, gastos, inversiones'!$B$80)","v":"Mante. vehículos"},null,{"$f":"'Costos, gastos, inversiones'!$E$80+'Costos, gastos, inversiones'!$F$80","v":0},0,0,0,0,0,0,0,0,0,0,0]
[null,{"$f":"IF('Costos, gastos, inversiones'!$B$81=\"\",\"\",'Costos, gastos, inversiones'!$B$81)","v":"Mante. Eq.Cómputo"},null,{"$f":"'Costos, gastos, inversiones'!$E$81+'Costos, gastos, inversiones'!$F$81","v":0},0,0,0,0,0,0,0,0,0,0,0]
[null,{"$f":"IF('Costos, gastos, inversiones'!$B$82=\"\",\"\",'Costos, gastos, inversiones'!$B$82)","v":"Mensajería"},null,{"$f":"'Costos, gastos, inversiones'!$E$82+'Costos, gastos, inversiones'!$F$82","v":0},0,0,0,0,0,0,0,0,0,0,0]
[null,{"$f":"IF('Costos, gastos, inversiones'!$B$83=\"\",\"\",'Costos, gastos, inversiones'!$B$83)","v":"Otros"},null,{"$f":"'Costos, gastos, inversiones'!$E$83+'Costos, gastos, inversiones'!$F$83","v":0},0,{"$f":"E77","v":0},0,0,0,0,0,0,0,0,0]
[null,{"$f":"IF('Costos, gastos, inversiones'!$B$84=\"\",\"\",'Costos, gastos, inversiones'!$B$84)","v":"Papelería y Art. de oficina"},null,{"$f":"'Costos, gastos, inversiones'!$E$84+'Costos, gastos, inversiones'!$F$84","v":0},{"$f":"D78","v":0},0,0,0,0,0,0,0,0,0,0]
[null,{"$f":"IF('Costos, gastos, inversiones'!$B$85=\"\",\"\",'Costos, gastos, inversiones'!$B$85)","v":"Paquetería y envíos"},null,{"$f":"'Costos, gastos, inversiones'!$E$85+'Costos, gastos, inversiones'!$F$85","v":0},0,0,0,0,0,0,0,0,0,0,0]
[null,{"$f":"IF('Costos, gastos, inversiones'!$B$86=\"\",\"\",'Costos, gastos, inversiones'!$B$86)","v":"Pasajes y transporte"},null,{"$f":"'Costos, gastos, inversiones'!$E$86+'Costos, gastos, inversiones'!$F$86","v":0},0,0,0,0,0,0,0,0,0,0,0]
[null,{"$f":"IF('Costos, gastos, inversiones'!$B$87=\"\",\"\",'Costos, gastos, inversiones'!$B$87)","v":"Provisión gratificaciones"},null,{"$f":"'Costos, gastos, inversiones'!$E$87+'Costos, gastos, inversiones'!$F$87","v":0},0,0,0,0,0,0,0,0,0,0,0]
[null,{"$f":"IF('Costos, gastos, inversiones'!$B$88=\"\",\"\",'Costos, gastos, inversiones'!$B$88)","v":"Publicidad"},null,{"$f":"'Costos, gastos, inversiones'!$E$88+'Costos, gastos, inversiones'!$F$88","v":0},0,0,0,0,0,0,0,0,0,0,0]
[null,{"$f":"IF('Costos, gastos, inversiones'!$B$89=\"\",\"\",'Costos, gastos, inversiones'!$B$89)","v":"Renta de copiadora"},null,{"$f":"'Costos, gastos, inversiones'!$E$89+'Costos, gastos, inversiones'!$F$89","v":0},0,0,0,0,0,0,0,0,0,0,0]
[null,{"$f":"IF('Costos, gastos, inversiones'!$B$90=\"\",\"\",'Costos, gastos, inversiones'!$B$90)","v":"Renta de locales"},null,{"$f":"'Costos, gastos, inversiones'!$E$90+'Costos, gastos, inversiones'!$F$90","v":0},0,0,0,0,0,0,0,0,0,0,0]
[null,{"$f":"IF('Costos, gastos, inversiones'!$B$91=\"\",\"\",'Costos, gastos, inversiones'!$B$91)","v":"Renta de maquinaria"},null,{"$f":"'Costos, gastos, inversiones'!$E$91+'Costos, gastos, inversiones'!$F$91","v":0},0,0,0,0,0,0,0,0,0,0,0]
[null,{"$f":"IF('Costos, gastos, inversiones'!$B$92=\"\",\"\",'Costos, gastos, inversiones'!$B$92)","v":"Renta de vehículos"},null,{"$f":"'Costos, gastos, inversiones'!$E$92+'Costos, gastos, inversiones'!$F$92","v":0},0,0,0,0,0,0,0,0,0,0,0]
[null,{"$f":"IF('Costos, gastos, inversiones'!$B$93=\"\",\"\",'Costos, gastos, inversiones'!$B$93)","v":"Seguros y fianzas"},null,{"$f":"'Costos, gastos, inversiones'!$E$93+'Costos, gastos, inversiones'!$F$93","v":0},0,0,0,0,0,0,0,0,0,0,0]
[null,{"$f":"IF('Costos, gastos, inversiones'!$B$94=\"\",\"\",'Costos, gastos, inversiones'!$B$94)","v":"Servicio de seguridad"},null,{"$f":"'Costos, gastos, inversiones'!$E$94+'Costos, gastos, inversiones'!$F$94","v":0},0,0,0,0,0,0,0,0,0,0,0]
[null,{"$f":"IF('Costos, gastos, inversiones'!$B$95=\"\",\"\",'Costos, gastos, inversiones'!$B$95)","v":"Servicio impresión"},null,{"$f":"'Costos, gastos, inversiones'!$E$95+'Costos, gastos, inversiones'!$F$95","v":0},0,0,0,0,0,0,0,0,0,0,0]
[null,{"$f":"IF('Costos, gastos, inversiones'!$B$96=\"\",\"\",'Costos, gastos, inversiones'!$B$96)","v":"Servicios administrativos"},null,{"$f":"'Costos, gastos, inversiones'!$E$96+'Costos, gastos, inversiones'!$F$96","v":0},0,0,0,0,0,0,0,0,0,0,0]
[null,{"$f":"IF('Costos, gastos, inversiones'!$B$97=\"\",\"\",'Costos, gastos, inversiones'!$B$97)","v":"Servicios de consultoría"},null,{"$f":"'Costos, gastos, inversiones'!$E$97+'Costos, gastos, inversiones'!$F$97","v":0},0,0,0,0,0,0,0,0,0,0,0]
[null,{"$f":"IF('Costos, gastos, inversiones'!$B$98=\"\",\"\",'Costos, gastos, inversiones'!$B$98)","v":"Servicios de nomina"},null,{"$f":"'Costos, gastos, inversiones'!$E$98+'Costos, gastos, inversiones'!$F$98","v":0},0,0,0,0,0,0,0,0,0,0,0]
[null,{"$f":"IF('Costos, gastos, inversiones'!$B$99=\"\",\"\",'Costos, gastos, inversiones'!$B$99)","v":"Sueldo del Emprendedor"},null,{"$f":"'Costos, gastos, inversiones'!$E$99+'Costos, gastos, inversiones'!$F$99","v":0},0,0,0,0,0,0,0,0,0,0,0]
[null,{"$f":"IF('Costos, gastos, inversiones'!$B$100=\"\",\"\",'Costos, gastos, inversiones'!$B$100)","v":"Sueldos de trabajadores "},null,{"$f":"'Costos, gastos, inversiones'!$E$100+'Costos, gastos, inversiones'!$F$100","v":0},0,0,0,0,0,0,0,0,0,0,0]
[null,{"$f":"IF('Costos, gastos, inversiones'!$B$101=\"\",\"\",'Costos, gastos, inversiones'!$B$101)","v":"Suscripciones"},null,{"$f":"'Costos, gastos, inversiones'!$E$101+'Costos, gastos, inversiones'!$F$101","v":0},0,0,0,0,0,0,0,0,0,0,0]
[null,{"$f":"IF('Costos, gastos, inversiones'!$B$102=\"\",\"\",'Costos, gastos, inversiones'!$B$102)","v":"Teléfono e internet"},null,{"$f":"'Costos, gastos, inversiones'!$E$102+'Costos, gastos, inversiones'!$F$102","v":0},0,0,0,0,0,0,0,0,0,0,0]
[null,{"$f":"IF('Costos, gastos, inversiones'!$B$103=\"\",\"\",'Costos, gastos, inversiones'!$B$103)","v":"Viáticos"},null,{"$f":"'Costos, gastos, inversiones'!$E$103+'Costos, gastos, inversiones'!$F$103","v":0},0,0,0,0,0,0,0,0,0,0,0]
[null,{"$f":"IF('Costos, gastos, inversiones'!$B$104=\"\",\"\",'Costos, gastos, inversiones'!$B$104)","v":""},null,{"$f":"'Costos, gastos, inversiones'!$E$104+'Costos, gastos, inversiones'!$F$104","v":0},0,0,0,0,0,0,0,0,0,0,0]
[null,{"$f":"IF('Costos, gastos, inversiones'!$B$105=\"\",\"\",'Costos, gastos, inversiones'!$B$105)","v":""},null,{"$f":"'Costos, gastos, inversiones'!$E$105+'Costos, gastos, inversiones'!$F$105","v":0},0,0,0,0,0,0,0,0,0,0,0]
[null,{"$f":"IF('Costos, gastos, inversiones'!$B$106=\"\",\"\",'Costos, gastos, inversiones'!$B$106)","v":""},null,{"$f":"'Costos, gastos, inversiones'!$E$106+'Costos, gastos, inversiones'!$F$106","v":0},0,0,0,0,0,0,0,0,0,0,0]
[null,{"$f":"IF('Costos, gastos, inversiones'!$B$107=\"\",\"\",'Costos, gastos, inversiones'!$B$107)","v":""},null,{"$f":"'Costos, gastos, inversiones'!$E$107+'Costos, gastos, inversiones'!$F$107","v":0},0,0,0,0,0,0,0,0,0,0,0]
[null,{"$f":"IF('Costos, gastos, inversiones'!$B$108=\"\",\"\",'Costos, gastos, inversiones'!$B$108)","v":""},null,{"$f":"'Costos, gastos, inversiones'!$E$108+'Costos, gastos, inversiones'!$F$108","v":0},0,0,0,0,0,0,0,0,0,0,0]
[null,{"$f":"IF('Costos, gastos, inversiones'!$B$109=\"\",\"\",'Costos, gastos, inversiones'!$B$109)","v":""},null,{"$f":"'Costos, gastos, inversiones'!$E$109+'Costos, gastos, inversiones'!$F$109","v":0},{"$f":"D103","v":0},{"$f":"E103","v":0},{"$f":"F103","v":0},{"$f":"G103","v":0},{"$f":"H103","v":0},{"$f":"I103","v":0},{"$f":"J103","v":0},{"$f":"K103","v":0},{"$f":"L103","v":0},{"$f":"M103","v":0},{"$f":"SUM(C103:N103)","v":0}]
[null,{"$f":"IF('Costos, gastos, inversiones'!$B$110=\"\",\"\",'Costos, gastos, inversiones'!$B$110)","v":""},null,{"$f":"'Costos, gastos, inversiones'!$E$110+'Costos, gastos, inversiones'!$F$110","v":0},0,0,0,0,0,0,0,0,0,0,0]
[null,"Indirectos y generales",null,{"$f":"SUM(D50:D104)","v":0},0,0,0,0,0,0,0,0,0,0,0]
[null,"Total costos y gastos",null,{"$f":"+D49+D105","v":0},0,0,0,0,0,0,0,0,0,0,0]
[null,"Resultado para Impuestos",null,{"$f":"D35-D106","v":0},0,0,0,0,0,0,0,0,0,0,{"$f":"SUM(C107:N107)","v":0}]
[null,"Impuesto sobre la Renta",null,{"$f":"D107*30%","v":0},{"$f":"E107*30%","v":0},0,0,0,0,0,0,0,0,0,{"$f":"SUM(C108:N108)","v":0}]
[null,"RESULTADO NETO",null,{"$f":"D107-D108","v":0},{"$f":"E107-E108","v":0},0,0,0,0,0,0,0,0,0,{"$f":"SUM(C109:N109)","v":0}]
[]
[null,{"$f":"Proyecto","v":0}]
[null,"7.S4 - Pronóstico y presupuesto",null,"Fecha de inicio del proyecto:",null,null,{"$f":"EDATE(FechaInicio,0)","v":"2020-07-06"},"Factor de inflación esperado:",null,null,"Año 2:",{"$f":"InflaciónAño_2","v":0},"Año 3:",{"$f":"InflaciónAño_3","v":0}]
[null,"Año 2",{"$f":"EDATE(FechaInicio,13)","v":"2021-08-06"},{"$f":"EDATE(FechaInicio,14)","v":"2021-09-06"},{"$f":"EDATE(FechaInicio,15)","v":"2021-10-06"},{"$f":"EDATE(FechaInicio,16)","v":"2021-11-06"},{"$f":"EDATE(FechaInicio,17)","v":"2021-12-06"},{"$f":"EDATE(FechaInicio,18)","v":"2022-01-06"},{"$f":"EDATE(FechaInicio,19)","v":"2022-02-06"},{"$f":"EDATE(FechaInicio,20)","v":"2022-03-06"},{"$f":"EDATE(FechaInicio,21)","v":"2022-04-06"},{"$f":"EDATE(FechaInicio,22)","v":"2022-05-06"},{"$f":"EDATE(FechaInicio,23)","v":"2022-06-06"},{"$f":"EDATE(FechaInicio,24)","v":"2022-07-06"},"TOTAL"]
[null,"Pronóstico de ventas"]
[null,"Unidades ",null,null,null,null,null,null,null,null,null,null,null,null,{"$f":"SUM(C115:N115)","v":0}]
[null,"Precio unitario",0,{"$f":"C116","v":0},{"$f":"D116","v":0},{"$f":"E116","v":0},0,0,0,0,0,0,0,0]
[null,"Venta mensual",null,null,null,null,null,null,null,null,null,null,null,null,{"$f":"SUM(C117:N117)","v":0}]
[null,"Pronóstico de costos directos"]
[null,"Materiales y Mano de obra",0,{"$f":"C119","v":0},{"$f":"D119","v":0},0,0,0,0,0,0,0,0,0]
[null,"Costo directo mensual",null,null,null,null,null,null,null,null,null,null,null,null,{"$f":"SUM(C120:N120)","v":0}]
[]
[null,"Presupuesto de operación"]
[null,"Ventas netas",{"$f":"IF(C115>0, C115*C116,IF(C117>0,C117,0))","v":0},{"$f":"IF(D115>0, D115*D116,IF(D117>0,D117,0))","v":0},{"$f":"IF(E115>0, E115*E116,IF(E117>0,E117,0))","v":0},0,0,0,0,0,0,0,0,0,{"$f":"SUM(C123:N123)","v":0}]
[null,"Costo de ventas directo",{"$f":"IF(C115>0, C115*C119,IF(C117>0,C120,0))","v":0},{"$f":"IF(D115>0, D115*D119,IF(D117>0,D120,0))","v":0},{"$f":"IF(E115>0, E115*E119,IF(E117>0,E120,0))","v":0},0,0,0,0,0,0,0,0,0,{"$f":"SUM(C124:N124)","v":0}]
[null,"Utilidad marginal directa",{"$f":"C123-C124","v":0},0,0,0,0,0,0,0,0,0,0,0,0]
[null,"Gastos indirectos fijos"]
[null,{"$f":"B37","v":"Edificios y construcciones"},{"$f":"'Costos, gastos, inversiones'!$F$43+'Costos, gastos, inversiones'!$E$43","v":0},{"$f":"C127","v":0},{"$f":"D127","v":0},{"$f":"E127","v":0},{"$f":"F127","v":0},{"$f":"G127","v":0},0,0,0,0,0,0,{"$f":"SUM(C127:N127)","v":0}]
[null,"Maquinaria equipo fabrica",{"$f":"'Costos, gastos, inversiones'!$F$44+'Costos, gastos, inversiones'!$E$44","v":0},{"$f":"C128","v":0},0,{"$f":"E128","v":0},0,0,0,0,0,0,0,0,{"$f":"SUM(C128:N128)","v":0}]
[null,"Mobiliario  equipo oficina",{"$f":"'Costos, gastos, inversiones'!$F$45+'Costos, gastos, inversiones'!$E$45","v":0},0,0,0,0,0,0,0,0,0,0,0,0]
[null,"Equipo de transporte",{"$f":"'Costos, gastos, inversiones'!$F$46+'Costos, gastos, inversiones'!$E$46","v":0},0,0,0,0,0,0,0,0,0,0,0,0]
[null,"Equipo de computación",{"$f":"'Costos, gastos, inversiones'!$F$47+'Costos, gastos, inversiones'!$E$47","v":0},{"$f":"C131","v":0},{"$f":"D131","v":0},0,0,0,0,0,0,0,0,0,0]
[null,"Habilitación de locales",{"$f":"'Costos, gastos, inversiones'!$F$48+'Costos, gastos, inversiones'!$E$48","v":0},{"$f":"C132","v":0},0,0,0,0,0,0,0,0,0,0,0]
[null,"",{"$f":"'Costos, gastos, inversiones'!$F$49+'Costos, gastos, inversiones'!$E$49","v":0},0,0,0,0,0,0,0,0,0,0,0,0]
[null,"",{"$f":"'Costos, gastos, inversiones'!$F$50+'Costos, gastos, inversiones'!$E$50","v":0},0,0,0,0,0,0,0,0,0,0,0,0]
[null,"",{"$f":"'Costos, gastos, inversiones'!$F$51+'Costos, gastos, inversiones'!$E$51","v":0},0,0,0,0,0,0,0,0,0,0,0,0]
[null,"",{"$f":"'Costos, gastos, inversiones'!$F$52+'Costos, gastos, inversiones'!$E$52","v":0},0,0,0,0,0,0,0,0,0,0,0,0]
[null,"Patentes y marcas",{"$f":"'Costos, gastos, inversiones'!$F$53+'Costos, gastos, inversiones'!$E$53","v":0},0,0,0,0,0,0,0,0,0,0,0,0]
[null,"Activos intangibles",{"$f":"'Costos, gastos, inversiones'!$F$54+'Costos, gastos, inversiones'!$E$54","v":0},0,0,0,0,0,0,0,0,0,0,0,0]
[null,"Depreciaciones",{"$f":"SUM(C127:C138)","v":0},0,0,0,0,0,0,0,0,0,0,0,0]
[null,{"$f":"B50","v":"Agua"},{"$f":"('Costos, gastos, inversiones'!$E$56+'Costos, gastos, inversiones'!$F$56)*(1+InflaciónAño_2)","v":0},{"$f":"C140","v":0},0,0,{"$f":"F140","v":0},{"$f":"G140","v":0},{"$f":"H140","v":0},{"$f":"I140","v":0},{"$f":"J140","v":0},{"$f":"K140","v":0},{"$f":"L140","v":0},{"$f":"M140","v":0}]
[null,{"$f":"B51","v":"Alarmas de seguridad"},{"$f":"('Costos, gastos, inversiones'!$E$57+'Costos, gastos, inversiones'!$F$57)*(1+InflaciónAño_2)","v":0},{"$f":"C141","v":0},0,0,{"$f":"F141","v":0},0,0,0,0,0,0,0,{"$f":"SUM(C141:N141)","v":0}]
[null,"Alimentos",{"$f":"('Costos, gastos, inversiones'!$E$58+'Costos, gastos, inversiones'!$F$58)*(1+InflaciónAño_2)","v":0},0,0,0,0,0,0,0,0,0,0,0,0]
[null,"Artículos de limpieza",{"$f":"('Costos, gastos, inversiones'!$E$59+'Costos, gastos, inversiones'!$F$59)*(1+InflaciónAño_2)","v":0},0,0,0,0,0,0,0,0,0,0,0,0]
[null,"Boletos de avión",{"$f":"('Costos, gastos, inversiones'!$E$60+'Costos, gastos, inversiones'!$F$60)*(1+InflaciónAño_2)","v":0},0,0,0,0,0,0,0,0,0,0,0,0]
[null,"Casetas",{"$f":"('Costos, gastos, inversiones'!$E$61+'Costos, gastos, inversiones'!$F$61)*(1+InflaciónAño_2)","v":0},0,0,0,0,0,0,0,0,0,0,0,0]
[null,"Combustible y lubricantes",{"$f":"('Costos, gastos, inversiones'!$E$62+'Costos, gastos, inversiones'!$F$62)*(1+InflaciónAño_2)","v":0},0,0,0,0,0,0,0,0,0,0,0,0]
[null,"Comisiones bancarias",{"$f":"('Costos, gastos, inversiones'!$E$63+'Costos, gastos, inversiones'!$F$63)*(1+InflaciónAño_2)","v":0},0,0,0,0,0,0,0,0,0,0,0,0]
[null,"Copias fotostáticas",{"$f":"('Costos, gastos, inversiones'!$E$64+'Costos, gastos, inversiones'!$F$64)*(1+InflaciónAño_2)","v":0},0,0,0,0,0,0,0,0,0,0,0,0]
[null,"Cuotas y membresías",{"$f":"('Costos, gastos, inversiones'!$E$65+'Costos, gastos, inversiones'!$F$65)*(1+InflaciónAño_2)","v":0},0,0,0,0,0,0,0,0,0,0,0,0]
[null,"Despensa en general",{"$f":"('Costos, gastos, inversiones'!$E$66+'Costos, gastos, inversiones'!$F$66)*(1+InflaciónAño_2)","v":0},0,0,0,0,0,0,0,0,0,0,0,0]
[null,"Dominio de internet",{"$f":"('Costos, gastos, inversiones'!$E$67+'Costos, gastos, inversiones'!$F$67)*(1+InflaciónAño_2)","v":0},0,0,0,0,0,0,0,0,0,0,0,0]
[null,"Energía eléctrica",{"$f":"('Costos, gastos, inversiones'!$E$68+'Costos, gastos, inversiones'!$F$68)*(1+InflaciónAño_2)","v":0},0,0,0,0,0,0,0,0,0,0,0,0]
[null,"Equipo menor cómputo",{"$f":"('Costos, gastos, inversiones'!$E$69+'Costos, gastos, inversiones'!$F$69)*(1+InflaciónAño_2)","v":0},0,0,0,0,0,0,0,0,0,0,0,0]
[null,"Equipo menor de oficina",{"$f":"('Costos, gastos, inversiones'!$E$70+'Costos, gastos, inversiones'!$F$70)*(1+InflaciónAño_2)","v":0},0,0,0,0,0,0,0,0,0,0,0,0]
[null,"Estacionamiento",{"$f":"('Costos, gastos, inversiones'!$E$71+'Costos, gastos, inversiones'!$F$71)*(1+InflaciónAño_2)","v":0},0,0,0,0,0,0,0,0,0,0,0,0]
[null,"Gastos financieros",{"$f":"('Costos, gastos, inversiones'!$E$72+'Costos, gastos, inversiones'!$F$72)*(1+InflaciónAño_2)","v":0},0,0,0,0,0,0,0,0,0,0,0,0]
[null,"Honorarios profesionales",{"$f":"('Costos, gastos, inversiones'!$E$73+'Costos, gastos, inversiones'!$F$73)*(1+InflaciónAño_2)","v":0},0,0,0,0,0,0,0,0,0,0,0,0]
[null,"Hospedaje",{"$f":"('Costos, gastos, inversiones'!$E$74+'Costos, gastos, inversiones'!$F$74)*(1+InflaciónAño_2)","v":0},0,0,0,0,0,0,0,0,0,0,0,0]
[null,"Impuestos y derechos",{"$f":"('Costos, gastos, inversiones'!$E$75+'Costos, gastos, inversiones'!$F$75)*(1+InflaciónAño_2)","v":0},0,0,0,0,0,0,0,0,0,0,0,0]
[null,"Libros y revistas",{"$f":"('Costos, gastos, inversiones'!$E$76+'Costos, gastos, inversiones'!$F$76)*(1+InflaciónAño_2)","v":0},0,0,0,0,0,0,0,0,0,0,0,0]
[null,"Mante. edificio",{"$f":"('Costos, gastos, inversiones'!$E$77+'Costos, gastos, inversiones'!$F$77)*(1+InflaciónAño_2)","v":0},0,0,0,0,0,0,0,0,0,0,0,0]
[null,"Mante. Fábrica",{"$f":"('Costos, gastos, inversiones'!$E$79+'Costos, gastos, inversiones'!$F$79)*(1+InflaciónAño_2)","v":0},{"$f":"C162","v":0},0,0,0,0,0,0,0,0,0,0,{"$f":"SUM(C162:N162)","v":0}]
[null,"Mante. oficina",{"$f":"('Costos, gastos, inversiones'!$E$79+'Costos, gastos, inversiones'!$F$79)*(1+InflaciónAño_2)","v":0},0,0,0,0,0,0,0,0,0,0,0,0]
[null,"Mante. vehículos",{"$f":"('Costos, gastos, inversiones'!$E$80+'Costos, gastos, inversiones'!$F$80)*(1+InflaciónAño_2)","v":0},0,0,0,0,0,0,0,0,0,0,0,0]
[null,"Mante. Eq.Cómputo",{"$f":"('Costos, gastos, inversiones'!$E$81+'Costos, gastos, inversiones'!$F$81)*(1+InflaciónAño_2)","v":0},0,0,0,0,0,0,0,0,0,0,0,0]
[null,"Mensajería",{"$f":"('Costos, gastos, inversiones'!$E$82+'Costos, gastos, inversiones'!$F$82)*(1+InflaciónAño_2)","v":0},0,0,0,0,{"$f":"G166","v":0},0,0,0,0,0,0,0]
[null,"Otros",{"$f":"('Costos, gastos, inversiones'!$E$83+'Costos, gastos, inversiones'!$F$83)*(1+InflaciónAño_2)","v":0},{"$f":"C167","v":0},0,0,0,0,0,0,0,0,0,0,0]
[null,"Papelería y Art. de oficina",{"$f":"('Costos, gastos, inversiones'!$E$84+'Costos, gastos, inversiones'!$F$84)*(1+InflaciónAño_2)","v":0},0,0,0,0,0,0,0,0,0,0,0,0]
[null,"Paquetería y envíos",{"$f":"('Costos, gastos, inversiones'!$E$85+'Costos, gastos, inversiones'!$F$85)*(1+InflaciónAño_2)","v":0},0,0,0,0,0,0,0,0,0,0,0,0]
[null,"Pasajes y transporte",{"$f":"('Costos, gastos, inversiones'!$E$86+'Costos, gastos, inversiones'!$F$86)*(1+InflaciónAño_2)","v":0},0,0,0,0,0,0,0,0,0,0,0,0]
[null,"Provisión gratificaciones",{"$f":"('Costos, gastos, inversiones'!$E$87+'Costos, gastos, inversiones'!$F$87)*(1+InflaciónAño_2)","v":0},0,0,0,0,0,0,0,0,0,0,0,0]
[null,"Publicidad",{"$f":"('Costos, gastos, inversiones'!$E$88+'Costos, gastos, inversiones'!$F$88)*(1+InflaciónAño_2)","v":0},0,0,0,0,0,0,0,0,0,0,0,0]
[null,"Renta de copiadora",{"$f":"('Costos, gastos, inversiones'!$E$89+'Costos, gastos, inversiones'!$F$89)*(1+InflaciónAño_2)","v":0},0,0,0,0,0,0,0,0,0,0,0,0]
[null,"Renta de locales",{"$f":"('Costos, gastos, inversiones'!$E$90+'Costos, gastos, inversiones'!$F$90)*(1+InflaciónAño_2)","v":0},0,0,0,0,0,0,0,0,0,0,0,0]
[null,"Renta de maquinaria",{"$f":"('Costos, gastos, inversiones'!$E$91+'Costos, gastos, inversiones'!$F$91)*(1+InflaciónAño_2)","v":0},0,0,0,0,0,0,0,0,0,0,0,0]
[null,"Renta de vehículos",{"$f":"('Costos, gastos, inversiones'!$E$92+'Costos, gastos, inversiones'!$F$92)*(1+InflaciónAño_2)","v":0},0,0,0,0,0,0,0,0,0,0,0,0]
[null,"Seguros y fianzas",{"$f":"('Costos, gastos, inversiones'!$E$93+'Costos, gastos, inversiones'!$F$93)*(1+InflaciónAño_2)","v":0},0,0,0,0,0,0,0,0,0,0,0,0]
[null,"Servicio de seguridad",{"$f":"('Costos, gastos, inversiones'!$E$94+'Costos, gastos, inversiones'!$F$94)*(1+InflaciónAño_2)","v":0},0,0,0,0,0,0,0,0,0,0,0,0]
[null,"Servicio impresión",{"$f":"('Costos, gastos, inversiones'!$E$95+'Costos, gastos, inversiones'!$F$95)*(1+InflaciónAño_2)","v":0},0,0,0,0,0,0,0,0,0,0,0,0]
[null,"Servicios administrativos",{"$f":"('Costos, gastos, inversiones'!$E$96+'Costos, gastos, inversiones'!$F$96)*(1+InflaciónAño_2)","v":0},0,0,0,0,0,0,0,0,0,0,0,0]
[null,"Servicios de consultoría",{"$f":"('Costos, gastos, inversiones'!$E$97+'Costos, gastos, inversiones'!$F$97)*(1+InflaciónAño_2)","v":0},0,0,0,0,0,0,0,0,0,0,0,0]
[null,"Servicios de nomina",{"$f":"('Costos, gastos, inversiones'!$E$98+'Costos, gastos, inversiones'!$F$98)*(1+InflaciónAño_2)","v":0},0,0,0,0,0,0,0,0,0,0,0,0]
[null,"Sueldo del Emprendedor",{"$f":"('Costos, gastos, inversiones'!$E$99+'Costos, gastos, inversiones'!$F$99)*(1+InflaciónAño_2)","v":0},0,0,0,0,0,0,0,0,0,0,0,0]
[null,"Sueldos de trabajadores ",{"$f":"('Costos, gastos, inversiones'!$E$100+'Costos, gastos, inversiones'!$F$100)*(1+InflaciónAño_2)","v":0},0,0,0,0,0,0,0,0,0,0,0,0]
[null,"Suscripciones",{"$f":"('Costos, gastos, inversiones'!$E$101+'Costos, gastos, inversiones'!$F$101)*(1+InflaciónAño_2)","v":0},0,0,0,0,0,0,0,0,0,0,0,0]
[null,"Teléfono e internet",{"$f":"('Costos, gastos, inversiones'!$E$102+'Costos, gastos, inversiones'!$F$102)*(1+InflaciónAño_2)","v":0},0,0,0,0,0,0,0,0,0,0,0,0]
[null,"Viáticos",{"$f":"('Costos, gastos, inversiones'!$E$103+'Costos, gastos, inversiones'!$F$103)*(1+InflaciónAño_2)","v":0},0,0,0,0,0,0,0,0,0,0,0,0]
[null,"",{"$f":"('Costos, gastos, inversiones'!$E$104+'Costos, gastos, inversiones'!$F$104)*(1+InflaciónAño_2)","v":0},0,0,0,0,0,0,0,0,0,0,0,0]
[null,"",{"$f":"('Costos, gastos, inversiones'!$E$105+'Costos, gastos, inversiones'!$F$105)*(1+InflaciónAño_2)","v":0},0,0,0,0,0,0,0,0,0,0,0,0]
[null,"",{"$f":"('Costos, gastos, inversiones'!$E$106+'Costos, gastos, inversiones'!$F$106)*(1+InflaciónAño_2)","v":0},0,0,0,0,0,0,0,0,0,0,0,0]
[null,{"$f":"B99","v":""},{"$f":"('Costos, gastos, inversiones'!$E$107+'Costos, gastos, inversiones'!$F$107)*(1+InflaciónAño_2)","v":0},{"$f":"C191","v":0},{"$f":"D191","v":0},{"$f":"E191","v":0},{"$f":"F191","v":0},{"$f":"G191","v":0},{"$f":"H191","v":0},{"$f":"I191","v":0},{"$f":"J191","v":0},{"$f":"K191","v":0},{"$f":"L191","v":0},{"$f":"M191","v":0},{"$f":"SUM(C191:N191)","v":0}]
[null,{"$f":"B100","v":""},{"$f":"('Costos, gastos, inversiones'!$E$107+'Costos, gastos, inversiones'!$F$107)*(1+InflaciónAño_2)","v":0},0,0,0,0,0,0,0,0,0,0,0,0]
[null,{"$f":"B102","v":""},{"$f":"('Costos, gastos, inversiones'!$E$109+'Costos, gastos, inversiones'!$F$109)*(1+InflaciónAño_2)","v":0},0,0,0,0,0,0,0,0,0,0,0,0]
[null,{"$f":"B104","v":""},{"$f":"('Costos, gastos, inversiones'!$E$110+'Costos, gastos, inversiones'!$F$110)*(1+InflaciónAño_2)","v":0},0,0,0,0,0,0,0,0,0,0,0,0]
[null,"Indirectos y generales",{"$f":"SUM(C141:C194)","v":0},0,0,0,0,0,0,0,0,0,0,0,0]
[null,"Total costos y gastos",{"$f":"+C139+C195","v":0},0,0,0,0,0,0,0,0,0,0,0,0]
[null,"Resultado para Impuestos",{"$f":"C125-C196","v":0},0,0,0,0,0,0,0,0,0,0,0,{"$f":"SUM(C197:N197)","v":0}]
[null,"Impuesto sobre la Renta",{"$f":"C197*30%","v":0},{"$f":"D197*30%","v":0},{"$f":"E197*30%","v":0},0,0,0,0,0,0,0,0,0,{"$f":"SUM(C198:N198)","v":0}]
[null,"RESULTADO NETO",{"$f":"C197-C198","v":0},{"$f":"D197-D198","v":0},{"$f":"E197-E198","v":0},0,0,0,0,0,0,0,0,0,{"$f":"SUM(C199:N199)","v":0}]
[]
[null,{"$f":"Proyecto","v":0}]
[null,"7.S4 - Pronóstico y presupuesto",null,"Fecha de inicio del proyecto:",null,null,{"$f":"EDATE(FechaInicio,0)","v":"2020-07-06"},"Factor de inflación esperado:",null,null,"Año 2:",{"$f":"InflaciónAño_2","v":0},"Año 3:",{"$f":"InflaciónAño_3","v":0}]
[null,"Año 3",{"$f":"EDATE(FechaInicio,25)","v":"2022-08-06"},{"$f":"EDATE(FechaInicio,26)","v":"2022-09-06"},{"$f":"EDATE(FechaInicio,27)","v":"2022-10-06"},{"$f":"EDATE(FechaInicio,28)","v":"2022-11-06"},{"$f":"EDATE(FechaInicio,29)","v":"2022-12-06"},{"$f":"EDATE(FechaInicio,30)","v":"2023-01-06"},{"$f":"EDATE(FechaInicio,31)","v":"2023-02-06"},{"$f":"EDATE(FechaInicio,32)","v":"2023-03-06"},{"$f":"EDATE(FechaInicio,33)","v":"2023-04-06"},{"$f":"EDATE(FechaInicio,34)","v":"2023-05-06"},{"$f":"EDATE(FechaInicio,35)","v":"2023-06-06"},{"$f":"EDATE(FechaInicio,36)","v":"2023-07-06"},"TOTAL"]
[null,"Pronóstico de ventas"]
[null,"Unidades ",null,null,null,null,null,null,null,null,null,null,null,null,{"$f":"SUM(C205:N205)","v":0}]
[null,"Precio unitario",0,{"$f":"C206","v":0},{"$f":"D206","v":0},{"$f":"E206","v":0},0,0,0,0,0,0,0,0]
[null,"Venta mensual",null,null,null,null,null,null,null,null,null,null,null,null,{"$f":"SUM(C207:N207)","v":0}]
[null,"Pronóstico de costos directos"]
[null,"Materiales y Mano de obra",0,{"$f":"C209","v":0},{"$f":"D209","v":0},0,0,0,0,0,0,0,0,0]
[null,"Costo directo mensual",null,null,null,null,null,null,null,null,null,null,null,null,{"$f":"SUM(C210:N210)","v":0}]
[]
[null,"Presupuesto de operación"]
[null,"Ventas netas",{"$f":"IF(C205>0, C205*C206,IF(C207>0,C207,0))","v":0},{"$f":"IF(D205>0, D205*D206,IF(D207>0,D207,0))","v":0},{"$f":"IF(E205>0, E205*E206,IF(E207>0,E207,0))","v":0},0,0,0,0,0,0,0,0,0,{"$f":"SUM(C213:N213)","v":0}]
[null,"Costo de ventas directo",{"$f":"IF(C205>0, C205*C209,IF(C207>0,C210,0))","v":0},{"$f":"IF(D205>0, D205*D209,IF(D207>0,D210,0))","v":0},{"$f":"IF(E205>0, E205*E209,IF(E207>0,E210,0))","v":0},0,0,0,0,0,0,0,0,0,{"$f":"SUM(C214:N214)","v":0}]
[null,"Utilidad marginal directa",{"$f":"C213-C214","v":0},0,0,0,0,0,0,0,0,0,0,0,0]
[null,"Gastos indirectos fijos"]
[null,{"$f":"B127","v":"Edificios y construcciones"},{"$f":"'Costos, gastos, inversiones'!$F$43+'Costos, gastos, inversiones'!$E$43","v":0},{"$f":"C217","v":0},{"$f":"D217","v":0},{"$f":"E217","v":0},{"$f":"F217","v":0},{"$f":"G217","v":0},0,0,0,0,0,0,{"$f":"SUM(C217:N217)","v":0}]
[null,"Maquinaria equipo fabrica",{"$f":"'Costos, gastos, inversiones'!$F$44+'Costos, gastos, inversiones'!$E$44","v":0},{"$f":"C218","v":0},0,0,0,0,0,0,0,0,0,0,{"$f":"SUM(C218:N218)","v":0}]
[null,"Mobiliario  equipo oficina",{"$f":"'Costos, gastos, inversiones'!$F$45+'Costos, gastos, inversiones'!$E$45","v":0},0,0,0,0,0,0,0,0,0,0,0,0]
[null,"Equipo de transporte",{"$f":"'Costos, gastos, inversiones'!$F$46+'Costos, gastos, inversiones'!$E$46","v":0},0,0,0,0,0,0,0,0,0,0,0,0]
[null,"Equipo de computación",{"$f":"'Costos, gastos, inversiones'!$F$47+'Costos, gastos, inversiones'!$E$47","v":0},{"$f":"C221","v":0},{"$f":"D221","v":0},0,0,0,0,0,0,0,0,0,0]
[null,"Habilitación de locales",{"$f":"'Costos, gastos, inversiones'!$F$48+'Costos, gastos, inversiones'!$E$48","v":0},{"$f":"C222","v":0},0,0,0,0,0,0,0,0,0,0,0]
[null,"",{"$f":"'Costos, gastos, inversiones'!$F$49+'Costos, gastos, inversiones'!$E$49","v":0},0,0,0,0,0,0,0,0,0,0,0,0]
[null,"",{"$f":"'Costos, gastos, inversiones'!$F$50+'Costos, gastos, inversiones'!$E$50","v":0},0,0,0,0,0,0,0,0,0,0,0,0]
[null,"",{"$f":"'Costos, gastos, inversiones'!$F$51+'Costos, gastos, inversiones'!$E$51","v":0},0,0,0,0,0,0,0,0,0,0,0,0]
[null,"",{"$f":"'Costos, gastos, inversiones'!$F$52+'Costos, gastos, inversiones'!$E$52","v":0},0,0,0,0,0,0,0,0,0,0,0,0]
[null,"Patentes y marcas",{"$f":"'Costos, gastos, inversiones'!$F$53+'Costos, gastos, inversiones'!$E$53","v":0},0,0,0,0,0,0,0,0,0,0,0,0]
[null,"Activos intangibles",{"$f":"'Costos, gastos, inversiones'!$F$54+'Costos, gastos, inversiones'!$E$54","v":0},0,0,0,0,0,0,0,0,0,0,0,0]
[null,"Depreciaciones",{"$f":"SUM(C217:C228)","v":0},0,0,0,0,0,0,0,0,0,0,0,{"$f":"SUM(O217:O228)","v":0}]
[null,{"$f":"B140","v":"Agua"},{"$f":"(('Costos, gastos, inversiones'!$E$56+'Costos, gastos, inversiones'!$F$56)*(1+InflaciónAño_2))*(1+InflaciónAño_3)","v":0},{"$f":"C230","v":0},0,0,0,0,0,0,0,0,0,0,{"$f":"SUM(C230:N230)","v":0}]
[null,"Alarmas de seguridad",{"$f":"(('Costos, gastos, inversiones'!$E$57+'Costos, gastos, inversiones'!$F$57)*(1+InflaciónAño_2))*(1+InflaciónAño_3)","v":0},0,0,0,0,0,0,0,0,0,0,0,{"$f":"SUM(C231:N231)","v":0}]
[null,"Alimentos",{"$f":"(('Costos, gastos, inversiones'!$E$58+'Costos, gastos, inversiones'!$F$58)*(1+InflaciónAño_2))*(1+InflaciónAño_3)","v":0},0,0,0,0,0,0,0,0,0,0,0,0]
[null,"Artículos de limpieza",{"$f":"(('Costos, gastos, inversiones'!$E$59+'Costos, gastos, inversiones'!$F$59)*(1+InflaciónAño_2))*(1+InflaciónAño_3)","v":0},0,0,0,0,0,0,0,0,0,0,0,0]
[null,"Boletos de avión",{"$f":"(('Costos, gastos, inversiones'!$E$60+'Costos, gastos, inversiones'!$F$60)*(1+InflaciónAño_2))*(1+InflaciónAño_3)","v":0},0,0,0,0,0,0,0,0,0,0,0,0]
[null,"Casetas",{"$f":"(('Costos, gastos, inversiones'!$E$61+'Costos, gastos, inversiones'!$F$61)*(1+InflaciónAño_2))*(1+InflaciónAño_3)","v":0},0,0,0,0,0,0,0,0,0,0,0,0]
[null,"Combustible y lubricantes",{"$f":"(('Costos, gastos, inversiones'!$E$62+'Costos, gastos, inversiones'!$F$62)*(1+InflaciónAño_2))*(1+InflaciónAño_3)","v":0},0,0,0,0,0,0,0,0,0,0,0,0]
[null,"Comisiones bancarias",{"$f":"(('Costos, gastos, inversiones'!$E$63+'Costos, gastos, inversiones'!$F$63)*(1+InflaciónAño_2))*(1+InflaciónAño_3)","v":0},0,0,0,0,0,0,0,0,0,0,0,0]
[null,"Copias fotostáticas",{"$f":"(('Costos, gastos, inversiones'!$E$64+'Costos, gastos, inversiones'!$F$64)*(1+InflaciónAño_2))*(1+InflaciónAño_3)","v":0},0,0,0,0,0,0,0,0,0,0,0,0]
[null,"Cuotas y membresías",{"$f":"(('Costos, gastos, inversiones'!$E$65+'Costos, gastos, inversiones'!$F$65)*(1+InflaciónAño_2))*(1+InflaciónAño_3)","v":0},0,0,0,0,0,0,0,0,0,0,0,0]
[null,"Despensa en general",{"$f":"(('Costos, gastos, inversiones'!$E$66+'Costos, gastos, inversiones'!$F$66)*(1+InflaciónAño_2))*(1+InflaciónAño_3)","v":0},0,0,0,0,0,0,0,0,0,0,0,0]
[null,"Dominio de internet",{"$f":"(('Costos, gastos, inversiones'!$E$67+'Costos, gastos, inversiones'!$F$67)*(1+InflaciónAño_2))*(1+InflaciónAño_3)","v":0},0,0,0,0,0,0,0,0,0,0,0,0]
[null,"Energía eléctrica",{"$f":"(('Costos, gastos, inversiones'!$E$68+'Costos, gastos, inversiones'!$F$68)*(1+InflaciónAño_2))*(1+InflaciónAño_3)","v":0},0,0,0,0,0,0,0,0,0,0,0,0]
[null,"Equipo menor cómputo",{"$f":"(('Costos, gastos, inversiones'!$E$69+'Costos, gastos, inversiones'!$F$69)*(1+InflaciónAño_2))*(1+InflaciónAño_3)","v":0},0,0,0,0,0,0,0,0,0,0,0,0]
[null,"Equipo menor de oficina",{"$f":"(('Costos, gastos, inversiones'!$E$70+'Costos, gastos, inversiones'!$F$70)*(1+InflaciónAño_2))*(1+InflaciónAño_3)","v":0},0,0,0,0,0,0,0,0,0,0,0,0]
[null,"Estacionamiento",{"$f":"(('Costos, gastos, inversiones'!$E$71+'Costos, gastos, inversiones'!$F$71)*(1+InflaciónAño_2))*(1+InflaciónAño_3)","v":0},0,0,0,0,0,0,0,0,0,0,0,0]
[null,"Gastos financieros",{"$f":"(('Costos, gastos, inversiones'!$E$72+'Costos, gastos, inversiones'!$F$72)*(1+InflaciónAño_2))*(1+InflaciónAño_3)","v":0},0,0,0,0,0,0,0,0,0,0,0,0]
[null,"Honorarios profesionales",{"$f":"(('Costos, gastos, inversiones'!$E$73+'Costos, gastos, inversiones'!$F$73)*(1+InflaciónAño_2))*(1+InflaciónAño_3)","v":0},0,0,0,0,0,0,0,0,0,0,0,0]
[null,"Hospedaje",{"$f":"(('Costos, gastos, inversiones'!$E$74+'Costos, gastos, inversiones'!$F$74)*(1+InflaciónAño_2))*(1+InflaciónAño_3)","v":0},0,0,0,0,0,0,0,0,0,0,0,0]
[null,"Impuestos y derechos",{"$f":"(('Costos, gastos, inversiones'!$E$75+'Costos, gastos, inversiones'!$F$75)*(1+InflaciónAño_2))*(1+InflaciónAño_3)","v":0},0,0,0,0,0,0,0,0,0,0,0,0]
[null,"Libros y revistas",{"$f":"(('Costos, gastos, inversiones'!$E$76+'Costos, gastos, inversiones'!$F$76)*(1+InflaciónAño_2))*(1+InflaciónAño_3)","v":0},0,0,0,0,0,0,0,0,0,0,0,0]
[null,"Mante. edificio",{"$f":"(('Costos, gastos, inversiones'!$E$77+'Costos, gastos, inversiones'!$F$77)*(1+InflaciónAño_2))*(1+InflaciónAño_3)","v":0},0,0,0,0,0,0,0,0,0,0,0,0]
[null,"Mante. Fábrica",{"$f":"(('Costos, gastos, inversiones'!$E$79+'Costos, gastos, inversiones'!$F$79)*(1+InflaciónAño_2))*(1+InflaciónAño_3)","v":0},{"$f":"C252","v":0},0,0,0,0,0,0,0,0,0,0,{"$f":"SUM(C252:N252)","v":0}]
[null,"Mante. oficina",{"$f":"(('Costos, gastos, inversiones'!$E$79+'Costos, gastos, inversiones'!$F$79)*(1+InflaciónAño_2))*(1+InflaciónAño_3)","v":0},0,0,0,0,0,0,0,0,0,0,0,0]
[null,"Mante. vehículos",{"$f":"(('Costos, gastos, inversiones'!$E$80+'Costos, gastos, inversiones'!$F$80)*(1+InflaciónAño_2))*(1+InflaciónAño_3)","v":0},0,0,{"$f":"E254","v":0},0,0,0,0,0,0,0,0,0]
[null,"Mante. Eq.Cómputo",{"$f":"(('Costos, gastos, inversiones'!$E$81+'Costos, gastos, inversiones'!$F$81)*(1+InflaciónAño_2))*(1+InflaciónAño_3)","v":0},{"$f":"C255","v":0},0,0,0,0,0,0,0,0,0,0,0]
[null,"Mensajería",{"$f":"(('Costos, gastos, inversiones'!$E$82+'Costos, gastos, inversiones'!$F$82)*(1+InflaciónAño_2))*(1+InflaciónAño_3)","v":0},0,0,0,0,0,0,0,0,0,0,0,0]
[null,"Otros",{"$f":"(('Costos, gastos, inversiones'!$E$83+'Costos, gastos, inversiones'!$F$83)*(1+InflaciónAño_2))*(1+InflaciónAño_3)","v":0},0,0,0,0,0,0,0,0,0,0,0,0]
[null,"Papelería y Art. de oficina",{"$f":"(('Costos, gastos, inversiones'!$E$84+'Costos, gastos, inversiones'!$F$84)*(1+InflaciónAño_2))*(1+InflaciónAño_3)","v":0},0,0,0,0,0,0,0,0,0,0,0,0]
[null,"Paquetería y envíos",{"$f":"(('Costos, gastos, inversiones'!$E$85+'Costos, gastos, inversiones'!$F$85)*(1+InflaciónAño_2))*(1+InflaciónAño_3)","v":0},0,0,0,0,0,0,0,0,0,0,0,0]
[null,"Pasajes y transporte",{"$f":"(('Costos, gastos, inversiones'!$E$86+'Costos, gastos, inversiones'!$F$86)*(1+InflaciónAño_2))*(1+InflaciónAño_3)","v":0},0,0,0,0,0,0,0,0,0,0,0,0]
[null,"Provisión gratificaciones",{"$f":"(('Costos, gastos, inversiones'!$E$87+'Costos, gastos, inversiones'!$F$87)*(1+InflaciónAño_2))*(1+InflaciónAño_3)","v":0},0,0,0,0,0,0,0,0,0,0,0,0]
[null,{"$f":"B172","v":"Publicidad"},{"$f":"(('Costos, gastos, inversiones'!$E$88+'Costos, gastos, inversiones'!$F$88)*(1+InflaciónAño_2))*(1+InflaciónAño_3)","v":0},0,0,0,0,0,0,0,0,0,0,0,0]
[null,"Renta de copiadora",{"$f":"(('Costos, gastos, inversiones'!$E$89+'Costos, gastos, inversiones'!$F$89)*(1+InflaciónAño_2))*(1+InflaciónAño_3)","v":0},0,0,0,0,0,0,0,0,0,0,0,0]
[null,"Renta de locales",{"$f":"(('Costos, gastos, inversiones'!$E$90+'Costos, gastos, inversiones'!$F$90)*(1+InflaciónAño_2))*(1+InflaciónAño_3)","v":0},0,0,0,0,0,0,0,0,0,0,0,0]
[null,"Renta de maquinaria",{"$f":"(('Costos, gastos, inversiones'!$E$91+'Costos, gastos, inversiones'!$F$91)*(1+InflaciónAño_2))*(1+InflaciónAño_3)","v":0},0,0,0,0,0,0,0,0,0,0,0,0]
[null,"Renta de vehículos",{"$f":"(('Costos, gastos, inversiones'!$E$92+'Costos, gastos, inversiones'!$F$92)*(1+InflaciónAño_2))*(1+InflaciónAño_3)","v":0},0,0,0,0,0,0,0,0,0,0,0,0]
[null,"Seguros y fianzas",{"$f":"(('Costos, gastos, inversiones'!$E$93+'Costos, gastos, inversiones'!$F$93)*(1+InflaciónAño_2))*(1+InflaciónAño_3)","v":0},0,0,0,0,0,0,0,0,0,0,0,0]
[null,"Servicio de seguridad",{"$f":"(('Costos, gastos, inversiones'!$E$94+'Costos, gastos, inversiones'!$F$94)*(1+InflaciónAño_2))*(1+InflaciónAño_3)","v":0},0,0,0,0,0,0,0,0,0,0,0,0]
[null,"Servicio impresión",{"$f":"(('Costos, gastos, inversiones'!$E$95+'Costos, gastos, inversiones'!$F$95)*(1+InflaciónAño_2))*(1+InflaciónAño_3)","v":0},0,0,0,0,0,0,0,0,0,0,0,0]
[null,"Servicios administrativos",{"$f":"(('Costos, gastos, inversiones'!$E$96+'Costos, gastos, inversiones'!$F$96)*(1+InflaciónAño_2))*(1+InflaciónAño_3)","v":0},0,0,0,0,0,0,0,0,0,0,0,0]
[null,"Servicios de consultoría",{"$f":"(('Costos, gastos, inversiones'!$E$97+'Costos, gastos, inversiones'!$F$97)*(1+InflaciónAño_2))*(1+InflaciónAño_3)","v":0},0,0,0,0,0,0,0,0,0,0,0,0]
[null,"Servicios de nomina",{"$f":"(('Costos, gastos, inversiones'!$E$98+'Costos, gastos, inversiones'!$F$98)*(1+InflaciónAño_2))*(1+InflaciónAño_3)","v":0},0,0,0,0,0,0,0,0,0,0,0,0]
[null,"Sueldo del Emprendedor",{"$f":"(('Costos, gastos, inversiones'!$E$99+'Costos, gastos, inversiones'!$F$99)*(1+InflaciónAño_2))*(1+InflaciónAño_3)","v":0},0,0,0,0,0,0,0,0,0,0,0,0]
[null,"Sueldos de trabajadores ",{"$f":"(('Costos, gastos, inversiones'!$E$100+'Costos, gastos, inversiones'!$F$100)*(1+InflaciónAño_2))*(1+InflaciónAño_3)","v":0},0,0,0,0,0,0,0,0,0,0,0,0]
[null,"Suscripciones",{"$f":"(('Costos, gastos, inversiones'!$E$101+'Costos, gastos, inversiones'!$F$101)*(1+InflaciónAño_2))*(1+InflaciónAño_3)","v":0},0,0,0,0,0,0,0,0,0,0,0,0]
[null,"Teléfono e internet",{"$f":"(('Costos, gastos, inversiones'!$E$102+'Costos, gastos, inversiones'!$F$102)*(1+InflaciónAño_2))*(1+InflaciónAño_3)","v":0},0,0,0,0,0,0,0,0,0,0,0,0]
[null,"Viáticos",{"$f":"(('Costos, gastos, inversiones'!$E$103+'Costos, gastos, inversiones'!$F$103)*(1+InflaciónAño_2))*(1+InflaciónAño_3)","v":0},0,0,0,0,0,0,0,0,0,0,0,0]
[null,"",{"$f":"(('Costos, gastos, inversiones'!$E$104+'Costos, gastos, inversiones'!$F$104)*(1+InflaciónAño_2))*(1+InflaciónAño_3)","v":0},0,0,0,0,0,0,0,0,0,0,0,0]
[null,"",{"$f":"(('Costos, gastos, inversiones'!$E$105+'Costos, gastos, inversiones'!$F$105)*(1+InflaciónAño_2))*(1+InflaciónAño_3)","v":0},0,0,0,0,0,0,0,0,0,0,0,0]
[null,"",{"$f":"(('Costos, gastos, inversiones'!$E$106+'Costos, gastos, inversiones'!$F$106)*(1+InflaciónAño_2))*(1+InflaciónAño_3)","v":0},0,0,0,0,0,0,0,0,0,0,0,0]
[null,{"$f":"B192","v":""},{"$f":"(('Costos, gastos, inversiones'!$E$107+'Costos, gastos, inversiones'!$F$107)*(1+InflaciónAño_2))*(1+InflaciónAño_3)","v":0},0,0,0,0,0,0,0,0,0,0,0,0]
[null,null,{"$f":"(('Costos, gastos, inversiones'!$E$108+'Costos, gastos, inversiones'!$F$108)*(1+InflaciónAño_2))*(1+InflaciónAño_3)","v":0},0,0,0,0,0,{"$f":"H282","v":0},0,0,0,0,0,0]
[null,{"$f":"B193","v":""},{"$f":"(('Costos, gastos, inversiones'!$E$109+'Costos, gastos, inversiones'!$F$109)*(1+InflaciónAño_2))*(1+InflaciónAño_3)","v":0},0,0,{"$f":"E283","v":0},0,0,0,0,0,0,0,0,0]
[null,"",{"$f":"(('Costos, gastos, inversiones'!$E$110+'Costos, gastos, inversiones'!$F$110)*(1+InflaciónAño_2))*(1+InflaciónAño_3)","v":0},0,0,0,0,0,0,0,0,0,0,0,0]
[null,"Indirectos y generales",{"$f":"SUM(C230:C284)","v":0},0,0,0,0,0,0,0,0,0,0,0,0]
[null,"Total costos y gastos",{"$f":"+C229+C285","v":0},0,0,0,0,0,0,0,0,0,0,0,0]
[null,"Resultado para Impuestos",{"$f":"C215-C286","v":0},0,0,0,0,0,0,0,0,0,0,0,{"$f":"SUM(C287:N287)","v":0}]
[null,"Impuesto sobre la Renta",{"$f":"C287*30%","v":0},{"$f":"D287*30%","v":0},{"$f":"E287*30%","v":0},0,0,0,0,0,0,0,0,0,{"$f":"SUM(C288:N288)","v":0}]
[null,"RESULTADO NETO",{"$f":"C287-C288","v":0},{"$f":"D287-D288","v":0},{"$f":"E287-E288","v":0},0,0,0,0,0,0,0,0,0,{"$f":"SUM(C289:N289)","v":0}]

{"sheet":"Flujo de tesorería","index":9,"n_rows":73,"n_cols":16,"rows_kept":73,"cut":false,"hidden":false,"merged":[[53,1,53,14],[11,1,11,14],[6,0,8,0],[5,1,5,10],[10,1,10,10],[0,1,1,14],[3,1,3,14],[4,1,4,14],[9,1,9,14],[32,1,32,14]]}
[null,"De emprendedor a empresario: haga que su negocio ¡sea negocio! - Simulador Financiero",null,null,null,null,null,null,null,null,null,null,null,null,null,"187"]
[]
[null,"Objetivo de este ejercicio"]
[null,"El flujo de tesorería, de efectivo, de caja o cash flow, como también se le denomina, es un reporte que muestra el movimiento de dinero en efectivo que tiene la empresa en un período determinado. Un requisito para que una empresa tenga una buena salud financiera es que el saldo del flujo de tesorería resulte positivo, es decir, sus cobros resulten superiores a los pagos. "]
[null,"Para que el flujo de tesorería sea un efectivo instrumento de gestión financiera debe considerar todos los ingresos y egresos de recursos económicos de la empresa en determinado período y un saldo inicial que incluya el que esté disponible en cuentas de banco o en caja. No hay reglas específicas que definan la extensión del flujo de tesorería; sin embargo, es recomendable considerar al menos tres años, con importes mensuales detallados en forma semanal para su puntual y constante seguimiento."]
[null,"Información requerida"]
["@","Cobros. Incluye todo lo que se cobre en un período, sea a cuenta de la producción, servicio o por cualquier otra vía."]
[null,"Pagos. Incluye todas las erogaciones de efectivo a cuenta de las obligaciones adquiridas por la empresa."]
[null,"Saldo. Es la diferencia entre los cobros y los pagos que se realizan en el período."]
[null,"En caso de emplear créditos de terceros, para la inversión inicial y/o capital de trabajo, estos se deben considerar en el flujo de tesorería, toda vez que representan una disponibilidad de dinero; además, crean obligaciones de pago en los períodos subsiguientes. El mismo procedimiento se debe seguir con las aportaciones de capital por parte de los propietarios."]
[null,"Cédula de trabajo"]
[null,{"$f":"Proyecto","v":0}]
[null,"7.S5 - Flujo de tesorería"]
[null,"Año 1",{"$f":"EDATE(FechaInicio,0)","v":44018},{"$f":"EDATE(FechaInicio,1)","v":"2020-08-06"},{"$f":"EDATE(FechaInicio,2)","v":"2020-09-06"},{"$f":"EDATE(FechaInicio,3)","v":"2020-10-06"},{"$f":"EDATE(FechaInicio,4)","v":"2020-11-06"},{"$f":"EDATE(FechaInicio,5)","v":"2020-12-06"},{"$f":"EDATE(FechaInicio,6)","v":"2021-01-06"},{"$f":"EDATE(FechaInicio,7)","v":"2021-02-06"},{"$f":"EDATE(FechaInicio,8)","v":"2021-03-06"},{"$f":"EDATE(FechaInicio,9)","v":"2021-04-06"},{"$f":"EDATE(FechaInicio,10)","v":"2021-05-06"},{"$f":"EDATE(FechaInicio,11)","v":"2021-06-06"},"TOTAL"]
[null,"Saldo Inicial",0,{"$f":"C31","v":0},{"$f":"D31","v":0},0,0,0,0,0,0,0,0,0,{"$f":"C15","v":0}]
[null,"Resultado neto",null,{"$f":"IF($A$7=\"@\",0,IF($A$7=\"Si\",'Pronóstico presupuesto-Auto'!D92,'Pronóstico presupuesto-Manual'!D109))","v":0},{"$f":"IF($A$7=\"@\",0,IF($A$7=\"Si\",'Pronóstico presupuesto-Auto'!E92,'Pronóstico presupuesto-Manual'!E109))","v":0},{"$f":"IF($A$7=\"@\",0,IF($A$7=\"Si\",'Pronóstico presupuesto-Auto'!F92,'Pronóstico presupuesto-Manual'!F109))","v":0},{"$f":"IF($A$7=\"@\",0,IF($A$7=\"Si\",'Pronóstico presupuesto-Auto'!G92,'Pronóstico presupuesto-Manual'!G109))","v":0},{"$f":"IF($A$7=\"@\",0,IF($A$7=\"Si\",'Pronóstico presupuesto-Auto'!H92,'Pronóstico presupuesto-Manual'!H109))","v":0},{"$f":"IF($A$7=\"@\",0,IF($A$7=\"Si\",'Pronóstico presupuesto-Auto'!I92,'Pronóstico presupuesto-Manual'!I109))","v":0},{"$f":"IF($A$7=\"@\",0,IF($A$7=\"Si\",'Pronóstico presupuesto-Auto'!J92,'Pronóstico presupuesto-Manual'!J109))","v":0},{"$f":"IF($A$7=\"@\",0,IF($A$7=\"Si\",'Pronóstico presupuesto-Auto'!K92,'Pronóstico presupuesto-Manual'!K109))","v":0},{"$f":"IF($A$7=\"@\",0,IF($A$7=\"Si\",'Pronóstico presupuesto-Auto'!L92,'Pronóstico presupuesto-Manual'!L109))","v":0},{"$f":"IF($A$7=\"@\",0,IF($A$7=\"Si\",'Pronóstico presupuesto-Auto'!M92,'Pronóstico presupuesto-Manual'!M109))","v":0},{"$f":"IF($A$7=\"@\",0,IF($A$7=\"Si\",'Pronóstico presupuesto-Auto'!N92,'Pronóstico presupuesto-Manual'!N109))","v":0},{"$f":"SUM(C16:N16)","v":0}]
[null,"Más: depreciaciones",null,{"$f":"IF($A$7=\"@\",0,IF($A$7=\"Si\",'Pronóstico presupuesto-Auto'!D32,'Pronóstico presupuesto-Manual'!D49))","v":0},{"$f":"IF($A$7=\"@\",0,IF($A$7=\"Si\",'Pronóstico presupuesto-Auto'!E32,'Pronóstico presupuesto-Manual'!E49))","v":0},{"$f":"IF($A$7=\"@\",0,IF($A$7=\"Si\",'Pronóstico presupuesto-Auto'!F32,'Pronóstico presupuesto-Manual'!F49))","v":0},{"$f":"IF($A$7=\"@\",0,IF($A$7=\"Si\",'Pronóstico presupuesto-Auto'!G32,'Pronóstico presupuesto-Manual'!G49))","v":0},{"$f":"IF($A$7=\"@\",0,IF($A$7=\"Si\",'Pronóstico presupuesto-Auto'!H32,'Pronóstico presupuesto-Manual'!H49))","v":0},{"$f":"IF($A$7=\"@\",0,IF($A$7=\"Si\",'Pronóstico presupuesto-Auto'!I32,'Pronóstico presupuesto-Manual'!I49))","v":0},{"$f":"IF($A$7=\"@\",0,IF($A$7=\"Si\",'Pronóstico presupuesto-Auto'!J32,'Pronóstico presupuesto-Manual'!J49))","v":0},{"$f":"IF($A$7=\"@\",0,IF($A$7=\"Si\",'Pronóstico presupuesto-Auto'!K32,'Pronóstico presupuesto-Manual'!K49))","v":0},{"$f":"IF($A$7=\"@\",0,IF($A$7=\"Si\",'Pronóstico presupuesto-Auto'!L32,'Pronóstico presupuesto-Manual'!L49))","v":0},{"$f":"IF($A$7=\"@\",0,IF($A$7=\"Si\",'Pronóstico presupuesto-Auto'!M32,'Pronóstico presupuesto-Manual'!M49))","v":0},{"$f":"IF($A$7=\"@\",0,IF($A$7=\"Si\",'Pronóstico presupuesto-Auto'!N32,'Pronóstico presupuesto-Manual'!N49))","v":0},{"$f":"SUM(C17:N17)","v":0}]
[null,"Flujo originado en operación",0,{"$f":"SUM(D16:D17)","v":0},0,0,0,0,0,0,0,0,0,0,0]
[null,"Adquisición inversiones",{"$f":"'Costos, gastos, inversiones'!G114","v":0},null,null,null,null,null,null,null,null,null,null,null,{"$f":"SUM(C19:N19)","v":0}]
[null,"Crédito a clientes",null,null,null,null,null,null,null,null,null,null,null,null,0]
[null,"Compra Inventarios",{"$f":"IF($A$7=\"@\",\"\",IF($A$7=\"Si\",'Pronóstico presupuesto-Auto'!D10*Mat_Unitario,0))","v":""},{"$f":"IF($A$7=\"@\",\"\",IF($A$7=\"Si\",'Pronóstico presupuesto-Auto'!E10*Mat_Unitario,0))","v":""},{"$f":"IF($A$7=\"@\",\"\",IF($A$7=\"Si\",'Pronóstico presupuesto-Auto'!F10*Mat_Unitario,0))","v":""},{"$f":"IF($A$7=\"@\",\"\",IF($A$7=\"Si\",'Pronóstico presupuesto-Auto'!G10*Mat_Unitario,0))","v":""},{"$f":"IF($A$7=\"@\",\"\",IF($A$7=\"Si\",'Pronóstico presupuesto-Auto'!H10*Mat_Unitario,0))","v":""},{"$f":"IF($A$7=\"@\",\"\",IF($A$7=\"Si\",'Pronóstico presupuesto-Auto'!I10*Mat_Unitario,0))","v":""},{"$f":"IF($A$7=\"@\",\"\",IF($A$7=\"Si\",'Pronóstico presupuesto-Auto'!J10*Mat_Unitario,0))","v":""},{"$f":"IF($A$7=\"@\",\"\",IF($A$7=\"Si\",'Pronóstico presupuesto-Auto'!K10*Mat_Unitario,0))","v":""},{"$f":"IF($A$7=\"@\",\"\",IF($A$7=\"Si\",'Pronóstico presupuesto-Auto'!L10*Mat_Unitario,0))","v":""},{"$f":"IF($A$7=\"@\",\"\",IF($A$7=\"Si\",'Pronóstico presupuesto-Auto'!M10*Mat_Unitario,0))","v":""},{"$f":"IF($A$7=\"@\",\"\",IF($A$7=\"Si\",'Pronóstico presupuesto-Auto'!N10*Mat_Unitario,0))","v":""},{"$f":"IF($A$7=\"@\",\"\",IF($A$7=\"Si\",'Pronóstico presupuesto-Auto'!C98*Mat_Unitario,0))","v":""},{"$f":"SUM(C21:N21)","v":0}]
[null,"Pago financiamiento",null,null,null,null,null,null,null,null,null,null,null,null,{"$f":"SUM(C22:N22)","v":0}]
[null,"Pago a proveedores",null,{"$f":"C29","v":0},{"$f":"D29","v":0},0,{"$f":"F29","v":0},{"$f":"G29","v":0},null,null,null,null,null,null,0]
[null,"Salidas de efectivo",{"$f":"SUM(C19:C23)","v":0},0,0,0,0,0,0,0,0,0,0,0,0]
[null,"Aportación accionistas",null,null,null,null,null,null,null,null,null,null,null,null,0]
[null,"Financiamiento recibido",null,null,null,null,null,null,null,null,null,null,null,null,0]
[null,"Cobranza de ventas",null,null,null,null,null,null,null,null,null,null,null,null,0]
[null,"Aplicación inventario",null,{"$f":"C21","v":""},{"$f":"D21","v":""},"","","","","","","","","",{"$f":"SUM(C28:N28)","v":0}]
[null,"Crédito de proveedores",null,null,null,null,null,null,null,null,null,null,null,null,0]
[null,"Entradas de efectivo",{"$f":"SUM(C25:C29)","v":0},0,0,0,0,0,0,0,0,0,0,0,0]
[null,"Saldo final",{"$f":"C15+C18-C24+C30","v":0},0,0,0,0,0,0,0,0,0,0,0,0]
[]
[null,{"$f":"Proyecto","v":0}]
[null,"7.S5 - Flujo de tesorería"]
[null,"Año 2",{"$f":"EDATE((FechaInicio+365),0)","v":44383},{"$f":"EDATE((FechaInicio+365),1)","v":"2021-08-06"},{"$f":"EDATE((FechaInicio+365),2)","v":"2021-09-06"},{"$f":"EDATE((FechaInicio+365),3)","v":"2021-10-06"},{"$f":"EDATE((FechaInicio+365),4)","v":"2021-11-06"},{"$f":"EDATE((FechaInicio+365),5)","v":"2021-12-06"},{"$f":"EDATE((FechaInicio+365),6)","v":"2022-01-06"},{"$f":"EDATE((FechaInicio+365),7)","v":"2022-02-06"},{"$f":"EDATE((FechaInicio+365),8)","v":"2022-03-06"},{"$f":"EDATE((FechaInicio+365),9)","v":"2022-04-06"},{"$f":"EDATE((FechaInicio+365),10)","v":"2022-05-06"},{"$f":"EDATE((FechaInicio+365),11)","v":"2022-06-06"},"TOTAL"]
[null,"Saldo Inicial",{"$f":"O31","v":0},{"$f":"C52","v":0},{"$f":"D52","v":0},0,0,0,0,0,0,0,0,0,{"$f":"C36","v":0}]
[null,"Resultado neto",{"$f":"IF($A$7=\"@\",0,IF($A$7=\"Si\",'Pronóstico presupuesto-Auto'!C180,'Pronóstico presupuesto-Manual'!C199))","v":0},{"$f":"IF($A$7=\"@\",0,IF($A$7=\"Si\",'Pronóstico presupuesto-Auto'!D180,'Pronóstico presupuesto-Manual'!D199))","v":0},{"$f":"IF($A$7=\"@\",0,IF($A$7=\"Si\",'Pronóstico presupuesto-Auto'!E180,'Pronóstico presupuesto-Manual'!E199))","v":0},{"$f":"IF($A$7=\"@\",0,IF($A$7=\"Si\",'Pronóstico presupuesto-Auto'!F180,'Pronóstico presupuesto-Manual'!F199))","v":0},{"$f":"IF($A$7=\"@\",0,IF($A$7=\"Si\",'Pronóstico presupuesto-Auto'!G180,'Pronóstico presupuesto-Manual'!G199))","v":0},{"$f":"IF($A$7=\"@\",0,IF($A$7=\"Si\",'Pronóstico presupuesto-Auto'!H180,'Pronóstico presupuesto-Manual'!H199))","v":0},{"$f":"IF($A$7=\"@\",0,IF($A$7=\"Si\",'Pronóstico presupuesto-Auto'!I180,'Pronóstico presupuesto-Manual'!I199))","v":0},{"$f":"IF($A$7=\"@\",0,IF($A$7=\"Si\",'Pronóstico presupuesto-Auto'!J180,'Pronóstico presupuesto-Manual'!J199))","v":0},{"$f":"IF($A$7=\"@\",0,IF($A$7=\"Si\",'Pronóstico presupuesto-Auto'!K180,'Pronóstico presupuesto-Manual'!K199))","v":0},{"$f":"IF($A$7=\"@\",0,IF($A$7=\"Si\",'Pronóstico presupuesto-Auto'!L180,'Pronóstico presupuesto-Manual'!L199))","v":0},{"$f":"IF($A$7=\"@\",0,IF($A$7=\"Si\",'Pronóstico presupuesto-Auto'!M180,'Pronóstico presupuesto-Manual'!M199))","v":0},{"$f":"IF($A$7=\"@\",0,IF($A$7=\"Si\",'Pronóstico presupuesto-Auto'!N180,'Pronóstico presupuesto-Manual'!N199))","v":0},{"$f":"SUM(C37:N37)","v":0}]
[null,"Más: depreciaciones",{"$f":"IF($A$7=\"@\",0,IF($A$7=\"Si\",'Pronóstico presupuesto-Auto'!C120,'Pronóstico presupuesto-Manual'!C139))","v":0},{"$f":"IF($A$7=\"@\",0,IF($A$7=\"Si\",'Pronóstico presupuesto-Auto'!D120,'Pronóstico presupuesto-Manual'!D139))","v":0},{"$f":"IF($A$7=\"@\",0,IF($A$7=\"Si\",'Pronóstico presupuesto-Auto'!E120,'Pronóstico presupuesto-Manual'!E139))","v":0},{"$f":"IF($A$7=\"@\",0,IF($A$7=\"Si\",'Pronóstico presupuesto-Auto'!F120,'Pronóstico presupuesto-Manual'!F139))","v":0},{"$f":"IF($A$7=\"@\",0,IF($A$7=\"Si\",'Pronóstico presupuesto-Auto'!G120,'Pronóstico presupuesto-Manual'!G139))","v":0},{"$f":"IF($A$7=\"@\",0,IF($A$7=\"Si\",'Pronóstico presupuesto-Auto'!H120,'Pronóstico presupuesto-Manual'!H139))","v":0},{"$f":"IF($A$7=\"@\",0,IF($A$7=\"Si\",'Pronóstico presupuesto-Auto'!I120,'Pronóstico presupuesto-Manual'!I139))","v":0},{"$f":"IF($A$7=\"@\",0,IF($A$7=\"Si\",'Pronóstico presupuesto-Auto'!J120,'Pronóstico presupuesto-Manual'!J139))","v":0},{"$f":"IF($A$7=\"@\",0,IF($A$7=\"Si\",'Pronóstico presupuesto-Auto'!K120,'Pronóstico presupuesto-Manual'!K139))","v":0},{"$f":"IF($A$7=\"@\",0,IF($A$7=\"Si\",'Pronóstico presupuesto-Auto'!L120,'Pronóstico presupuesto-Manual'!L139))","v":0},{"$f":"IF($A$7=\"@\",0,IF($A$7=\"Si\",'Pronóstico presupuesto-Auto'!M120,'Pronóstico presupuesto-Manual'!M139))","v":0},{"$f":"IF($A$7=\"@\",0,IF($A$7=\"Si\",'Pronóstico presupuesto-Auto'!N120,'Pronóstico presupuesto-Manual'!N139))","v":0},{"$f":"SUM(C38:N38)","v":0}]
[null,"Flujo originado en operación",{"$f":"SUM(C37:C38)","v":0},0,0,0,0,0,0,0,0,0,0,0,0]
[null,"Adquisición inversiones",null,null,null,null,null,null,null,null,null,null,null,null,{"$f":"SUM(C40:N40)","v":0}]
[null,"Crédito a clientes",null,null,null,null,null,null,null,null,null,null,null,null,0]
[null,"Compra Inventarios",{"$f":"IF($A$7=\"@\",\"\",IF($A$7=\"Si\",'Pronóstico presupuesto-Auto'!D98*Mat_Unitario,0))","v":""},{"$f":"IF($A$7=\"@\",\"\",IF($A$7=\"Si\",'Pronóstico presupuesto-Auto'!E98*Mat_Unitario,0))","v":""},{"$f":"IF($A$7=\"@\",\"\",IF($A$7=\"Si\",'Pronóstico presupuesto-Auto'!F98*Mat_Unitario,0))","v":""},{"$f":"IF($A$7=\"@\",\"\",IF($A$7=\"Si\",'Pronóstico presupuesto-Auto'!G98*Mat_Unitario,0))","v":""},{"$f":"IF($A$7=\"@\",\"\",IF($A$7=\"Si\",'Pronóstico presupuesto-Auto'!H98*Mat_Unitario,0))","v":""},{"$f":"IF($A$7=\"@\",\"\",IF($A$7=\"Si\",'Pronóstico presupuesto-Auto'!I98*Mat_Unitario,0))","v":""},{"$f":"IF($A$7=\"@\",\"\",IF($A$7=\"Si\",'Pronóstico presupuesto-Auto'!J98*Mat_Unitario,0))","v":""},{"$f":"IF($A$7=\"@\",\"\",IF($A$7=\"Si\",'Pronóstico presupuesto-Auto'!K98*Mat_Unitario,0))","v":""},{"$f":"IF($A$7=\"@\",\"\",IF($A$7=\"Si\",'Pronóstico presupuesto-Auto'!L98*Mat_Unitario,0))","v":""},{"$f":"IF($A$7=\"@\",\"\",IF($A$7=\"Si\",'Pronóstico presupuesto-Auto'!M98*Mat_Unitario,0))","v":""},{"$f":"IF($A$7=\"@\",\"\",IF($A$7=\"Si\",'Pronóstico presupuesto-Auto'!N98*Mat_Unitario,0))","v":""},{"$f":"IF($A$7=\"@\",\"\",IF($A$7=\"Si\",'Pronóstico presupuesto-Auto'!C186*Mat_Unitario,0))","v":""},0]
[null,"Pago financiamiento",null,null,null,null,null,null,null,null,null,null,null,null,{"$f":"SUM(C43:N43)","v":0}]
[null,"Pagos a proveedores",null,null,null,null,null,null,null,null,null,null,null,null,0]
[null,"Salidas de efectivo",{"$f":"SUM(C40:C44)","v":0},{"$f":"SUM(D40:D44)","v":0},0,0,0,0,0,0,0,0,0,0,0]
[null,"Aportación accionistas",null,null,null,null,null,null,null,null,null,null,null,null,0]
[null,"Financiamiento recibido",null,null,null,null,null,null,null,null,null,null,null,null,0]
[null,"Cobranza de ventas",null,null,null,null,null,null,null,null,null,null,null,null,0]
[null,"Aplicación inventario",{"$f":"N28","v":""},{"$f":"C42","v":""},{"$f":"D42","v":""},"","","","","","","","","",0]
[null,"Crédito de proveedores",null,null,null,null,null,null,null,null,null,null,null,null,0]
[null,"Entradas de efectivo",{"$f":"SUM(C46:C50)","v":0},0,0,0,0,0,0,0,0,0,0,0,0]
[null,"Saldo final",{"$f":"C36+C39-C45+C51","v":0},0,0,0,0,0,0,0,0,0,0,0,0]
[]
[null,{"$f":"Proyecto","v":0}]
[null,"7.S5 - Flujo de tesorería"]
[null,"Año 3",{"$f":"EDATE((FechaInicio+731),0)","v":44749},{"$f":"EDATE((FechaInicio+731),1)","v":"2022-08-07"},{"$f":"EDATE((FechaInicio+731),2)","v":"2022-09-07"},{"$f":"EDATE((FechaInicio+731),3)","v":"2022-10-07"},{"$f":"EDATE((FechaInicio+731),4)","v":"2022-11-07"},{"$f":"EDATE((FechaInicio+731),5)","v":"2022-12-07"},{"$f":"EDATE((FechaInicio+731),6)","v":"2023-01-07"},{"$f":"EDATE((FechaInicio+731),7)","v":"2023-02-07"},{"$f":"EDATE((FechaInicio+731),8)","v":"2023-03-07"},{"$f":"EDATE((FechaInicio+731),9)","v":"2023-04-07"},{"$f":"EDATE((FechaInicio+731),10)","v":"2023-05-07"},{"$f":"EDATE((FechaInicio+731),11)","v":"2023-06-07"},"TOTAL"]
[null,"Saldo Inicial",{"$f":"O52","v":0},{"$f":"C73","v":0},{"$f":"D73","v":0},0,0,0,0,0,0,0,0,0,{"$f":"C57","v":0}]
[null,"Resultado neto",{"$f":"IF($A$7=\"@\",0,IF($A$7=\"Si\",'Pronóstico presupuesto-Auto'!C268,'Pronóstico presupuesto-Manual'!C289))","v":0},{"$f":"IF($A$7=\"@\",0,IF($A$7=\"Si\",'Pronóstico presupuesto-Auto'!D268,'Pronóstico presupuesto-Manual'!D289))","v":0},{"$f":"IF($A$7=\"@\",0,IF($A$7=\"Si\",'Pronóstico presupuesto-Auto'!E268,'Pronóstico presupuesto-Manual'!E289))","v":0},{"$f":"IF($A$7=\"@\",0,IF($A$7=\"Si\",'Pronóstico presupuesto-Auto'!F268,'Pronóstico presupuesto-Manual'!F289))","v":0},{"$f":"IF($A$7=\"@\",0,IF($A$7=\"Si\",'Pronóstico presupuesto-Auto'!G268,'Pronóstico presupuesto-Manual'!G289))","v":0},{"$f":"IF($A$7=\"@\",0,IF($A$7=\"Si\",'Pronóstico presupuesto-Auto'!H268,'Pronóstico presupuesto-Manual'!H289))","v":0},{"$f":"IF($A$7=\"@\",0,IF($A$7=\"Si\",'Pronóstico presupuesto-Auto'!I268,'Pronóstico presupuesto-Manual'!I289))","v":0},{"$f":"IF($A$7=\"@\",0,IF($A$7=\"Si\",'Pronóstico presupuesto-Auto'!J268,'Pronóstico presupuesto-Manual'!J289))","v":0},{"$f":"IF($A$7=\"@\",0,IF($A$7=\"Si\",'Pronóstico presupuesto-Auto'!K268,'Pronóstico presupuesto-Manual'!K289))","v":0},{"$f":"IF($A$7=\"@\",0,IF($A$7=\"Si\",'Pronóstico presupuesto-Auto'!L268,'Pronóstico presupuesto-Manual'!L289))","v":0},{"$f":"IF($A$7=\"@\",0,IF($A$7=\"Si\",'Pronóstico presupuesto-Auto'!M268,'Pronóstico presupuesto-Manual'!M289))","v":0},{"$f":"IF($A$7=\"@\",0,IF($A$7=\"Si\",'Pronóstico presupuesto-Auto'!N268,'Pronóstico presupuesto-Manual'!N289))","v":0},{"$f":"SUM(C58:N58)","v":0}]
[null,"Menos depreciaciones",{"$f":"IF($A$7=\"@\",0,IF($A$7=\"Si\",'Pronóstico presupuesto-Auto'!C208,'Pronóstico presupuesto-Manual'!C229))","v":0},{"$f":"IF($A$7=\"@\",0,IF($A$7=\"Si\",'Pronóstico presupuesto-Auto'!D208,'Pronóstico presupuesto-Manual'!D229))","v":0},{"$f":"IF($A$7=\"@\",0,IF($A$7=\"Si\",'Pronóstico presupuesto-Auto'!E208,'Pronóstico presupuesto-Manual'!E229))","v":0},{"$f":"IF($A$7=\"@\",0,IF($A$7=\"Si\",'Pronóstico presupuesto-Auto'!F208,'Pronóstico presupuesto-Manual'!F229))","v":0},{"$f":"IF($A$7=\"@\",0,IF($A$7=\"Si\",'Pronóstico presupuesto-Auto'!G208,'Pronóstico presupuesto-Manual'!G229))","v":0},{"$f":"IF($A$7=\"@\",0,IF($A$7=\"Si\",'Pronóstico presupuesto-Auto'!H208,'Pronóstico presupuesto-Manual'!H229))","v":0},{"$f":"IF($A$7=\"@\",0,IF($A$7=\"Si\",'Pronóstico presupuesto-Auto'!I208,'Pronóstico presupuesto-Manual'!I229))","v":0},{"$f":"IF($A$7=\"@\",0,IF($A$7=\"Si\",'Pronóstico presupuesto-Auto'!J208,'Pronóstico presupuesto-Manual'!J229))","v":0},{"$f":"IF($A$7=\"@\",0,IF($A$7=\"Si\",'Pronóstico presupuesto-Auto'!K208,'Pronóstico presupuesto-Manual'!K229))","v":0},{"$f":"IF($A$7=\"@\",0,IF($A$7=\"Si\",'Pronóstico presupuesto-Auto'!L208,'Pronóstico presupuesto-Manual'!L229))","v":0},{"$f":"IF($A$7=\"@\",0,IF($A$7=\"Si\",'Pronóstico presupuesto-Auto'!M208,'Pronóstico presupuesto-Manual'!M229))","v":0},{"$f":"IF($A$7=\"@\",0,IF($A$7=\"Si\",'Pronóstico presupuesto-Auto'!N208,'Pronóstico presupuesto-Manual'!N229))","v":0},{"$f":"SUM(C59:N59)","v":0}]
[null,"Flujo originado en operación",{"$f":"SUM(C58:C59)","v":0},{"$f":"SUM(D58:D59)","v":0},0,0,0,0,0,0,0,0,0,0,0]
[null,"Adquisición inversiones",null,null,null,null,null,null,null,null,null,null,null,null,{"$f":"SUM(C61:N61)","v":0}]
[null,"Crédito a clientes",null,null,null,null,null,null,null,null,null,null,null,null,0]
[null,"Compra Inventarios",{"$f":"IF($A$7=\"@\",\"\",IF($A$7=\"Si\",'Pronóstico presupuesto-Auto'!D186*Mat_Unitario,0))","v":""},{"$f":"IF($A$7=\"@\",\"\",IF($A$7=\"Si\",'Pronóstico presupuesto-Auto'!E186*Mat_Unitario,0))","v":""},{"$f":"IF($A$7=\"@\",\"\",IF($A$7=\"Si\",'Pronóstico presupuesto-Auto'!F186*Mat_Unitario,0))","v":""},{"$f":"IF($A$7=\"@\",\"\",IF($A$7=\"Si\",'Pronóstico presupuesto-Auto'!G186*Mat_Unitario,0))","v":""},{"$f":"IF($A$7=\"@\",\"\",IF($A$7=\"Si\",'Pronóstico presupuesto-Auto'!H186*Mat_Unitario,0))","v":""},{"$f":"IF($A$7=\"@\",\"\",IF($A$7=\"Si\",'Pronóstico presupuesto-Auto'!I186*Mat_Unitario,0))","v":""},{"$f":"IF($A$7=\"@\",\"\",IF($A$7=\"Si\",'Pronóstico presupuesto-Auto'!J186*Mat_Unitario,0))","v":""},{"$f":"IF($A$7=\"@\",\"\",IF($A$7=\"Si\",'Pronóstico presupuesto-Auto'!K186*Mat_Unitario,0))","v":""},{"$f":"IF($A$7=\"@\",\"\",IF($A$7=\"Si\",'Pronóstico presupuesto-Auto'!L186*Mat_Unitario,0))","v":""},{"$f":"IF($A$7=\"@\",\"\",IF($A$7=\"Si\",'Pronóstico presupuesto-Auto'!M186*Mat_Unitario,0))","v":""},{"$f":"IF($A$7=\"@\",\"\",IF($A$7=\"Si\",'Pronóstico presupuesto-Auto'!N186*Mat_Unitario,0))","v":""},{"$f":"M63","v":""},0]
[null,"Pago financiamiento",null,null,null,null,null,null,null,null,null,null,null,null,0]
[null,"Pagos a proveedores",null,null,null,null,null,null,null,null,null,null,null,null,0]
[null,"Salidas de efectivo",{"$f":"SUM(C62:C65)","v":0},0,0,0,0,0,0,0,0,0,0,0,{"$f":"SUM(O61:O65)","v":0}]
[null,"Aportación accionistas",null,null,null,null,null,null,null,null,null,null,null,null,0]
[null,"Financiamiento recibido",null,null,null,null,null,null,null,null,null,null,null,null,0]
[null,"Cobranza de ventas",null,null,null,null,null,null,null,null,null,null,null,null,0]
[null,"Aplicación inventario",{"$f":"N49","v":""},{"$f":"C63","v":""},{"$f":"D63","v":""},"","","","","","","","","",0]
[null,"Crédito de proveedores",null,null,null,null,null,null,null,null,null,null,null,null,0]
[null,"Entradas de efectivo",{"$f":"SUM(C67:C71)","v":0},0,0,0,0,0,0,0,0,0,0,0,0]
[null,"Saldo final",{"$f":"C57+C60-C66+C72","v":0},0,0,0,0,0,0,0,0,0,0,0,0]

{"sheet":"Estados Financieros","index":10,"n_rows":43,"n_cols":9,"rows_kept":43,"cut":false,"hidden":false,"merged":[[8,1,8,7],[9,1,9,6],[0,1,1,7],[2,1,2,7],[4,1,4,7],[6,1,6,7],[3,1,3,7],[5,1,5,7],[7,1,7,7]]}
[null,"De emprendedor a empresario: haga que su negocio ¡sea negocio! - Simulador Financiero",null,null,null,null,null,null,188]
[]
[null,"Objetivo de este ejercicio"]
[null,"Los estados financieros presentan los resultados y la situación financiera de una empresa. Estos responden a las necesidades comunes del usuario general de conocer las actividades desarrolladas, el movimiento de dinero y el patrimonio de los accionistas."]
[null,"Las empresas emiten un estado de resultados integrado por los ingresos, costos, gastos, y utilidad o pérdida neta. "]
[null,"Los elementos básicos del Balance General, también llamado estado de situación financiera, son los activos, los pasivos y el capital contable. Estos componentes representan el esquema de la partida doble, reconociendo el balance entre el activo y el pasivo más capital. "]
[null,"Información requerida"]
["@","Para la preparación de los estados financieros se requiere contar con información cuantitativa, expresada en unidades monetarias y descriptivas, emanadas de la contabilidad. Para los efectos del simulador, se ha tomado la información introducida a lo largo de los ejercicios anteriores de la misma forma en que un sistema de contabilidad realizaría sus movimientos."]
[null,"Cédula de trabajo"]
[null,{"$f":"Proyecto","v":0}]
[null,"7.S6 - Estados Financieros Anuales"]
[null,"Estado de Resultados",{"$f":"EDATE(FechaInicio,12)","v":"2021-07-06"},"%",{"$f":"EDATE(FechaInicio,24)","v":"2022-07-06"},"%",{"$f":"EDATE(FechaInicio,36)","v":"2023-07-06"},"%"]
[null,"Ventas netas",{"$f":"IF($A$8=\"@\",0,IF($A$8=\"Si\",'Pronóstico presupuesto-Auto'!O16,'Pronóstico presupuesto-Manual'!O33))","v":0},{"$f":"IF(C13=0,\"\",1)","v":""},{"$f":"IF($A$8=\"@\",0,IF($A$8=\"Si\",'Pronóstico presupuesto-Auto'!O104,'Pronóstico presupuesto-Manual'!O123))","v":0},{"$f":"IF(E13=0,\"\",1)","v":""},{"$f":"IF($A$8=\"@\",0,IF($A$8=\"Si\",'Pronóstico presupuesto-Auto'!O192,'Pronóstico presupuesto-Manual'!O213))","v":0},{"$f":"IF(G13=0,\"\",1)","v":""}]
[null,"Costo de ventas directo",{"$f":"IF($A$8=\"@\",0,IF($A$8=\"si\",'Pronóstico presupuesto-Auto'!$O$17,'Pronóstico presupuesto-Manual'!$O$34))","v":0},{"$f":"IF(D13=\"\",\"\",C14/C$13)","v":""},{"$f":"IF($A$8=\"@\",0,IF($A$8=\"si\",'Pronóstico presupuesto-Auto'!$O$105,'Pronóstico presupuesto-Manual'!$O$124))","v":0},{"$f":"IF(F13=\"\",\"\",E14/E$13)","v":""},{"$f":"IF($A$8=\"@\",0,IF($A$8=\"si\",'Pronóstico presupuesto-Auto'!$O$193,'Pronóstico presupuesto-Manual'!$O$214))","v":0},{"$f":"IF(H13=\"\",\"\",G14/G$13)","v":""}]
[null,"Utilidad marginal",{"$f":"C13-C14","v":0},{"$f":"IF(D14=\"\",\"\",C15/C$13)","v":""},{"$f":"E13-E14","v":0},{"$f":"IF(F14=\"\",\"\",E15/E$13)","v":""},{"$f":"G13-G14","v":0},{"$f":"IF(H14=\"\",\"\",G15/G$13)","v":""}]
[null,"Costos y gastos de operación",{"$f":"IF($A$8=\"@\",0,IF($A$8=\"si\",'Pronóstico presupuesto-Auto'!$O$89,+'Pronóstico presupuesto-Manual'!$O$106))","v":0},"",{"$f":"IF($A$8=\"@\",0,IF($A$8=\"si\",'Pronóstico presupuesto-Auto'!$O$177,'Pronóstico presupuesto-Manual'!$O$196))","v":0},"",{"$f":"IF($A$8=\"@\",0,IF($A$8=\"si\",'Pronóstico presupuesto-Auto'!$O$265,'Pronóstico presupuesto-Manual'!$O$286))","v":0},""]
[null,"Utilidad antes de impuestos",{"$f":"C15-C16","v":0},"",{"$f":"E15-E16","v":0},"",{"$f":"G15-G16","v":0},""]
[null,"Impuesto sobre la Renta",{"$f":"C17*Impuesto_Sobre_la_Renta","v":0},"",{"$f":"E17*Impuesto_Sobre_la_Renta","v":0},"",{"$f":"G17*Impuesto_Sobre_la_Renta","v":0},""]
[null,"RESULTADO NETO",{"$f":"C17-C18","v":0},"",{"$f":"E17-E18","v":0},"",{"$f":"G17-G18","v":0},""]
[]
[null,"Balance General",{"$f":"EDATE(FechaInicio,12)","v":"2021-07-06"},"%",{"$f":"EDATE(FechaInicio,24)","v":"2022-07-06"},"%",{"$f":"EDATE(FechaInicio,36)","v":"2023-07-06"},"%"]
[null,"A C T I V O"]
[null,"Circulante"]
[null,"Efectivo",{"$f":"'Flujo de tesorería'!O31","v":0},{"$f":"IF(C24=0,\"\",C24/C$32)","v":""},{"$f":"'Flujo de tesorería'!O52","v":0},{"$f":"IF(E24=0,\"\",E24/E$32)","v":""},{"$f":"'Flujo de tesorería'!O73","v":0},{"$f":"IF(G24=0,\"\",G24/G$32)","v":""}]
[null,"Cuentas por cobrar",{"$f":"'Flujo de tesorería'!O20-'Flujo de tesorería'!O27","v":0},{"$f":"IF(C25=0,\"\",C25/C$32)","v":""},{"$f":"C25+'Flujo de tesorería'!O41-'Flujo de tesorería'!O48","v":0},"",{"$f":"E25+'Flujo de tesorería'!O62-'Flujo de tesorería'!O69","v":0},{"$f":"IF(G25=0,\"\",G25/G$32)","v":""}]
[null,"Inventarios",{"$f":"'Flujo de tesorería'!O21-'Flujo de tesorería'!O28","v":0},"",{"$f":"C26+'Flujo de tesorería'!O42-'Flujo de tesorería'!O49","v":0},"",{"$f":"E26+'Flujo de tesorería'!O63-'Flujo de tesorería'!O70","v":0},{"$f":"IF(G26=0,\"\",G26/G$32)","v":""}]
[null,"Suma el circulante",{"$f":"SUM(C24:C26)","v":0},{"$f":"IF(C27=0,\"\",C27/C$32)","v":""},{"$f":"SUM(E24:E26)","v":0},{"$f":"IF(E27=0,\"\",E27/E$32)","v":""},{"$f":"SUM(G24:G26)","v":0},{"$f":"IF(G27=0,\"\",G27/G$32)","v":""}]
[]
[null,"Propiedades, equipo y otras inversiones",{"$f":"'Flujo de tesorería'!O19","v":0},{"$f":"IF(C29=0,\"\",C29/C$32)","v":""},{"$f":"C29+'Flujo de tesorería'!O40","v":0},{"$f":"IF(E29=0,\"\",E29/E$32)","v":""},{"$f":"E29+'Flujo de tesorería'!O61","v":0},{"$f":"IF(G29=0,\"\",G29/G$32)","v":""}]
[null,"Depreciación acumulada",{"$f":"-'Flujo de tesorería'!O17","v":0},{"$f":"IF(C30=0,\"\",C30/C$32)","v":""},{"$f":"C30-'Flujo de tesorería'!O38","v":0},{"$f":"IF(E30=0,\"\",E30/E$32)","v":""},{"$f":"E30-'Flujo de tesorería'!O59","v":0},{"$f":"IF(G30=0,\"\",G30/G$32)","v":""}]
[null,"Propiedades y equipo netos",{"$f":"SUM(C29:C30)","v":0},{"$f":"IF(C31=0,\"\",C31/C$32)","v":""},{"$f":"SUM(E29:E30)","v":0},{"$f":"IF(E31=0,\"\",E31/E$32)","v":""},{"$f":"SUM(G29:G30)","v":0},{"$f":"IF(G31=0,\"\",G31/G$32)","v":""}]
[null,"Suma el activo",{"$f":"SUM(C27,C31)","v":0},{"$f":"IF(C32=0,\"\",1)","v":""},{"$f":"SUM(E27,E31)","v":0},{"$f":"IF(E32=0,\"\",1)","v":""},{"$f":"SUM(G27,G31)","v":0},{"$f":"IF(G32=0,\"\",1)","v":""}]
[]
[null,"P A S I V O"]
[null,"Financiemiento recibido",{"$f":"'Flujo de tesorería'!O26-'Flujo de tesorería'!O22","v":0},{"$f":"IF(C35=0,\"\",C35/C$43)","v":""},{"$f":"C35+'Flujo de tesorería'!O47-'Flujo de tesorería'!O43","v":0},{"$f":"IF(E35=0,\"\",E35/E$43)","v":""},{"$f":"E35+'Flujo de tesorería'!O68-'Flujo de tesorería'!O64","v":0},{"$f":"IF(G35=0,\"\",G35/G$43)","v":""}]
[null,"Proveedores",{"$f":"'Flujo de tesorería'!O29-'Flujo de tesorería'!O23","v":0},{"$f":"IF(C36=0,\"\",C36/C$43)","v":""},{"$f":"C36+'Flujo de tesorería'!O50-'Flujo de tesorería'!O44","v":0},{"$f":"IF(E36=0,\"\",E36/E$43)","v":""},{"$f":"E36+'Flujo de tesorería'!O71-'Flujo de tesorería'!O65","v":0},{"$f":"IF(G36=0,\"\",G36/G$43)","v":""}]
[null,"Suma el pasivo",{"$f":"SUM(C35:C36)","v":0},{"$f":"IF(C37=0,\"\",C37/C$43)","v":""},{"$f":"SUM(E35:E36)","v":0},{"$f":"IF(E37=0,\"\",E37/E$43)","v":""},{"$f":"SUM(G35:G36)","v":0},{"$f":"IF(G37=0,\"\",G37/G$43)","v":""}]
[]
[null,"C A P I T A L"]
[null,"Aportaciónes socios o dueño",{"$f":"'Flujo de tesorería'!O25","v":0},{"$f":"IF(C40=0,\"\",C40/C$43)","v":""},{"$f":"C40+'Flujo de tesorería'!O46","v":0},{"$f":"IF(E40=0,\"\",E40/E$43)","v":""},{"$f":"E40+'Flujo de tesorería'!O67","v":0},{"$f":"IF(G40=0,\"\",G40/G$43)","v":""}]
[null,"Resultados acumulados",{"$f":"C19","v":0},{"$f":"IF(C41=0,\"\",C41/C$43)","v":""},{"$f":"E19+C41","v":0},{"$f":"IF(E41=0,\"\",E41/E$43)","v":""},{"$f":"G19+E41","v":0},{"$f":"IF(G41=0,\"\",G41/G$43)","v":""}]
[null,"Suma el capital",{"$f":"SUM(C40:C41)","v":0},{"$f":"IF(C42=0,\"\",C42/C$43)","v":""},{"$f":"SUM(E40:E41)","v":0},{"$f":"IF(E42=0,\"\",E42/E$43)","v":""},{"$f":"SUM(G40:G41)","v":0},{"$f":"IF(G42=0,\"\",G42/G$43)","v":""}]
[null,"Suma el pasivo y capital",{"$f":"SUM(C37,C42)","v":0},{"$f":"IF(C43=0,\"\",1)","v":""},{"$f":"SUM(E37,E42)","v":0},{"$f":"IF(E43=0,\"\",1)","v":""},{"$f":"SUM(G37,G42)","v":0},{"$f":"IF(G43=0,\"\",1)","v":""}]

{"sheet":"Razones Financieras","index":11,"n_rows":32,"n_cols":7,"rows_kept":32,"cut":false,"hidden":false,"merged":[[5,0,6,0],[13,2,14,5],[8,1,8,5],[0,1,1,5],[2,1,2,5],[4,1,4,5],[7,1,7,5],[6,1,6,5],[3,1,3,5],[5,1,5,5]]}
[null,"De emprendedor a empresario: haga que su negocio ¡sea negocio! - Simulador Financiero",null,null,null,null,"193"]
[]
[null,"Objetivo de este ejercicio"]
[null,"Tras determinar costos, precios, volúmenes de venta, presupuestos y estados financieros, se evalúa el proyecto; lo cual puede hacerse en cualquier momento durante la vida del negocio, aunque resulta indispensable para decidir acerca de su viabilidad. Los estados financieros presentan datos que pueden analizarse para encontrar razones que indiquen la forma en que se está operando, así como sus resultados. Estas razones son una colección de fórmulas que proporcionan indicadores importantes para continuar o corregir el rumbo a tiempo. Dentro de esas razones, se han seleccionado las más importantes y representativas."]
[null,"Información requerida"]
[null,"Para la viabilidad financiera, se requieren los flujos de efectivo a su valor actual neto. Estos datos provienen del importe definido como inversión inicial y del estado de resultados anual. "]
[null,"Para las medidas de operación del proyecto, se requieren los datos mostrados en los estados financieros anuales."]
[null,"Cédula de trabajo"]
[null,{"$f":"Proyecto","v":0}]
[null,"7.S7 - Razones financieras"]
[null,"Viabilidad financiera","Inversión Inicial","Rendimiento año 1","Rendimiento año 2","Rendimiento año 3"]
[null,"Información del proyecto",{"$f":"-('Flujo de tesorería'!O25+'Flujo de tesorería'!O26)","v":0},{"$f":"'Estados Financieros'!C19","v":0},{"$f":"'Estados Financieros'!E19","v":0},{"$f":"'Estados Financieros'!G19","v":0}]
[null,"Tasa Interna de Retorno (TIR)",{"$f":"IF(C12=0,\"\",IRR(C12:F12))","v":""}]
[null,"Consideraciones:","La Tasa Interna de Retorno permite comparar el rendimiento que recibirán los inversionistas sobre su inversión considerada a valor presente. Si el inversionistas tiene mejores opciones, seguramente rechará el proyecto."]
[]
[]
[null,"Operación del proyecto","Meta","Año1","Año 2","Año 3"]
[null,"Solvencia (Apalancamiento)"]
[null,"Deuda a Capital - DaC","Cero",{"$f":"IFERROR('Estados Financieros'!C37/'Estados Financieros'!C42,0)","v":0},{"$f":"IFERROR('Estados Financieros'!E37/'Estados Financieros'!E42,0)","v":0},{"$f":"IFERROR('Estados Financieros'!G37/'Estados Financieros'!G42,0)","v":0}]
[null,"Deuda a Activos Totales - DaAT","Cero",{"$f":"IFERROR('Estados Financieros'!C37/'Estados Financieros'!C32,0)","v":0},{"$f":"IFERROR('Estados Financieros'!E37/'Estados Financieros'!E32,0)","v":0},{"$f":"IFERROR('Estados Financieros'!G37/'Estados Financieros'!G32,0)","v":0}]
[null,"Liquidez (Capital de trabajo)"]
[null,"Prueba de liquidez - PL","Mayor que 2",{"$f":"IFERROR('Estados Financieros'!C27/'Estados Financieros'!C37,0)","v":0},{"$f":"IFERROR('Estados Financieros'!E27/'Estados Financieros'!E37,0)","v":0},{"$f":"IFERROR('Estados Financieros'!G27/'Estados Financieros'!G37,0)","v":0}]
[null,"Prueba del ácido - PA","Mayor que 1",{"$f":"IFERROR(('Estados Financieros'!C27-'Estados Financieros'!C26)/'Estados Financieros'!C37,0)","v":0},{"$f":"IFERROR(('Estados Financieros'!E27-'Estados Financieros'!E26)/'Estados Financieros'!E37,0)","v":0},{"$f":"IFERROR((('Estados Financieros'!G27-'Estados Financieros'!G26)/'Estados Financieros'!G37),0)","v":0}]
[null,"Capital de trabajo neto - CTN","Valor positivo",{"$f":"'Estados Financieros'!C27-'Estados Financieros'!C37","v":0},{"$f":"'Estados Financieros'!E27-'Estados Financieros'!E37","v":0},{"$f":"'Estados Financieros'!G27-'Estados Financieros'!G37","v":0}]
[null,"Eficiencia (Actividad operativa)"]
[null,"Rotación de inventarios - RI","+ es mejor",{"$f":"IFERROR(Mat_Unitario*'Pronóstico presupuesto-Auto'!O10/((0+'Estados Financieros'!C26)/2),0)","v":0},{"$f":"IFERROR((Mat_Unitario*'Pronóstico presupuesto-Auto'!O98/('Estados Financieros'!C26+'Estados Financieros'!E26)/2),0)","v":0},{"$f":"IFERROR(Mat_Unitario*'Pronóstico presupuesto-Auto'!O186/(('Estados Financieros'!E26+'Estados Financieros'!G26)/2),0)","v":0}]
[null,"Rotación de cuentas por cobrar RCC","+ es mejor",{"$f":"IFERROR('Estados Financieros'!C13/((0+'Estados Financieros'!C25)/2),0)","v":0},{"$f":"IFERROR(('Estados Financieros'!E13/(('Estados Financieros'!C25+'Estados Financieros'!E25)/2)),0)","v":0},{"$f":"IFERROR('Estados Financieros'!G13/(('Estados Financieros'!E25+'Estados Financieros'!G25)/2),0)","v":0}]
[null,"Rotación de cuentas por pagar - RCP","- es mejor",{"$f":"IFERROR('Estados Financieros'!C14/((0+'Estados Financieros'!C36)/2),0)","v":0},{"$f":"IFERROR(('Estados Financieros'!E14/(('Estados Financieros'!C36+'Estados Financieros'!E36)/2)),0)","v":0},{"$f":"IFERROR('Estados Financieros'!G14/(('Estados Financieros'!E36+'Estados Financieros'!G36)/2),0)","v":0}]
[null,"Rentabilidad (Retorno sobre ingresos)"]
[null,"Margen de utilidad neta - MUN","+ es mejor",{"$f":"IFERROR('Estados Financieros'!C19/'Estados Financieros'!C13,\"\")","v":""},{"$f":"IFERROR(('Estados Financieros'!E19/'Estados Financieros'!E13),\"\")","v":""},{"$f":"IFERROR(('Estados Financieros'!G19/'Estados Financieros'!G13),\"\")","v":""}]
[null,"Crecimiento en ventas - CeV","+ es mejor","N/A",{"$f":"IFERROR((('Estados Financieros'!E13-'Estados Financieros'!C13)/'Estados Financieros'!C13),\"\")","v":""},{"$f":"IFERROR((('Estados Financieros'!G13-'Estados Financieros'!E13)/'Estados Financieros'!E13),\"\")","v":""}]
[null,"Contribución marginal - CM","+ es mejor",{"$f":"IFERROR(('Estados Financieros'!C13-'Estados Financieros'!C14)/'Estados Financieros'!C13,\"\")","v":""},{"$f":"IFERROR(('Estados Financieros'!E13-'Estados Financieros'!E14)/'Estados Financieros'!E13,\"\")","v":""},{"$f":"IFERROR(('Estados Financieros'!G13-'Estados Financieros'!G14)/'Estados Financieros'!G13,\"\")","v":""}]

{"sheet":"Dásicos y desplegables","index":12,"n_rows":43,"n_cols":6,"rows_kept":43,"cut":false,"hidden":true,"merged":[[11,3,11,4],[12,3,12,4]]}
["Nombre",{"$f":"Instrucciones!D15","v":0}]
["Proyecto",{"$f":"Instrucciones!D17","v":0}]
["FechaInicio",{"$f":"Instrucciones!D19","v":"2020-07-06"},null,"7.S2"]
[null,null,null,"Utilidad Esperada",null,{"$f":"Utilidad_esperada","v":0}]
["Enero",null,null,"ISR",null,{"$f":"Impuesto_Sobre_la_Renta","v":0.3}]
["Febrero",null,null,"Factor incremento",null,{"$f":"F5*(F4/(1-F5))+F4","v":0}]
["Marzo",null,null,"Cociente",null,{"$f":"1-F6","v":1}]
["Abril",null,null,"Tasa ISR",null,{"$f":"F6-F4","v":0}]
["Mayo",null,null,"Tasa Utilidad",null,{"$f":"F6-F8","v":0}]
["Junio",null,null,"Base de costos/gastos",null,{"$f":"'Precio de venta'!J20","v":0}]
["Julio",null,null,"Incrementales",null,{"$f":"(F10/F7)-F10","v":0}]
["Agosto",null,null,"Importe ISR",null,{"$f":"(F11*F5)","v":0}]
["Septiembre",null,null,"Importe Utilidad",null,{"$f":"IFERROR((F11*F9)/F6,0)","v":0}]
["Octubre"]
["Noviembre"]
["Diciembre",null,null,"Tipo de datos a incorporar"]
[null,null,null,"Unitarios"]
["Industria",null,null,"Grupales"]
["Comercio"]
["Servicios"]
[]
["Persona física"]
["Persona moral"]
[]
["No aplica"]
["Seleccionar tipo"]
["Sociedad anónima"]
["Sociedad por acciones simplificada"]
["Responsabilidad limitada"]
["Nombre colectivo"]
["Comandita simple"]
["Comandita por acciones"]
["Cooperativa"]
[]
["Fijo"]
["Variable"]
[]
["Si"]
["No"]
[]
["@"]
["Si"]
["No"]